Body Name,Body,Service Label,Service Code,CIPFA Detailed Expenditure Type,CIPFA Detailed Expenditure Code,Date,Transaction Number,Net Amount,Supplier Name
Nottinghamshire County Council,1111/1001,Children and Young People,CYP,Employee Related,ABA,28/02/2020,11-16529,560.00,Fountaindale Special School
Nottinghamshire County Council,1111/1001,Children and Young People,CYP,Premises Related,BAA,04/02/2020,11-10171,3157.78,ARC Property Services Partnership L
Nottinghamshire County Council,1111/1001,Children and Young People,CYP,Premises Related,BAA,10/02/2020,11-11735,20396.48,ARC Property Services Partnership L
Nottinghamshire County Council,1111/1001,Children and Young People,CYP,Premises Related,BAA,19/02/2020,11-15410,11042.53,ARC Property Services Partnership L
Nottinghamshire County Council,1111/1001,Children and Young People,CYP,Premises Related,BAA,27/02/2020,11-16124,9460.71,ARC Property Services Partnership L
Nottinghamshire County Council,1111/1001,Children and Young People,CYP,Premises Related,BAA,28/02/2020,11-17699,"13,222.81",Lukes & Godwin Ltd
Nottinghamshire County Council,1111/1001,Children and Young People,CYP,Premises Related,BCA,03/02/2020,11-10141,"1,000.99",Contract Natural Gas Ltd (CNG)
Nottinghamshire County Council,1111/1001,Children and Young People,CYP,Premises Related,BCA,03/02/2020,11-10144,1986.63,Contract Natural Gas Ltd (CNG)
Nottinghamshire County Council,1111/1001,Children and Young People,CYP,Premises Related,BCA,24/02/2020,11-17619,592.02,Afterwood Ltd
Nottinghamshire County Council,1111/1001,Children and Young People,CYP,Premises Related,BCA,26/02/2020,11-17703,592.02,Afterwood Ltd
Nottinghamshire County Council,1111/1001,Children and Young People,CYP,Premises Related,BDA,04/02/2020,11-10003,650.00,Jillings Estates Ltd (Bramley Apple
Nottinghamshire County Council,1111/1001,Children and Young People,CYP,Premises Related,BDA,05/02/2020,11-16973,2578.5,Albert Hall Nottm Ltd
Nottinghamshire County Council,1111/1001,Children and Young People,CYP,Premises Related,BDA,10/02/2020,11-17199,3269.17,The Nottingham Belfry
Nottinghamshire County Council,1111/1001,Children and Young People,CYP,Premises Related,BDA,14/02/2020,11-17339,1400,Edale YHA
Nottinghamshire County Council,1111/1001,Children and Young People,CYP,Premises Related,BDA,25/02/2020,11-17461,"3,333.00",Liberty Leisure Ltd
Nottinghamshire County Council,1111/1001,Children and Young People,CYP,Premises Related,BDA,25/02/2020,11-17537,5942.4,Barnsley Premier Leisure
Nottinghamshire County Council,1111/1001,Children and Young People,CYP,Premises Related,BDA,26/02/2020,11-17064,1025,Compass Contract Services (U.K.) Lt
Nottinghamshire County Council,1111/1001,Children and Young People,CYP,Premises Related,BDA,26/02/2020,11-17615,2785.01,SLM Fitness & Health Ltd (Everyone
Nottinghamshire County Council,1111/1001,Children and Young People,CYP,Premises Related,BDA,28/02/2020,11-17106,765.4,Woodhead Enterprises Ltd
Nottinghamshire County Council,1111/1001,Children and Young People,CYP,Transport Related,CAA,24/02/2020,11-16001,1305,Via East Midlands Ltd
Nottinghamshire County Council,1111/1001,Children and Young People,CYP,Transport Related,CAA,24/02/2020,11-16029,594.51,Via East Midlands Ltd
Nottinghamshire County Council,1111/1001,Children and Young People,CYP,Transport Related,CCA,04/02/2020,11-10239,"3,253.45",Sharpes Of Nottingham
Nottinghamshire County Council,1111/1001,Children and Young People,CYP,Transport Related,CCA,04/02/2020,11-10247,3426.6,Sharpes Of Nottingham
Nottinghamshire County Council,1111/1001,Children and Young People,CYP,Transport Related,CCA,04/02/2020,11-10249,"3,388.30",Sharpes Of Nottingham
Nottinghamshire County Council,1111/1001,Children and Young People,CYP,Transport Related,CCA,04/02/2020,11-10253,3778.5,Sharpes Of Nottingham
Nottinghamshire County Council,1111/1001,Children and Young People,CYP,Transport Related,CCA,04/02/2020,11-10255,"4,238.30",Sharpes Of Nottingham
Nottinghamshire County Council,1111/1001,Children and Young People,CYP,Transport Related,CCA,04/02/2020,11-10257,"4,131.70",Sharpes Of Nottingham
Nottinghamshire County Council,1111/1001,Children and Young People,CYP,Transport Related,CCA,04/02/2020,11-10260,3589.8,Sharpes Of Nottingham
Nottinghamshire County Council,1111/1001,Children and Young People,CYP,Transport Related,CCA,04/02/2020,11-10264,"3,408.60",Sharpes Of Nottingham
Nottinghamshire County Council,1111/1001,Children and Young People,CYP,Transport Related,CCA,04/02/2020,11-10268,2375,Sharpes Of Nottingham
Nottinghamshire County Council,1111/1001,Children and Young People,CYP,Transport Related,CCA,04/02/2020,11-10271,2280,All Wayz Travel
Nottinghamshire County Council,1111/1001,Children and Young People,CYP,Transport Related,CCA,04/02/2020,11-10273,2600,All Wayz Travel
Nottinghamshire County Council,1111/1001,Children and Young People,CYP,Transport Related,CCA,04/02/2020,11-10277,"2,000.00",All Wayz Travel
Nottinghamshire County Council,1111/1001,Children and Young People,CYP,Transport Related,CCA,04/02/2020,11-10280,2626,All Wayz Travel
Nottinghamshire County Council,1111/1001,Children and Young People,CYP,Transport Related,CCA,04/02/2020,11-10282,2604,Arrow Specialised Transport Ltd
Nottinghamshire County Council,1111/1001,Children and Young People,CYP,Transport Related,CCA,04/02/2020,11-10285,1248.3,Arrow Specialised Transport Ltd
Nottinghamshire County Council,1111/1001,Children and Young People,CYP,Transport Related,CCA,04/02/2020,11-10288,2360.56,Arrow Specialised Transport Ltd
Nottinghamshire County Council,1111/1001,Children and Young People,CYP,Transport Related,CCA,04/02/2020,11-10290,"2,179.30",Arrow Specialised Transport Ltd
Nottinghamshire County Council,1111/1001,Children and Young People,CYP,Transport Related,CCA,04/02/2020,11-10291,"3,834.00",Arrow Specialised Transport Ltd
Nottinghamshire County Council,1111/1001,Children and Young People,CYP,Transport Related,CCA,04/02/2020,11-10292,2924.46,Arrow Specialised Transport Ltd
Nottinghamshire County Council,1111/1001,Children and Young People,CYP,Transport Related,CCA,04/02/2020,11-10295,"2,950.51",Arrow Specialised Transport Ltd
Nottinghamshire County Council,1111/1001,Children and Young People,CYP,Transport Related,CCA,04/02/2020,11-10297,"3,814.06",Arrow Specialised Transport Ltd
Nottinghamshire County Council,1111/1001,Children and Young People,CYP,Transport Related,CCA,04/02/2020,11-10298,"4,188.74",Arrow Specialised Transport Ltd
Nottinghamshire County Council,1111/1001,Children and Young People,CYP,Transport Related,CCA,04/02/2020,11-10300,2205.9,Arrow Specialised Transport Ltd
Nottinghamshire County Council,1111/1001,Children and Young People,CYP,Transport Related,CCA,04/02/2020,11-10302,"2,274.11",Arrow Specialised Transport Ltd
Nottinghamshire County Council,1111/1001,Children and Young People,CYP,Transport Related,CCA,04/02/2020,11-10305,3290.2,Arrow Specialised Transport Ltd
Nottinghamshire County Council,1111/1001,Children and Young People,CYP,Transport Related,CCA,04/02/2020,11-10307,"2,516.00",Arrow Specialised Transport Ltd
Nottinghamshire County Council,1111/1001,Children and Young People,CYP,Transport Related,CCA,04/02/2020,11-10309,2432,Arrow Specialised Transport Ltd
Nottinghamshire County Council,1111/1001,Children and Young People,CYP,Transport Related,CCA,04/02/2020,11-10311,3454.2,Arrow Specialised Transport Ltd
Nottinghamshire County Council,1111/1001,Children and Young People,CYP,Transport Related,CCA,04/02/2020,11-10313,2941.2,Arrow Specialised Transport Ltd
Nottinghamshire County Council,1111/1001,Children and Young People,CYP,Transport Related,CCA,04/02/2020,11-10315,"2,625.20",Arrow Specialised Transport Ltd
Nottinghamshire County Council,1111/1001,Children and Young People,CYP,Transport Related,CCA,04/02/2020,11-10317,"3,167.40",Arrow Specialised Transport Ltd
Nottinghamshire County Council,1111/1001,Children and Young People,CYP,Transport Related,CCA,04/02/2020,11-10320,"1,787.52",Arrow Specialised Transport Ltd
Nottinghamshire County Council,1111/1001,Children and Young People,CYP,Transport Related,CCA,04/02/2020,11-10324,2522,Arrow Specialised Transport Ltd
Nottinghamshire County Council,1111/1001,Children and Young People,CYP,Transport Related,CCA,04/02/2020,11-10326,"2,516.00",Arrow Specialised Transport Ltd
Nottinghamshire County Council,1111/1001,Children and Young People,CYP,Transport Related,CCA,04/02/2020,11-10329,"3,468.40",Arrow Specialised Transport Ltd
Nottinghamshire County Council,1111/1001,Children and Young People,CYP,Transport Related,CCA,04/02/2020,11-10330,3364,Arrow Specialised Transport Ltd
Nottinghamshire County Council,1111/1001,Children and Young People,CYP,Transport Related,CCA,04/02/2020,11-10331,2691,Arrow Specialised Transport Ltd
Nottinghamshire County Council,1111/1001,Children and Young People,CYP,Transport Related,CCA,04/02/2020,11-10334,2892,Arrow Specialised Transport Ltd
Nottinghamshire County Council,1111/1001,Children and Young People,CYP,Transport Related,CCA,04/02/2020,11-10339,"2,420.40",Arrow Specialised Transport Ltd
Nottinghamshire County Council,1111/1001,Children and Young People,CYP,Transport Related,CCA,04/02/2020,11-10341,"3,013.60",Arrow Specialised Transport Ltd
Nottinghamshire County Council,1111/1001,Children and Young People,CYP,Transport Related,CCA,04/02/2020,11-10343,2448,Arrow Specialised Transport Ltd
Nottinghamshire County Council,1111/1001,Children and Young People,CYP,Transport Related,CCA,04/02/2020,11-10345,"1,716.00",Arrow Specialised Transport Ltd
Nottinghamshire County Council,1111/1001,Children and Young People,CYP,Transport Related,CCA,04/02/2020,11-10347,"2,068.00",Arrow Specialised Transport Ltd
Nottinghamshire County Council,1111/1001,Children and Young People,CYP,Transport Related,CCA,04/02/2020,11-10348,2565.6,Arrow Specialised Transport Ltd
Nottinghamshire County Council,1111/1001,Children and Young People,CYP,Transport Related,CCA,04/02/2020,11-10350,"2,637.60",Arrow Specialised Transport Ltd
Nottinghamshire County Council,1111/1001,Children and Young People,CYP,Transport Related,CCA,04/02/2020,11-10352,2686,Arrow Specialised Transport Ltd
Nottinghamshire County Council,1111/1001,Children and Young People,CYP,Transport Related,CCA,04/02/2020,11-10354,2578.8,Arrow Specialised Transport Ltd
Nottinghamshire County Council,1111/1001,Children and Young People,CYP,Transport Related,CCA,04/02/2020,11-10356,"3,508.00",Arrow Specialised Transport Ltd
Nottinghamshire County Council,1111/1001,Children and Young People,CYP,Transport Related,CCA,04/02/2020,11-10358,2934.8,Arrow Specialised Transport Ltd
Nottinghamshire County Council,1111/1001,Children and Young People,CYP,Transport Related,CCA,04/02/2020,11-10360,"2,420.00",Arrow Specialised Transport Ltd
Nottinghamshire County Council,1111/1001,Children and Young People,CYP,Transport Related,CCA,04/02/2020,11-10362,1840,Arrow Specialised Transport Ltd
Nottinghamshire County Council,1111/1001,Children and Young People,CYP,Transport Related,CCA,04/02/2020,11-10367,"2,735.00",Arrow Specialised Transport Ltd
Nottinghamshire County Council,1111/1001,Children and Young People,CYP,Transport Related,CCA,04/02/2020,11-10368,3217.6,Arrow Specialised Transport Ltd
Nottinghamshire County Council,1111/1001,Children and Young People,CYP,Transport Related,CCA,04/02/2020,11-10370,2274,Arrow Specialised Transport Ltd
Nottinghamshire County Council,1111/1001,Children and Young People,CYP,Transport Related,CCA,04/02/2020,11-10373,3116.8,Arrow Specialised Transport Ltd
Nottinghamshire County Council,1111/1001,Children and Young People,CYP,Transport Related,CCA,04/02/2020,11-10374,"8,130.00",Arrow Specialised Transport Ltd
Nottinghamshire County Council,1111/1001,Children and Young People,CYP,Transport Related,CCA,04/02/2020,11-10377,4904,Arrow Specialised Transport Ltd
Nottinghamshire County Council,1111/1001,Children and Young People,CYP,Transport Related,CCA,04/02/2020,11-10379,"3,407.20",Arrow Specialised Transport Ltd
Nottinghamshire County Council,1111/1001,Children and Young People,CYP,Transport Related,CCA,04/02/2020,11-10381,4840.4,Arrow Specialised Transport Ltd
Nottinghamshire County Council,1111/1001,Children and Young People,CYP,Transport Related,CCA,04/02/2020,11-10383,4478,Arrow Specialised Transport Ltd
Nottinghamshire County Council,1111/1001,Children and Young People,CYP,Transport Related,CCA,04/02/2020,11-10385,1995,Arrow Specialised Transport Ltd
Nottinghamshire County Council,1111/1001,Children and Young People,CYP,Transport Related,CCA,04/02/2020,11-10388,1873.5,Arrow Specialised Transport Ltd
Nottinghamshire County Council,1111/1001,Children and Young People,CYP,Transport Related,CCA,04/02/2020,11-10390,1807.2,Arrow Specialised Transport Ltd
Nottinghamshire County Council,1111/1001,Children and Young People,CYP,Transport Related,CCA,04/02/2020,11-10392,1525.5,Arrow Specialised Transport Ltd
Nottinghamshire County Council,1111/1001,Children and Young People,CYP,Transport Related,CCA,04/02/2020,11-10398,"1,843.50",Arrow Specialised Transport Ltd
Nottinghamshire County Council,1111/1001,Children and Young People,CYP,Transport Related,CCA,04/02/2020,11-10402,"2,319.00",Arrow Specialised Transport Ltd
Nottinghamshire County Council,1111/1001,Children and Young People,CYP,Transport Related,CCA,04/02/2020,11-10403,2017.5,Arrow Specialised Transport Ltd
Nottinghamshire County Council,1111/1001,Children and Young People,CYP,Transport Related,CCA,04/02/2020,11-10405,"2,023.20",Arrow Specialised Transport Ltd
Nottinghamshire County Council,1111/1001,Children and Young People,CYP,Transport Related,CCA,04/02/2020,11-10411,3222,Arrow Specialised Transport Ltd
Nottinghamshire County Council,1111/1001,Children and Young People,CYP,Transport Related,CCA,04/02/2020,11-10413,"2,616.00",Arrow Specialised Transport Ltd
Nottinghamshire County Council,1111/1001,Children and Young People,CYP,Transport Related,CCA,04/02/2020,11-10414,"2,196.00",Arrow Specialised Transport Ltd
Nottinghamshire County Council,1111/1001,Children and Young People,CYP,Transport Related,CCA,04/02/2020,11-10416,5890,Arrow Specialised Transport Ltd
Nottinghamshire County Council,1111/1001,Children and Young People,CYP,Transport Related,CCA,04/02/2020,11-10418,"2,182.40",Arrow Specialised Transport Ltd
Nottinghamshire County Council,1111/1001,Children and Young People,CYP,Transport Related,CCA,04/02/2020,11-10420,2680,Arrow Specialised Transport Ltd
Nottinghamshire County Council,1111/1001,Children and Young People,CYP,Transport Related,CCA,04/02/2020,11-10422,2980,Arrow Specialised Transport Ltd
Nottinghamshire County Council,1111/1001,Children and Young People,CYP,Transport Related,CCA,04/02/2020,11-10425,2655,Arrow Specialised Transport Ltd
Nottinghamshire County Council,1111/1001,Children and Young People,CYP,Transport Related,CCA,04/02/2020,11-10427,"4,372.00",Arrow Specialised Transport Ltd
Nottinghamshire County Council,1111/1001,Children and Young People,CYP,Transport Related,CCA,04/02/2020,11-10429,2316,Arrow Specialised Transport Ltd
Nottinghamshire County Council,1111/1001,Children and Young People,CYP,Transport Related,CCA,04/02/2020,11-10432,2856,Arrow Specialised Transport Ltd
Nottinghamshire County Council,1111/1001,Children and Young People,CYP,Transport Related,CCA,04/02/2020,11-10434,2566,Arrow Specialised Transport Ltd
Nottinghamshire County Council,1111/1001,Children and Young People,CYP,Transport Related,CCA,04/02/2020,11-10436,2457.6,Arrow Specialised Transport Ltd
Nottinghamshire County Council,1111/1001,Children and Young People,CYP,Transport Related,CCA,04/02/2020,11-10438,"2,773.40",Arrow Specialised Transport Ltd
Nottinghamshire County Council,1111/1001,Children and Young People,CYP,Transport Related,CCA,04/02/2020,11-10440,"2,700.00",Arrow Specialised Transport Ltd
Nottinghamshire County Council,1111/1001,Children and Young People,CYP,Transport Related,CCA,04/02/2020,11-10442,3718.2,Arrow Specialised Transport Ltd
Nottinghamshire County Council,1111/1001,Children and Young People,CYP,Transport Related,CCA,04/02/2020,11-10470,"4,080.82",Bridges Transport Ltd
Nottinghamshire County Council,1111/1001,Children and Young People,CYP,Transport Related,CCA,04/02/2020,11-10479,"1,303.89",Bridges Transport Ltd
Nottinghamshire County Council,1111/1001,Children and Young People,CYP,Transport Related,CCA,04/02/2020,11-10490,"3,173.60",Bridges Transport Ltd
Nottinghamshire County Council,1111/1001,Children and Young People,CYP,Transport Related,CCA,04/02/2020,11-10494,2099.52,Bridges Transport Ltd
Nottinghamshire County Council,1111/1001,Children and Young People,CYP,Transport Related,CCA,04/02/2020,11-10498,"2,940.00",Bridges Transport Ltd
Nottinghamshire County Council,1111/1001,Children and Young People,CYP,Transport Related,CCA,04/02/2020,11-10503,2339.47,Bridges Transport Ltd
Nottinghamshire County Council,1111/1001,Children and Young People,CYP,Transport Related,CCA,04/02/2020,11-10507,"2,980.00",Bridges Transport Ltd
Nottinghamshire County Council,1111/1001,Children and Young People,CYP,Transport Related,CCA,04/02/2020,11-10536,2470,Abacus Cars
Nottinghamshire County Council,1111/1001,Children and Young People,CYP,Transport Related,CCA,04/02/2020,11-10537,800,Abacus Cars
Nottinghamshire County Council,1111/1001,Children and Young People,CYP,Transport Related,CCA,04/02/2020,11-10538,1456.8,Abacus Cars
Nottinghamshire County Council,1111/1001,Children and Young People,CYP,Transport Related,CCA,04/02/2020,11-10541,"1,695.60",Abacus Cars
Nottinghamshire County Council,1111/1001,Children and Young People,CYP,Transport Related,CCA,04/02/2020,11-10545,933.39,Abacus Cars
Nottinghamshire County Council,1111/1001,Children and Young People,CYP,Transport Related,CCA,04/02/2020,11-10548,"2,000.00",Abacus Cars
Nottinghamshire County Council,1111/1001,Children and Young People,CYP,Transport Related,CCA,04/02/2020,11-10550,2200,Abacus Cars
Nottinghamshire County Council,1111/1001,Children and Young People,CYP,Transport Related,CCA,04/02/2020,11-10551,"3,570.00",Abacus Cars
Nottinghamshire County Council,1111/1001,Children and Young People,CYP,Transport Related,CCA,04/02/2020,11-10552,"2,600.00",Abacus Cars
Nottinghamshire County Council,1111/1001,Children and Young People,CYP,Transport Related,CCA,04/02/2020,11-10553,2828,Abacus Cars
Nottinghamshire County Council,1111/1001,Children and Young People,CYP,Transport Related,CCA,04/02/2020,11-10570,3152.8,Nottingham Minibuses & Coaches
Nottinghamshire County Council,1111/1001,Children and Young People,CYP,Transport Related,CCA,04/02/2020,11-10580,2014.8,Nottingham Minibuses & Coaches
Nottinghamshire County Council,1111/1001,Children and Young People,CYP,Transport Related,CCA,04/02/2020,11-10606,"2,980.00",Aj Travel
Nottinghamshire County Council,1111/1001,Children and Young People,CYP,Transport Related,CCA,04/02/2020,11-10607,"2,100.00",Travel Liner
Nottinghamshire County Council,1111/1001,Children and Young People,CYP,Transport Related,CCA,04/02/2020,11-10612,3012,Target Taxis
Nottinghamshire County Council,1111/1001,Children and Young People,CYP,Transport Related,CCA,04/02/2020,11-10622,"1,450.00",Sean's Taxi Services
Nottinghamshire County Council,1111/1001,Children and Young People,CYP,Transport Related,CCA,04/02/2020,11-10628,"1,725.60",A Travel
Nottinghamshire County Council,1111/1001,Children and Young People,CYP,Transport Related,CCA,04/02/2020,11-10644,3360,Unity Coaches Ltd
Nottinghamshire County Council,1111/1001,Children and Young People,CYP,Transport Related,CCA,06/02/2020,11-11538,"3,281.49",Taxicover Uk Ltd
Nottinghamshire County Council,1111/1001,Children and Young People,CYP,Transport Related,CCA,06/02/2020,11-11539,4068.28,Taxicover Uk Ltd
Nottinghamshire County Council,1111/1001,Children and Young People,CYP,Transport Related,CCA,06/02/2020,11-11540,2140,Taxicover Uk Ltd
Nottinghamshire County Council,1111/1001,Children and Young People,CYP,Transport Related,CCA,06/02/2020,11-11541,"2,160.00",Taxicover Uk Ltd
Nottinghamshire County Council,1111/1001,Children and Young People,CYP,Transport Related,CCA,06/02/2020,11-11542,1640,Taxicover Uk Ltd
Nottinghamshire County Council,1111/1001,Children and Young People,CYP,Transport Related,CCA,06/02/2020,11-11545,"3,191.60",Taxicover Uk Ltd
Nottinghamshire County Council,1111/1001,Children and Young People,CYP,Transport Related,CCA,06/02/2020,11-11546,2383.6,Taxicover Uk Ltd
Nottinghamshire County Council,1111/1001,Children and Young People,CYP,Transport Related,CCA,06/02/2020,11-11547,"4,110.80",Taxicover Uk Ltd
Nottinghamshire County Council,1111/1001,Children and Young People,CYP,Transport Related,CCA,06/02/2020,11-11548,3865,Taxicover Uk Ltd
Nottinghamshire County Council,1111/1001,Children and Young People,CYP,Transport Related,CCA,06/02/2020,11-11549,3514.8,Taxicover Uk Ltd
Nottinghamshire County Council,1111/1001,Children and Young People,CYP,Transport Related,CCA,06/02/2020,11-11550,3653.8,Taxicover Uk Ltd
Nottinghamshire County Council,1111/1001,Children and Young People,CYP,Transport Related,CCA,06/02/2020,11-11551,"3,251.60",Taxicover Uk Ltd
Nottinghamshire County Council,1111/1001,Children and Young People,CYP,Transport Related,CCA,06/02/2020,11-11552,3272.4,Taxicover Uk Ltd
Nottinghamshire County Council,1111/1001,Children and Young People,CYP,Transport Related,CCA,06/02/2020,11-11553,"3,999.60",Taxicover Uk Ltd
Nottinghamshire County Council,1111/1001,Children and Young People,CYP,Transport Related,CCA,06/02/2020,11-11554,1615,Southside Cars Ltd
Nottinghamshire County Council,1111/1001,Children and Young People,CYP,Transport Related,CCA,06/02/2020,11-11555,1898.8,Southside Cars Ltd
Nottinghamshire County Council,1111/1001,Children and Young People,CYP,Transport Related,CCA,06/02/2020,11-11556,2340,Southside Cars Ltd
Nottinghamshire County Council,1111/1001,Children and Young People,CYP,Transport Related,CCA,06/02/2020,11-11557,2380,Southside Cars Ltd
Nottinghamshire County Council,1111/1001,Children and Young People,CYP,Transport Related,CCA,06/02/2020,11-11558,1750.4,Southside Cars Ltd
Nottinghamshire County Council,1111/1001,Children and Young People,CYP,Transport Related,CCA,06/02/2020,11-11559,1879.1,Southside Cars Ltd
Nottinghamshire County Council,1111/1001,Children and Young People,CYP,Transport Related,CCA,06/02/2020,11-11560,3040,Southside Cars Ltd
Nottinghamshire County Council,1111/1001,Children and Young People,CYP,Transport Related,CCA,06/02/2020,11-11561,1237.6,Southside Cars Ltd
Nottinghamshire County Council,1111/1001,Children and Young People,CYP,Transport Related,CCA,06/02/2020,11-11562,960,Southside Cars Ltd
Nottinghamshire County Council,1111/1001,Children and Young People,CYP,Transport Related,CCA,06/02/2020,11-11567,2080,Southside Cars Ltd
Nottinghamshire County Council,1111/1001,Children and Young People,CYP,Transport Related,CCA,06/02/2020,11-11568,956.4,Southside Cars Ltd
Nottinghamshire County Council,1111/1001,Children and Young People,CYP,Transport Related,CCA,06/02/2020,11-11569,2256.44,Southside Cars Ltd
Nottinghamshire County Council,1111/1001,Children and Young People,CYP,Transport Related,CCA,06/02/2020,11-11570,1824,Southside Cars Ltd
Nottinghamshire County Council,1111/1001,Children and Young People,CYP,Transport Related,CCA,06/02/2020,11-11571,3382,Southside Cars Ltd
Nottinghamshire County Council,1111/1001,Children and Young People,CYP,Transport Related,CCA,06/02/2020,11-11572,665,6 Five 2s
Nottinghamshire County Council,1111/1001,Children and Young People,CYP,Transport Related,CCA,06/02/2020,11-11574,1919,6 Five 2s
Nottinghamshire County Council,1111/1001,Children and Young People,CYP,Transport Related,CCA,06/02/2020,11-11575,2222,6 Five 2s
Nottinghamshire County Council,1111/1001,Children and Young People,CYP,Transport Related,CCA,06/02/2020,11-11576,1801.8,6 Five 2s
Nottinghamshire County Council,1111/1001,Children and Young People,CYP,Transport Related,CCA,06/02/2020,11-11577,1880,6 Five 2s
Nottinghamshire County Council,1111/1001,Children and Young People,CYP,Transport Related,CCA,06/02/2020,11-11578,1100,6 Five 2s
Nottinghamshire County Council,1111/1001,Children and Young People,CYP,Transport Related,CCA,06/02/2020,11-11579,680,6 Five 2s
Nottinghamshire County Council,1111/1001,Children and Young People,CYP,Transport Related,CCA,06/02/2020,11-11580,881.6,6 Five 2s
Nottinghamshire County Council,1111/1001,Children and Young People,CYP,Transport Related,CCA,06/02/2020,11-11581,3403.2,Glenn Ryder Coaches
Nottinghamshire County Council,1111/1001,Children and Young People,CYP,Transport Related,CCA,06/02/2020,11-11582,3600,Glenn Ryder Coaches
Nottinghamshire County Council,1111/1001,Children and Young People,CYP,Transport Related,CCA,06/02/2020,11-11588,1760,200 Cars Ltd
Nottinghamshire County Council,1111/1001,Children and Young People,CYP,Transport Related,CCA,06/02/2020,11-11589,1520,200 Cars Ltd
Nottinghamshire County Council,1111/1001,Children and Young People,CYP,Transport Related,CCA,06/02/2020,11-11591,1727.1,Alpha Cars
Nottinghamshire County Council,1111/1001,Children and Young People,CYP,Transport Related,CCA,06/02/2020,11-11592,2763.36,Alpha Cars
Nottinghamshire County Council,1111/1001,Children and Young People,CYP,Transport Related,CCA,06/02/2020,11-11593,2666.4,Alpha Cars
Nottinghamshire County Council,1111/1001,Children and Young People,CYP,Transport Related,CCA,06/02/2020,11-11594,2468,Alpha Cars
Nottinghamshire County Council,1111/1001,Children and Young People,CYP,Transport Related,CCA,06/02/2020,11-11595,1700,Alpha Cars
Nottinghamshire County Council,1111/1001,Children and Young People,CYP,Transport Related,CCA,06/02/2020,11-11596,1960,Alpha Cars
Nottinghamshire County Council,1111/1001,Children and Young People,CYP,Transport Related,CCA,06/02/2020,11-11597,1986.12,Alpha Cars
Nottinghamshire County Council,1111/1001,Children and Young People,CYP,Transport Related,CCA,06/02/2020,11-11598,1588.4,Alpha Cars
Nottinghamshire County Council,1111/1001,Children and Young People,CYP,Transport Related,CCA,06/02/2020,11-11600,1090.32,Alpha Cars
Nottinghamshire County Council,1111/1001,Children and Young People,CYP,Transport Related,CCA,06/02/2020,11-11606,15230.02,Erewash Community Transport
Nottinghamshire County Council,1111/1001,Children and Young People,CYP,Transport Related,CCA,06/02/2020,11-11607,980,Fozcabs Newark Taxis
Nottinghamshire County Council,1111/1001,Children and Young People,CYP,Transport Related,CCA,06/02/2020,11-11608,1705,Fozcabs Newark Taxis
Nottinghamshire County Council,1111/1001,Children and Young People,CYP,Transport Related,CCA,06/02/2020,11-11609,1080,Fozcabs Newark Taxis
Nottinghamshire County Council,1111/1001,Children and Young People,CYP,Transport Related,CCA,06/02/2020,11-11610,1840,Fozcabs Newark Taxis
Nottinghamshire County Council,1111/1001,Children and Young People,CYP,Transport Related,CCA,06/02/2020,11-11611,1000,Fozcabs Newark Taxis
Nottinghamshire County Council,1111/1001,Children and Young People,CYP,Transport Related,CCA,06/02/2020,11-11613,2840,Fozcabs Newark Taxis
Nottinghamshire County Council,1111/1001,Children and Young People,CYP,Transport Related,CCA,06/02/2020,11-11614,1920,Fozcabs Newark Taxis
Nottinghamshire County Council,1111/1001,Children and Young People,CYP,Transport Related,CCA,06/02/2020,11-11615,2500,Fozcabs Newark Taxis
Nottinghamshire County Council,1111/1001,Children and Young People,CYP,Transport Related,CCA,06/02/2020,11-11616,2120,Fozcabs Newark Taxis
Nottinghamshire County Council,1111/1001,Children and Young People,CYP,Transport Related,CCA,06/02/2020,11-11618,744.2,Galaxy Cabs Ltd
Nottinghamshire County Council,1111/1001,Children and Young People,CYP,Transport Related,CCA,06/02/2020,11-11621,656.1,Galaxy Cabs Ltd
Nottinghamshire County Council,1111/1001,Children and Young People,CYP,Transport Related,CCA,06/02/2020,11-11625,1960,Galaxy Cabs Ltd
Nottinghamshire County Council,1111/1001,Children and Young People,CYP,Transport Related,CCA,06/02/2020,11-11626,2092.5,Galaxy Cabs Ltd
Nottinghamshire County Council,1111/1001,Children and Young People,CYP,Transport Related,CCA,06/02/2020,11-11628,2955.26,Horizon Travel
Nottinghamshire County Council,1111/1001,Children and Young People,CYP,Transport Related,CCA,06/02/2020,11-11629,3415.82,Vallances Coaches
Nottinghamshire County Council,1111/1001,Children and Young People,CYP,Transport Related,CCA,06/02/2020,11-11630,3339.06,Vallances Coaches
Nottinghamshire County Council,1111/1001,Children and Young People,CYP,Transport Related,CCA,06/02/2020,11-11631,3415.82,Vallances Coaches
Nottinghamshire County Council,1111/1001,Children and Young People,CYP,Transport Related,CCA,06/02/2020,11-11632,2747,Vallances Coaches
Nottinghamshire County Council,1111/1001,Children and Young People,CYP,Transport Related,CCA,06/02/2020,11-11633,3724,Vallances Coaches
Nottinghamshire County Council,1111/1001,Children and Young People,CYP,Transport Related,CCA,06/02/2020,11-11634,950,Elkingtons Park Garage
Nottinghamshire County Council,1111/1001,Children and Young People,CYP,Transport Related,CCA,06/02/2020,11-11635,2665.51,K & S Coaches
Nottinghamshire County Council,1111/1001,Children and Young People,CYP,Transport Related,CCA,06/02/2020,11-11636,2920.6,Midfield Travel
Nottinghamshire County Council,1111/1001,Children and Young People,CYP,Transport Related,CCA,06/02/2020,11-11637,1449.63,Midfield Travel
Nottinghamshire County Council,1111/1001,Children and Young People,CYP,Transport Related,CCA,06/02/2020,11-11639,2200,K & R Cars
Nottinghamshire County Council,1111/1001,Children and Young People,CYP,Transport Related,CCA,06/02/2020,11-11640,2165,Marshalls Of Sutton On Trent Ltd
Nottinghamshire County Council,1111/1001,Children and Young People,CYP,Transport Related,CCA,06/02/2020,11-11645,3551.8,Marshalls Of Sutton On Trent Ltd
Nottinghamshire County Council,1111/1001,Children and Young People,CYP,Transport Related,CCA,06/02/2020,11-11648,2033.56,Marshalls Of Sutton On Trent Ltd
Nottinghamshire County Council,1111/1001,Children and Young People,CYP,Transport Related,CCA,06/02/2020,11-11650,3500,Marshalls Of Sutton On Trent Ltd
Nottinghamshire County Council,1111/1001,Children and Young People,CYP,Transport Related,CCA,06/02/2020,11-11651,4880,Marshalls Of Sutton On Trent Ltd
Nottinghamshire County Council,1111/1001,Children and Young People,CYP,Transport Related,CCA,06/02/2020,11-11653,2046.2,Marshalls Of Sutton On Trent Ltd
Nottinghamshire County Council,1111/1001,Children and Young People,CYP,Transport Related,CCA,06/02/2020,11-11654,1380,Meden Travel
Nottinghamshire County Council,1111/1001,Children and Young People,CYP,Transport Related,CCA,06/02/2020,11-11658,4000,C W Moxon Ltd
Nottinghamshire County Council,1111/1001,Children and Young People,CYP,Transport Related,CCA,06/02/2020,11-11660,11675,C W Moxon Ltd
Nottinghamshire County Council,1111/1001,Children and Young People,CYP,Transport Related,CCA,06/02/2020,11-11661,3133,L A Travel
Nottinghamshire County Council,1111/1001,Children and Young People,CYP,Transport Related,CCA,06/02/2020,11-11662,8472,Nottingham Coaches
Nottinghamshire County Council,1111/1001,Children and Young People,CYP,Transport Related,CCA,06/02/2020,11-11663,11625.6,Nottingham Coaches
Nottinghamshire County Council,1111/1001,Children and Young People,CYP,Transport Related,CCA,06/02/2020,11-11664,2393.81,Nottingham Coaches
Nottinghamshire County Council,1111/1001,Children and Young People,CYP,Transport Related,CCA,06/02/2020,11-11665,2012,Nottingham Coaches
Nottinghamshire County Council,1111/1001,Children and Young People,CYP,Transport Related,CCA,06/02/2020,11-11668,960,D Bull T/A DB Cabs
Nottinghamshire County Council,1111/1001,Children and Young People,CYP,Transport Related,CCA,06/02/2020,11-11669,2375,Trevor Bailey t/a Trevor Bailey Tra
Nottinghamshire County Council,1111/1001,Children and Young People,CYP,Transport Related,CCA,06/02/2020,11-11670,3213.3,Hammonds Coaches Ltd
Nottinghamshire County Council,1111/1001,Children and Young People,CYP,Transport Related,CCA,06/02/2020,11-11671,3160,Hammonds Coaches Ltd
Nottinghamshire County Council,1111/1001,Children and Young People,CYP,Transport Related,CCA,06/02/2020,11-11672,3300,Hammonds Coaches Ltd
Nottinghamshire County Council,1111/1001,Children and Young People,CYP,Transport Related,CCA,06/02/2020,11-11673,2089.2,Hammonds Coaches Ltd
Nottinghamshire County Council,1111/1001,Children and Young People,CYP,Transport Related,CCA,06/02/2020,11-11674,2800,Hammonds Coaches Ltd
Nottinghamshire County Council,1111/1001,Children and Young People,CYP,Transport Related,CCA,06/02/2020,11-11675,727.2,Shiny Sky Ltd T/A Arrow Cars
Nottinghamshire County Council,1111/1001,Children and Young People,CYP,Transport Related,CCA,06/02/2020,11-11676,720,Shiny Sky Ltd T/A Arrow Cars
Nottinghamshire County Council,1111/1001,Children and Young People,CYP,Transport Related,CCA,06/02/2020,11-11677,725.4,Shiny Sky Ltd T/A Arrow Cars
Nottinghamshire County Council,1111/1001,Children and Young People,CYP,Transport Related,CCA,06/02/2020,11-11678,1728,Shiny Sky Ltd T/A Arrow Cars
Nottinghamshire County Council,1111/1001,Children and Young People,CYP,Transport Related,CCA,06/02/2020,11-11679,528,Ideal Cars (Private Hire) Ltd
Nottinghamshire County Council,1111/1001,Children and Young People,CYP,Transport Related,CCA,06/02/2020,11-11680,610,Ideal Cars (Private Hire) Ltd
Nottinghamshire County Council,1111/1001,Children and Young People,CYP,Transport Related,CCA,06/02/2020,11-11681,540,Ideal Cars (Private Hire) Ltd
Nottinghamshire County Council,1111/1001,Children and Young People,CYP,Transport Related,CCA,06/02/2020,11-11682,2340,Ideal Cars (Private Hire) Ltd
Nottinghamshire County Council,1111/1001,Children and Young People,CYP,Transport Related,CCA,06/02/2020,11-11683,969,Ideal Cars (Private Hire) Ltd
Nottinghamshire County Council,1111/1001,Children and Young People,CYP,Transport Related,CCA,06/02/2020,11-11684,1322,Ideal Cars (Private Hire) Ltd
Nottinghamshire County Council,1111/1001,Children and Young People,CYP,Transport Related,CCA,06/02/2020,11-11685,700,Reliable Cars Ltd
Nottinghamshire County Council,1111/1001,Children and Young People,CYP,Transport Related,CCA,06/02/2020,11-11686,1132.2,Reliable Cars Ltd
Nottinghamshire County Council,1111/1001,Children and Young People,CYP,Transport Related,CCA,06/02/2020,11-11688,1104,Reliable Cars Ltd
Nottinghamshire County Council,1111/1001,Children and Young People,CYP,Transport Related,CCA,06/02/2020,11-11689,1100,Gxpress Cars
Nottinghamshire County Council,1111/1001,Children and Young People,CYP,Transport Related,CCA,06/02/2020,11-11691,3830.62,Millennium Travel (Mansfield) Ltd
Nottinghamshire County Council,1111/1001,Children and Young People,CYP,Transport Related,CCA,06/02/2020,11-11693,3760,Millennium Travel (Mansfield) Ltd
Nottinghamshire County Council,1111/1001,Children and Young People,CYP,Transport Related,CCA,06/02/2020,11-11694,1569.4,AJ's Taxis
Nottinghamshire County Council,1111/1001,Children and Young People,CYP,Transport Related,CCA,06/02/2020,11-11695,1030,AJ's Taxis
Nottinghamshire County Council,1111/1001,Children and Young People,CYP,Transport Related,CCA,06/02/2020,11-11696,3008,APC Travel
Nottinghamshire County Council,1111/1001,Children and Young People,CYP,Transport Related,CCA,07/02/2020,11-10635,564,Cloud Cars Ltd
Nottinghamshire County Council,1111/1001,Children and Young People,CYP,Transport Related,CCA,07/02/2020,11-10638,846,Cloud Cars Ltd
Nottinghamshire County Council,1111/1001,Children and Young People,CYP,Transport Related,CCA,11/02/2020,11-11969,552,Alert Cars Ltd
Nottinghamshire County Council,1111/1001,Children and Young People,CYP,Transport Related,CCA,11/02/2020,11-11970,615.6,Alert Cars Ltd
Nottinghamshire County Council,1111/1001,Children and Young People,CYP,Transport Related,CCA,11/02/2020,11-11971,604,Alert Cars Ltd
Nottinghamshire County Council,1111/1001,Children and Young People,CYP,Transport Related,CCA,11/02/2020,11-11972,1600,Alert Cars Ltd
Nottinghamshire County Council,1111/1001,Children and Young People,CYP,Transport Related,CCA,11/02/2020,11-11973,2040,Alert Cars Ltd
Nottinghamshire County Council,1111/1001,Children and Young People,CYP,Transport Related,CCA,11/02/2020,11-11974,1302.56,Alert Cars Ltd
Nottinghamshire County Council,1111/1001,Children and Young People,CYP,Transport Related,CCA,11/02/2020,11-11975,2272.97,Southside Cars Ltd
Nottinghamshire County Council,1111/1001,Children and Young People,CYP,Transport Related,CCA,11/02/2020,11-11976,1472,Southside Cars Ltd
Nottinghamshire County Council,1111/1001,Children and Young People,CYP,Transport Related,CCA,11/02/2020,11-11979,1123.56,Southside Cars Ltd
Nottinghamshire County Council,1111/1001,Children and Young People,CYP,Transport Related,CCA,11/02/2020,11-11980,1045,Southside Cars Ltd
Nottinghamshire County Council,1111/1001,Children and Young People,CYP,Transport Related,CCA,11/02/2020,11-11981,1699,Southside Cars Ltd
Nottinghamshire County Council,1111/1001,Children and Young People,CYP,Transport Related,CCA,11/02/2020,11-11982,782,Southside Cars Ltd
Nottinghamshire County Council,1111/1001,Children and Young People,CYP,Transport Related,CCA,11/02/2020,11-11983,1980.18,Southside Cars Ltd
Nottinghamshire County Council,1111/1001,Children and Young People,CYP,Transport Related,CCA,11/02/2020,11-11984,2563.5,Southside Cars Ltd
Nottinghamshire County Council,1111/1001,Children and Young People,CYP,Transport Related,CCA,11/02/2020,11-11985,1543.16,Southside Cars Ltd
Nottinghamshire County Council,1111/1001,Children and Young People,CYP,Transport Related,CCA,11/02/2020,11-11987,1636.2,Central Cars Nottm Ltd
Nottinghamshire County Council,1111/1001,Children and Young People,CYP,Transport Related,CCA,11/02/2020,11-11988,1260,Central Cars Nottm Ltd
Nottinghamshire County Council,1111/1001,Children and Young People,CYP,Transport Related,CCA,11/02/2020,11-11989,1960,Central Cars Nottm Ltd
Nottinghamshire County Council,1111/1001,Children and Young People,CYP,Transport Related,CCA,11/02/2020,11-11991,2203.2,F4Control Ltd (t/a First4care)
Nottinghamshire County Council,1111/1001,Children and Young People,CYP,Transport Related,CCA,11/02/2020,11-11992,2361.2,F4Control Ltd (t/a First4care)
Nottinghamshire County Council,1111/1001,Children and Young People,CYP,Transport Related,CCA,11/02/2020,11-11993,2386.8,F4Control Ltd (t/a First4care)
Nottinghamshire County Council,1111/1001,Children and Young People,CYP,Transport Related,CCA,11/02/2020,11-11994,2175,F4Control Ltd (t/a First4care)
Nottinghamshire County Council,1111/1001,Children and Young People,CYP,Transport Related,CCA,11/02/2020,11-11995,2420.8,F4Control Ltd (t/a First4care)
Nottinghamshire County Council,1111/1001,Children and Young People,CYP,Transport Related,CCA,11/02/2020,11-11996,2179.8,F4Control Ltd (t/a First4care)
Nottinghamshire County Council,1111/1001,Children and Young People,CYP,Transport Related,CCA,11/02/2020,11-11997,2475,F4Control Ltd (t/a First4care)
Nottinghamshire County Council,1111/1001,Children and Young People,CYP,Transport Related,CCA,11/02/2020,11-11998,4700,Johnson Bros Tours Ltd
Nottinghamshire County Council,1111/1001,Children and Young People,CYP,Transport Related,CCA,11/02/2020,11-11999,3900,Johnson Bros Tours Ltd
Nottinghamshire County Council,1111/1001,Children and Young People,CYP,Transport Related,CCA,11/02/2020,11-12000,3041.52,Martins Travel
Nottinghamshire County Council,1111/1001,Children and Young People,CYP,Transport Related,CCA,11/02/2020,11-12001,1382,Ace Of Mansfield Ltd
Nottinghamshire County Council,1111/1001,Children and Young People,CYP,Transport Related,CCA,11/02/2020,11-12002,660,Ace Of Mansfield Ltd
Nottinghamshire County Council,1111/1001,Children and Young People,CYP,Transport Related,CCA,11/02/2020,11-12003,1151.4,Ace Of Mansfield Ltd
Nottinghamshire County Council,1111/1001,Children and Young People,CYP,Transport Related,CCA,11/02/2020,11-12004,3412,Ace Of Mansfield Ltd
Nottinghamshire County Council,1111/1001,Children and Young People,CYP,Transport Related,CCA,11/02/2020,11-12005,2800,Arnold Acorn Travel
Nottinghamshire County Council,1111/1001,Children and Young People,CYP,Transport Related,CCA,11/02/2020,11-12006,880,Acorn Contracts
Nottinghamshire County Council,1111/1001,Children and Young People,CYP,Transport Related,CCA,11/02/2020,11-12007,960.00,Acorn Contracts
Nottinghamshire County Council,1111/1001,Children and Young People,CYP,Transport Related,CCA,11/02/2020,11-12008,864,Acorn Contracts
Nottinghamshire County Council,1111/1001,Children and Young People,CYP,Transport Related,CCA,11/02/2020,11-12010,836,Acorn Contracts
Nottinghamshire County Council,1111/1001,Children and Young People,CYP,Transport Related,CCA,11/02/2020,11-12011,760.00,Acorn Contracts
Nottinghamshire County Council,1111/1001,Children and Young People,CYP,Transport Related,CCA,11/02/2020,11-12015,2600,Ng11 Cars
Nottinghamshire County Council,1111/1001,Children and Young People,CYP,Transport Related,CCA,11/02/2020,11-12016,1680,Ng11 Cars
Nottinghamshire County Council,1111/1001,Children and Young People,CYP,Transport Related,CCA,11/02/2020,11-12017,1008,Ng11 Cars
Nottinghamshire County Council,1111/1001,Children and Young People,CYP,Transport Related,CCA,11/02/2020,11-12019,1450,Ng11 Cars
Nottinghamshire County Council,1111/1001,Children and Young People,CYP,Transport Related,CCA,11/02/2020,11-12020,"1,980.00",Shelleys Taxis Ltd
Nottinghamshire County Council,1111/1001,Children and Young People,CYP,Transport Related,CCA,11/02/2020,11-12021,"1,600.00",Shelleys Taxis Ltd
Nottinghamshire County Council,1111/1001,Children and Young People,CYP,Transport Related,CCA,11/02/2020,11-12022,"1,400.00",Shelleys Taxis Ltd
Nottinghamshire County Council,1111/1001,Children and Young People,CYP,Transport Related,CCA,11/02/2020,11-12023,"1,960.00",Shelleys Taxis Ltd
Nottinghamshire County Council,1111/1001,Children and Young People,CYP,Transport Related,CCA,11/02/2020,11-12024,"1,414.00",Shelleys Taxis Ltd
Nottinghamshire County Council,1111/1001,Children and Young People,CYP,Transport Related,CCA,11/02/2020,11-12025,"1,280.00",Shelleys Taxis Ltd
Nottinghamshire County Council,1111/1001,Children and Young People,CYP,Transport Related,CCA,11/02/2020,11-12026,855.00,Shelleys Taxis Ltd
Nottinghamshire County Council,1111/1001,Children and Young People,CYP,Transport Related,CCA,11/02/2020,11-12029,1560,Shelleys Taxis Ltd
Nottinghamshire County Council,1111/1001,Children and Young People,CYP,Transport Related,CCA,11/02/2020,11-12030,"1,962.00",Shelleys Taxis Ltd
Nottinghamshire County Council,1111/1001,Children and Young People,CYP,Transport Related,CCA,11/02/2020,11-12031,1680,Shelleys Taxis Ltd
Nottinghamshire County Council,1111/1001,Children and Young People,CYP,Transport Related,CCA,11/02/2020,11-12032,2708.4,F4Control Ltd (t/a First4care)
Nottinghamshire County Council,1111/1001,Children and Young People,CYP,Transport Related,CCA,11/02/2020,11-12033,"2,600.00",F4Control Ltd (t/a First4care)
Nottinghamshire County Council,1111/1001,Children and Young People,CYP,Transport Related,CCA,11/02/2020,11-12034,"4,019.80",F4Control Ltd (t/a First4care)
Nottinghamshire County Council,1111/1001,Children and Young People,CYP,Transport Related,CCA,11/02/2020,11-12035,2226.4,F4Control Ltd (t/a First4care)
Nottinghamshire County Council,1111/1001,Children and Young People,CYP,Transport Related,CCA,11/02/2020,11-12036,"2,257.40",F4Control Ltd (t/a First4care)
Nottinghamshire County Council,1111/1001,Children and Young People,CYP,Transport Related,CCA,11/02/2020,11-12037,"2,398.20",F4Control Ltd (t/a First4care)
Nottinghamshire County Council,1111/1001,Children and Young People,CYP,Transport Related,CCA,11/02/2020,11-12038,"3,168.31",F4Control Ltd (t/a First4care)
Nottinghamshire County Council,1111/1001,Children and Young People,CYP,Transport Related,CCA,11/02/2020,11-12040,"2,550.60",F4Control Ltd (t/a First4care)
Nottinghamshire County Council,1111/1001,Children and Young People,CYP,Transport Related,CCA,11/02/2020,11-12041,2714.4,F4Control Ltd (t/a First4care)
Nottinghamshire County Council,1111/1001,Children and Young People,CYP,Transport Related,CCA,11/02/2020,11-12042,"2,423.07",F4Control Ltd (t/a First4care)
Nottinghamshire County Council,1111/1001,Children and Young People,CYP,Transport Related,CCA,11/02/2020,11-12043,2514.6,F4Control Ltd (t/a First4care)
Nottinghamshire County Council,1111/1001,Children and Young People,CYP,Transport Related,CCA,11/02/2020,11-12045,3055,F4Control Ltd (t/a First4care)
Nottinghamshire County Council,1111/1001,Children and Young People,CYP,Transport Related,CCA,11/02/2020,11-12047,1593,F4Control Ltd (t/a First4care)
Nottinghamshire County Council,1111/1001,Children and Young People,CYP,Transport Related,CCA,11/02/2020,11-12048,2535,F4Control Ltd (t/a First4care)
Nottinghamshire County Council,1111/1001,Children and Young People,CYP,Transport Related,CCA,11/02/2020,11-12049,2516.6,F4Control Ltd (t/a First4care)
Nottinghamshire County Council,1111/1001,Children and Young People,CYP,Transport Related,CCA,11/02/2020,11-12050,1945.8,F4Control Ltd (t/a First4care)
Nottinghamshire County Council,1111/1001,Children and Young People,CYP,Transport Related,CCA,11/02/2020,11-12051,"3,308.00",F4Control Ltd (t/a First4care)
Nottinghamshire County Council,1111/1001,Children and Young People,CYP,Transport Related,CCA,11/02/2020,11-12052,"2,357.00",F4Control Ltd (t/a First4care)
Nottinghamshire County Council,1111/1001,Children and Young People,CYP,Transport Related,CCA,11/02/2020,11-12053,"2,950.60",F4Control Ltd (t/a First4care)
Nottinghamshire County Council,1111/1001,Children and Young People,CYP,Transport Related,CCA,11/02/2020,11-12054,1934.23,F4Control Ltd (t/a First4care)
Nottinghamshire County Council,1111/1001,Children and Young People,CYP,Transport Related,CCA,11/02/2020,11-12056,2950.6,F4Control Ltd (t/a First4care)
Nottinghamshire County Council,1111/1001,Children and Young People,CYP,Transport Related,CCA,11/02/2020,11-12057,3074.4,F4Control Ltd (t/a First4care)
Nottinghamshire County Council,1111/1001,Children and Young People,CYP,Transport Related,CCA,11/02/2020,11-12058,970.98,F4Control Ltd (t/a First4care)
Nottinghamshire County Council,1111/1001,Children and Young People,CYP,Transport Related,CCA,11/02/2020,11-12059,3017.88,BN Gibson Ltd
Nottinghamshire County Council,1111/1001,Children and Young People,CYP,Transport Related,CCA,11/02/2020,11-12060,"3,881.70",BN Gibson Ltd
Nottinghamshire County Council,1111/1001,Children and Young People,CYP,Transport Related,CCA,11/02/2020,11-12061,4252.68,BN Gibson Ltd
Nottinghamshire County Council,1111/1001,Children and Young People,CYP,Transport Related,CCA,11/02/2020,11-12062,2218.63,BN Gibson Ltd
Nottinghamshire County Council,1111/1001,Children and Young People,CYP,Transport Related,CCA,11/02/2020,11-12063,"3,326.52",BN Gibson Ltd
Nottinghamshire County Council,1111/1001,Children and Young People,CYP,Transport Related,CCA,11/02/2020,11-12064,"2,898.45",BN Gibson Ltd
Nottinghamshire County Council,1111/1001,Children and Young People,CYP,Transport Related,CCA,11/02/2020,11-12065,2139.4,BN Gibson Ltd
Nottinghamshire County Council,1111/1001,Children and Young People,CYP,Transport Related,CCA,11/02/2020,11-12066,2974.2,BN Gibson Ltd
Nottinghamshire County Council,1111/1001,Children and Young People,CYP,Transport Related,CCA,11/02/2020,11-12067,"3,951.00",BN Gibson Ltd
Nottinghamshire County Council,1111/1001,Children and Young People,CYP,Transport Related,CCA,11/02/2020,11-12068,3824.6,BN Gibson Ltd
Nottinghamshire County Council,1111/1001,Children and Young People,CYP,Transport Related,CCA,11/02/2020,11-12069,2612,BN Gibson Ltd
Nottinghamshire County Council,1111/1001,Children and Young People,CYP,Transport Related,CCA,11/02/2020,11-12070,2674.4,BN Gibson Ltd
Nottinghamshire County Council,1111/1001,Children and Young People,CYP,Transport Related,CCA,11/02/2020,11-12071,"4,716.80",BN Gibson Ltd
Nottinghamshire County Council,1111/1001,Children and Young People,CYP,Transport Related,CCA,11/02/2020,11-12072,3576,BN Gibson Ltd
Nottinghamshire County Council,1111/1001,Children and Young People,CYP,Transport Related,CCA,11/02/2020,11-12073,3806.4,BN Gibson Ltd
Nottinghamshire County Council,1111/1001,Children and Young People,CYP,Transport Related,CCA,11/02/2020,11-12074,"5,870.40",BN Gibson Ltd
Nottinghamshire County Council,1111/1001,Children and Young People,CYP,Transport Related,CCA,11/02/2020,11-12075,3649.9,BN Gibson Ltd
Nottinghamshire County Council,1111/1001,Children and Young People,CYP,Transport Related,CCA,11/02/2020,11-12076,"3,133.29",BN Gibson Ltd
Nottinghamshire County Council,1111/1001,Children and Young People,CYP,Transport Related,CCA,11/02/2020,11-12077,"2,862.60",BN Gibson Ltd
Nottinghamshire County Council,1111/1001,Children and Young People,CYP,Transport Related,CCA,11/02/2020,11-12078,4155,BN Gibson Ltd
Nottinghamshire County Council,1111/1001,Children and Young People,CYP,Transport Related,CCA,11/02/2020,11-12079,3816.2,BN Gibson Ltd
Nottinghamshire County Council,1111/1001,Children and Young People,CYP,Transport Related,CCA,11/02/2020,11-12080,3297,BN Gibson Ltd
Nottinghamshire County Council,1111/1001,Children and Young People,CYP,Transport Related,CCA,11/02/2020,11-12081,2424.6,BN Gibson Ltd
Nottinghamshire County Council,1111/1001,Children and Young People,CYP,Transport Related,CCA,11/02/2020,11-12082,"2,890.00",BN Gibson Ltd
Nottinghamshire County Council,1111/1001,Children and Young People,CYP,Transport Related,CCA,11/02/2020,11-12083,"2,561.40",BN Gibson Ltd
Nottinghamshire County Council,1111/1001,Children and Young People,CYP,Transport Related,CCA,11/02/2020,11-12084,2433.2,BN Gibson Ltd
Nottinghamshire County Council,1111/1001,Children and Young People,CYP,Transport Related,CCA,11/02/2020,11-12085,"3,793.00",BN Gibson Ltd
Nottinghamshire County Council,1111/1001,Children and Young People,CYP,Transport Related,CCA,11/02/2020,11-12086,2169.54,BN Gibson Ltd
Nottinghamshire County Council,1111/1001,Children and Young People,CYP,Transport Related,CCA,11/02/2020,11-12087,"2,561.40",BN Gibson Ltd
Nottinghamshire County Council,1111/1001,Children and Young People,CYP,Transport Related,CCA,11/02/2020,11-12088,2561.4,BN Gibson Ltd
Nottinghamshire County Council,1111/1001,Children and Young People,CYP,Transport Related,CCA,11/02/2020,11-12089,2862.6,BN Gibson Ltd
Nottinghamshire County Council,1111/1001,Children and Young People,CYP,Transport Related,CCA,11/02/2020,11-12090,"2,218.60",BN Gibson Ltd
Nottinghamshire County Council,1111/1001,Children and Young People,CYP,Transport Related,CCA,11/02/2020,11-12091,2160.2,BN Gibson Ltd
Nottinghamshire County Council,1111/1001,Children and Young People,CYP,Transport Related,CCA,11/02/2020,11-12092,3077.4,BN Gibson Ltd
Nottinghamshire County Council,1111/1001,Children and Young People,CYP,Transport Related,CCA,11/02/2020,11-12093,"3,755.20",BN Gibson Ltd
Nottinghamshire County Council,1111/1001,Children and Young People,CYP,Transport Related,CCA,11/02/2020,11-12094,"2,383.20",BN Gibson Ltd
Nottinghamshire County Council,1111/1001,Children and Young People,CYP,Transport Related,CCA,11/02/2020,11-12095,"3,395.00",BN Gibson Ltd
Nottinghamshire County Council,1111/1001,Children and Young People,CYP,Transport Related,CCA,11/02/2020,11-12096,2862.6,BN Gibson Ltd
Nottinghamshire County Council,1111/1001,Children and Young People,CYP,Transport Related,CCA,11/02/2020,11-12097,"2,359.42",BN Gibson Ltd
Nottinghamshire County Council,1111/1001,Children and Young People,CYP,Transport Related,CCA,11/02/2020,11-12098,2369.2,BN Gibson Ltd
Nottinghamshire County Council,1111/1001,Children and Young People,CYP,Transport Related,CCA,11/02/2020,11-12099,"2,218.60",BN Gibson Ltd
Nottinghamshire County Council,1111/1001,Children and Young People,CYP,Transport Related,CCA,11/02/2020,11-12100,"2,383.80",BN Gibson Ltd
Nottinghamshire County Council,1111/1001,Children and Young People,CYP,Transport Related,CCA,11/02/2020,11-12101,2291.4,BN Gibson Ltd
Nottinghamshire County Council,1111/1001,Children and Young People,CYP,Transport Related,CCA,11/02/2020,11-12103,2395.56,BN Gibson Ltd
Nottinghamshire County Council,1111/1001,Children and Young People,CYP,Transport Related,CCA,11/02/2020,11-12105,"3,071.00",BN Gibson Ltd
Nottinghamshire County Council,1111/1001,Children and Young People,CYP,Transport Related,CCA,11/02/2020,11-12106,2124,AOT Coaches Nottingham LLP
Nottinghamshire County Council,1111/1001,Children and Young People,CYP,Transport Related,CCA,11/02/2020,11-12107,2634,AOT Coaches Nottingham LLP
Nottinghamshire County Council,1111/1001,Children and Young People,CYP,Transport Related,CCA,11/02/2020,11-12108,8444,AOT Coaches Nottingham LLP
Nottinghamshire County Council,1111/1001,Children and Young People,CYP,Transport Related,CCA,11/02/2020,11-12109,3440,JB Tours Watnall Ltd
Nottinghamshire County Council,1111/1001,Children and Young People,CYP,Transport Related,CCA,11/02/2020,11-12110,3360,JB Tours Watnall Ltd
Nottinghamshire County Council,1111/1001,Children and Young People,CYP,Transport Related,CCA,11/02/2020,11-12112,2661.5,Silverdale Tours Nottm Ltd
Nottinghamshire County Council,1111/1001,Children and Young People,CYP,Transport Related,CCA,11/02/2020,11-12113,2931.1,Silverdale Tours Nottm Ltd
Nottinghamshire County Council,1111/1001,Children and Young People,CYP,Transport Related,CCA,11/02/2020,11-12114,3050.5,Silverdale Tours Nottm Ltd
Nottinghamshire County Council,1111/1001,Children and Young People,CYP,Transport Related,CCA,11/02/2020,11-12115,"3,633.10",Silverdale Tours Nottm Ltd
Nottinghamshire County Council,1111/1001,Children and Young People,CYP,Transport Related,CCA,11/02/2020,11-12116,"3,145.80",Silverdale Tours Nottm Ltd
Nottinghamshire County Council,1111/1001,Children and Young People,CYP,Transport Related,CCA,11/02/2020,11-12117,3650.8,Silverdale Tours Nottm Ltd
Nottinghamshire County Council,1111/1001,Children and Young People,CYP,Transport Related,CCA,11/02/2020,11-12118,"3,137.60",Silverdale Tours Nottm Ltd
Nottinghamshire County Council,1111/1001,Children and Young People,CYP,Transport Related,CCA,11/02/2020,11-12119,4712,Stagecoach Services Ltd
Nottinghamshire County Council,1111/1001,Children and Young People,CYP,Transport Related,CCA,11/02/2020,11-12120,"2,781.20",Stagecoach Services Ltd
Nottinghamshire County Council,1111/1001,Children and Young People,CYP,Transport Related,CCA,11/02/2020,11-12137,"5,576.80",Stagecoach Services Ltd
Nottinghamshire County Council,1111/1001,Children and Young People,CYP,Transport Related,CCA,11/02/2020,11-12138,4700,Stagecoach Services Ltd
Nottinghamshire County Council,1111/1001,Children and Young People,CYP,Transport Related,CCA,11/02/2020,11-12140,"4,268.48",Stagecoach Services Ltd
Nottinghamshire County Council,1111/1001,Children and Young People,CYP,Transport Related,CCA,11/02/2020,11-12144,2895.6,Stagecoach Services Ltd
Nottinghamshire County Council,1111/1001,Children and Young People,CYP,Transport Related,CCA,11/02/2020,11-12149,4963.9,Stagecoach Services Ltd
Nottinghamshire County Council,1111/1001,Children and Young People,CYP,Transport Related,CCA,11/02/2020,11-12150,4033.2,Stagecoach Services Ltd
Nottinghamshire County Council,1111/1001,Children and Young People,CYP,Transport Related,CCA,11/02/2020,11-12151,"5,245.65",Stagecoach Services Ltd
Nottinghamshire County Council,1111/1001,Children and Young People,CYP,Transport Related,CCA,11/02/2020,11-12154,"5,380.00",Stagecoach Services Ltd
Nottinghamshire County Council,1111/1001,Children and Young People,CYP,Transport Related,CCA,11/02/2020,11-12155,4980,Stagecoach Services Ltd
Nottinghamshire County Council,1111/1001,Children and Young People,CYP,Transport Related,CCA,11/02/2020,11-12156,"3,500.00",Stagecoach Services Ltd
Nottinghamshire County Council,1111/1001,Children and Young People,CYP,Transport Related,CCA,11/02/2020,11-12159,5904.75,Stagecoach Services Ltd
Nottinghamshire County Council,1111/1001,Children and Young People,CYP,Transport Related,CCA,11/02/2020,11-12161,"4,737.24",Stagecoach Services Ltd
Nottinghamshire County Council,1111/1001,Children and Young People,CYP,Transport Related,CCA,11/02/2020,11-12165,"3,299.10",Stagecoach Services Ltd
Nottinghamshire County Council,1111/1001,Children and Young People,CYP,Transport Related,CCA,11/02/2020,11-12166,3569.3,Travel Wright Ltd
Nottinghamshire County Council,1111/1001,Children and Young People,CYP,Transport Related,CCA,11/02/2020,11-12167,3296.5,Travel Wright Ltd
Nottinghamshire County Council,1111/1001,Children and Young People,CYP,Transport Related,CCA,11/02/2020,11-12168,"3,470.00",Travel Wright Ltd
Nottinghamshire County Council,1111/1001,Children and Young People,CYP,Transport Related,CCA,11/02/2020,11-12169,3606.2,Travel Wright Ltd
Nottinghamshire County Council,1111/1001,Children and Young People,CYP,Transport Related,CCA,11/02/2020,11-12170,3316.5,Travel Wright Ltd
Nottinghamshire County Council,1111/1001,Children and Young People,CYP,Transport Related,CCA,11/02/2020,11-12174,2556,Travel Wright Ltd
Nottinghamshire County Council,1111/1001,Children and Young People,CYP,Transport Related,CCA,11/02/2020,11-12175,3152,Travel Wright Ltd
Nottinghamshire County Council,1111/1001,Children and Young People,CYP,Transport Related,CCA,11/02/2020,11-12176,"2,976.00",Travel Wright Ltd
Nottinghamshire County Council,1111/1001,Children and Young People,CYP,Transport Related,CCA,11/02/2020,11-12178,"9,600.00",Wilfreda Beehive
Nottinghamshire County Council,1111/1001,Children and Young People,CYP,Transport Related,CCA,11/02/2020,11-12179,"3,307.70",Freeway Coaches Ltd
Nottinghamshire County Council,1111/1001,Children and Young People,CYP,Transport Related,CCA,11/02/2020,11-12180,636.00,Bassetlaw Action Centre
Nottinghamshire County Council,1111/1001,Children and Young People,CYP,Transport Related,CCA,11/02/2020,11-12181,"1,602.84",Bassetlaw Action Centre
Nottinghamshire County Council,1111/1001,Children and Young People,CYP,Transport Related,CCA,11/02/2020,11-12182,2120.4,Bassetlaw Action Centre
Nottinghamshire County Council,1111/1001,Children and Young People,CYP,Transport Related,CCA,11/02/2020,11-12183,1060,Bassetlaw Action Centre
Nottinghamshire County Council,1111/1001,Children and Young People,CYP,Transport Related,CCA,11/02/2020,11-12185,1199.8,Rio Cabs
Nottinghamshire County Council,1111/1001,Children and Young People,CYP,Transport Related,CCA,11/02/2020,11-12186,2580,Rio Cabs
Nottinghamshire County Council,1111/1001,Children and Young People,CYP,Transport Related,CCA,11/02/2020,11-12187,872,Rio Cabs
Nottinghamshire County Council,1111/1001,Children and Young People,CYP,Transport Related,CCA,11/02/2020,11-12188,778.80,Rio Cabs
Nottinghamshire County Council,1111/1001,Children and Young People,CYP,Transport Related,CCA,11/02/2020,11-12189,956.80,Rio Cabs
Nottinghamshire County Council,1111/1001,Children and Young People,CYP,Transport Related,CCA,11/02/2020,11-12190,2716.8,Rio Cabs
Nottinghamshire County Council,1111/1001,Children and Young People,CYP,Transport Related,CCA,11/02/2020,11-12193,"1,535.20",Eastwood Cars (UK) Ltd
Nottinghamshire County Council,1111/1001,Children and Young People,CYP,Transport Related,CCA,11/02/2020,11-12194,780,Eastwood Cars (UK) Ltd
Nottinghamshire County Council,1111/1001,Children and Young People,CYP,Transport Related,CCA,11/02/2020,11-12195,1600,Eastwood Cars (UK) Ltd
Nottinghamshire County Council,1111/1001,Children and Young People,CYP,Transport Related,CCA,11/02/2020,11-12196,888.00,Nottingham Cars Ltd
Nottinghamshire County Council,1111/1001,Children and Young People,CYP,Transport Related,CCA,11/02/2020,11-12197,1548.4,Nunns Taxis Ltd
Nottinghamshire County Council,1111/1001,Children and Young People,CYP,Transport Related,CCA,11/02/2020,11-12198,854.4,Nunns Taxis Ltd
Nottinghamshire County Council,1111/1001,Children and Young People,CYP,Transport Related,CCA,11/02/2020,11-12200,651.2,Nunns Taxis Ltd
Nottinghamshire County Council,1111/1001,Children and Young People,CYP,Transport Related,CCA,11/02/2020,11-12201,680.00,Cathedral Cars Lincoln Ltd
Nottinghamshire County Council,1111/1001,Children and Young People,CYP,Transport Related,CCA,11/02/2020,11-12202,3599.8,Vectare Ltd
Nottinghamshire County Council,1111/1001,Children and Young People,CYP,Transport Related,CCA,11/02/2020,11-12203,798,Carriage Solutions Ltd
Nottinghamshire County Council,1111/1001,Children and Young People,CYP,Transport Related,CCA,11/02/2020,11-12204,994.00,Carriage Solutions Ltd
Nottinghamshire County Council,1111/1001,Children and Young People,CYP,Transport Related,CCA,12/02/2020,11-12218,"1,000.00",6 Five 2s
Nottinghamshire County Council,1111/1001,Children and Young People,CYP,Transport Related,CCA,12/02/2020,11-12219,912,6 Five 2s
Nottinghamshire County Council,1111/1001,Children and Young People,CYP,Transport Related,CCA,12/02/2020,11-12220,912,6 Five 2s
Nottinghamshire County Council,1111/1001,Children and Young People,CYP,Transport Related,CCA,12/02/2020,11-12222,875,Ng11 Cars
Nottinghamshire County Council,1111/1001,Children and Young People,CYP,Transport Related,CCA,12/02/2020,11-12227,5015.5,Gem Mini Travel Ltd
Nottinghamshire County Council,1111/1001,Children and Young People,CYP,Transport Related,CCA,12/02/2020,11-12228,4708.7,Gem Mini Travel Ltd
Nottinghamshire County Council,1111/1001,Children and Young People,CYP,Transport Related,CCA,12/02/2020,11-12229,"3,800.00",Gem Mini Travel Ltd
Nottinghamshire County Council,1111/1001,Children and Young People,CYP,Transport Related,CCA,12/02/2020,11-12230,"3,712.00",Gem Mini Travel Ltd
Nottinghamshire County Council,1111/1001,Children and Young People,CYP,Transport Related,CCA,12/02/2020,11-12231,"5,044.00",Gem Mini Travel Ltd
Nottinghamshire County Council,1111/1001,Children and Young People,CYP,Transport Related,CCA,12/02/2020,11-12232,"9,818.30",Freeway Coaches Ltd
Nottinghamshire County Council,1111/1001,Children and Young People,CYP,Transport Related,CCA,12/02/2020,11-12233,4187,Freeway Coaches Ltd
Nottinghamshire County Council,1111/1001,Children and Young People,CYP,Transport Related,CCA,12/02/2020,11-12234,3503,K Matthews Travel
Nottinghamshire County Council,1111/1001,Children and Young People,CYP,Transport Related,CCA,12/02/2020,11-12235,3297,K Matthews Travel
Nottinghamshire County Council,1111/1001,Children and Young People,CYP,Transport Related,CCA,12/02/2020,11-12236,7140,Kettlewell Retford Ltd
Nottinghamshire County Council,1111/1001,Children and Young People,CYP,Transport Related,CCA,12/02/2020,11-12237,2880,Kettlewell Retford Ltd
Nottinghamshire County Council,1111/1001,Children and Young People,CYP,Transport Related,CCA,12/02/2020,11-12238,"3,100.00",Kettlewell Retford Ltd
Nottinghamshire County Council,1111/1001,Children and Young People,CYP,Transport Related,CCA,12/02/2020,11-12239,2260,Kettlewell Retford Ltd
Nottinghamshire County Council,1111/1001,Children and Young People,CYP,Transport Related,CCA,12/02/2020,11-12240,"3,280.00",Kettlewell Retford Ltd
Nottinghamshire County Council,1111/1001,Children and Young People,CYP,Transport Related,CCA,12/02/2020,11-12241,3700,Kettlewell Retford Ltd
Nottinghamshire County Council,1111/1001,Children and Young People,CYP,Transport Related,CCA,12/02/2020,11-12242,"7,000.00",Kettlewell Retford Ltd
Nottinghamshire County Council,1111/1001,Children and Young People,CYP,Transport Related,CCA,12/02/2020,11-12243,"3,280.00",Kettlewell Retford Ltd
Nottinghamshire County Council,1111/1001,Children and Young People,CYP,Transport Related,CCA,12/02/2020,11-12244,4125.6,Kettlewell Retford Ltd
Nottinghamshire County Council,1111/1001,Children and Young People,CYP,Transport Related,CCA,12/02/2020,11-12246,570,AAA Cabs
Nottinghamshire County Council,1111/1001,Children and Young People,CYP,Transport Related,CCA,12/02/2020,11-12247,"2,490.00",Ace Cars & Minibuses Ltd
Nottinghamshire County Council,1111/1001,Children and Young People,CYP,Transport Related,CCA,12/02/2020,11-12248,"2,390.00",Ace Cars & Minibuses Ltd
Nottinghamshire County Council,1111/1001,Children and Young People,CYP,Transport Related,CCA,12/02/2020,11-12249,"2,616.00",Ace Cars & Minibuses Ltd
Nottinghamshire County Council,1111/1001,Children and Young People,CYP,Transport Related,CCA,12/02/2020,11-12250,"2,490.00",Ace Cars & Minibuses Ltd
Nottinghamshire County Council,1111/1001,Children and Young People,CYP,Transport Related,CCA,12/02/2020,11-12251,2590,Ace Cars & Minibuses Ltd
Nottinghamshire County Council,1111/1001,Children and Young People,CYP,Transport Related,CCA,12/02/2020,11-12252,"2,151.00",Ace Cars & Minibuses Ltd
Nottinghamshire County Council,1111/1001,Children and Young People,CYP,Transport Related,CCA,12/02/2020,11-12253,1826,Ace Cars & Minibuses Ltd
Nottinghamshire County Council,1111/1001,Children and Young People,CYP,Transport Related,CCA,12/02/2020,11-12254,1674,Ace Cars & Minibuses Ltd
Nottinghamshire County Council,1111/1001,Children and Young People,CYP,Transport Related,CCA,12/02/2020,11-12256,"2,414.00",Ace Cars & Minibuses Ltd
Nottinghamshire County Council,1111/1001,Children and Young People,CYP,Transport Related,CCA,12/02/2020,11-12257,"2,650.50",Ace Cars & Minibuses Ltd
Nottinghamshire County Council,1111/1001,Children and Young People,CYP,Transport Related,CCA,12/02/2020,11-12258,1674,Ace Cars & Minibuses Ltd
Nottinghamshire County Council,1111/1001,Children and Young People,CYP,Transport Related,CCA,12/02/2020,11-12259,"2,550.30",Ace Cars & Minibuses Ltd
Nottinghamshire County Council,1111/1001,Children and Young People,CYP,Transport Related,CCA,12/02/2020,11-12260,1554,Ace Cars & Minibuses Ltd
Nottinghamshire County Council,1111/1001,Children and Young People,CYP,Transport Related,CCA,12/02/2020,11-12261,2390,Ace Cars & Minibuses Ltd
Nottinghamshire County Council,1111/1001,Children and Young People,CYP,Transport Related,CCA,12/02/2020,11-12262,"2,490.00",Ace Cars & Minibuses Ltd
Nottinghamshire County Council,1111/1001,Children and Young People,CYP,Transport Related,CCA,12/02/2020,11-12263,2590,Ace Cars & Minibuses Ltd
Nottinghamshire County Council,1111/1001,Children and Young People,CYP,Transport Related,CCA,12/02/2020,11-12264,"2,390.00",Ace Cars & Minibuses Ltd
Nottinghamshire County Council,1111/1001,Children and Young People,CYP,Transport Related,CCA,12/02/2020,11-12265,"1,752.00",Ace Cars & Minibuses Ltd
Nottinghamshire County Council,1111/1001,Children and Young People,CYP,Transport Related,CCA,12/02/2020,11-12266,"2,840.50",Ace Cars & Minibuses Ltd
Nottinghamshire County Council,1111/1001,Children and Young People,CYP,Transport Related,CCA,12/02/2020,11-12267,"3,390.00",Ace Cars & Minibuses Ltd
Nottinghamshire County Council,1111/1001,Children and Young People,CYP,Transport Related,CCA,12/02/2020,11-12268,"1,440.00",ADF Cars Ltd
Nottinghamshire County Council,1111/1001,Children and Young People,CYP,Transport Related,CCA,12/02/2020,11-12269,455,ADF Cars Ltd
Nottinghamshire County Council,1111/1001,Children and Young People,CYP,Transport Related,CCA,12/02/2020,11-12271,2090,Reliable Cars Ltd
Nottinghamshire County Council,1111/1001,Children and Young People,CYP,Transport Related,CCA,12/02/2020,11-12272,2080,Reliable Cars Ltd
Nottinghamshire County Council,1111/1001,Children and Young People,CYP,Transport Related,CCA,12/02/2020,11-12273,"2,000.00",Reliable Cars Ltd
Nottinghamshire County Council,1111/1001,Children and Young People,CYP,Transport Related,CCA,12/02/2020,11-12274,2185,CT4N Ltd
Nottinghamshire County Council,1111/1001,Children and Young People,CYP,Transport Related,CCA,12/02/2020,11-12275,"2,323.00",CT4N Ltd
Nottinghamshire County Council,1111/1001,Children and Young People,CYP,Transport Related,CCA,12/02/2020,11-12276,2090,CT4N Ltd
Nottinghamshire County Council,1111/1001,Children and Young People,CYP,Transport Related,CCA,12/02/2020,11-12277,3200,CT4N Ltd
Nottinghamshire County Council,1111/1001,Children and Young People,CYP,Transport Related,CCA,12/02/2020,11-12279,2380,CT4N Ltd
Nottinghamshire County Council,1111/1001,Children and Young People,CYP,Transport Related,CCA,12/02/2020,11-12280,"1,480.00",Forest Cars
Nottinghamshire County Council,1111/1001,Children and Young People,CYP,Transport Related,CCA,12/02/2020,11-12281,1780,Forest Cars
Nottinghamshire County Council,1111/1001,Children and Young People,CYP,Transport Related,CCA,12/02/2020,11-12282,"1,480.00",Forest Cars
Nottinghamshire County Council,1111/1001,Children and Young People,CYP,Transport Related,CCA,12/02/2020,11-12283,"1,920.00",Forest Cars
Nottinghamshire County Council,1111/1001,Children and Young People,CYP,Transport Related,CCA,12/02/2020,11-12284,"1,501.00",Forest Cars
Nottinghamshire County Council,1111/1001,Children and Young People,CYP,Transport Related,CCA,12/02/2020,11-12285,2679,Forest Cars
Nottinghamshire County Council,1111/1001,Children and Young People,CYP,Transport Related,CCA,12/02/2020,11-12286,1760,Forest Cars
Nottinghamshire County Council,1111/1001,Children and Young People,CYP,Transport Related,CCA,12/02/2020,11-12287,1560,Forest Cars
Nottinghamshire County Council,1111/1001,Children and Young People,CYP,Transport Related,CCA,12/02/2020,11-12288,1420,Forest Cars
Nottinghamshire County Council,1111/1001,Children and Young People,CYP,Transport Related,CCA,12/02/2020,11-12289,"1,980.00",Forest Cars
Nottinghamshire County Council,1111/1001,Children and Young People,CYP,Transport Related,CCA,12/02/2020,11-12290,2080,Forest Cars
Nottinghamshire County Council,1111/1001,Children and Young People,CYP,Transport Related,CCA,12/02/2020,11-12291,"1,760.00",Forest Cars
Nottinghamshire County Council,1111/1001,Children and Young People,CYP,Transport Related,CCA,12/02/2020,11-12292,1360,Forest Cars
Nottinghamshire County Council,1111/1001,Children and Young People,CYP,Transport Related,CCA,12/02/2020,11-12293,"2,128.00",Forest Cars
Nottinghamshire County Council,1111/1001,Children and Young People,CYP,Transport Related,CCA,12/02/2020,11-12294,"1,260.00",Forest Cars
Nottinghamshire County Council,1111/1001,Children and Young People,CYP,Transport Related,CCA,12/02/2020,11-12295,1410,Forest Cars
Nottinghamshire County Council,1111/1001,Children and Young People,CYP,Transport Related,CCA,12/02/2020,11-12296,528.00,Forest Cars
Nottinghamshire County Council,1111/1001,Children and Young People,CYP,Transport Related,CCA,12/02/2020,11-12297,"1,760.00",Forest Cars
Nottinghamshire County Council,1111/1001,Children and Young People,CYP,Transport Related,CCA,12/02/2020,11-12298,1260.48,Forest Cars
Nottinghamshire County Council,1111/1001,Children and Young People,CYP,Transport Related,CCA,12/02/2020,11-12299,1880,Forest Cars
Nottinghamshire County Council,1111/1001,Children and Young People,CYP,Transport Related,CCA,12/02/2020,11-12300,1480,Forest Cars
Nottinghamshire County Council,1111/1001,Children and Young People,CYP,Transport Related,CCA,12/02/2020,11-12301,2880,Forest Cars
Nottinghamshire County Council,1111/1001,Children and Young People,CYP,Transport Related,CCA,12/02/2020,11-12302,"1,795.40",Forest Cars
Nottinghamshire County Council,1111/1001,Children and Young People,CYP,Transport Related,CCA,12/02/2020,11-12303,"2,160.00",Forest Cars
Nottinghamshire County Council,1111/1001,Children and Young People,CYP,Transport Related,CCA,12/02/2020,11-12304,754.90,Forest Cars
Nottinghamshire County Council,1111/1001,Children and Young People,CYP,Transport Related,CCA,12/02/2020,11-12306,"1,980.00",Forest Cars
Nottinghamshire County Council,1111/1001,Children and Young People,CYP,Transport Related,CCA,12/02/2020,11-12307,"1,880.00",Forest Cars
Nottinghamshire County Council,1111/1001,Children and Young People,CYP,Transport Related,CCA,12/02/2020,11-12308,"1,960.00",Forest Cars
Nottinghamshire County Council,1111/1001,Children and Young People,CYP,Transport Related,CCA,12/02/2020,11-12309,"1,680.00",Forest Cars
Nottinghamshire County Council,1111/1001,Children and Young People,CYP,Transport Related,CCA,12/02/2020,11-12310,"1,360.00",Forest Cars
Nottinghamshire County Council,1111/1001,Children and Young People,CYP,Transport Related,CCA,12/02/2020,11-12311,1960,Forest Cars
Nottinghamshire County Council,1111/1001,Children and Young People,CYP,Transport Related,CCA,12/02/2020,11-12312,1680,Forest Cars
Nottinghamshire County Council,1111/1001,Children and Young People,CYP,Transport Related,CCA,12/02/2020,11-12313,"3,491.25",Forest Cars
Nottinghamshire County Council,1111/1001,Children and Young People,CYP,Transport Related,CCA,12/02/2020,11-12314,2793,Forest Cars
Nottinghamshire County Council,1111/1001,Children and Young People,CYP,Transport Related,CCA,12/02/2020,11-12315,1672,Forest Cars
Nottinghamshire County Council,1111/1001,Children and Young People,CYP,Transport Related,CCA,12/02/2020,11-12316,1102,Forest Cars
Nottinghamshire County Council,1111/1001,Children and Young People,CYP,Transport Related,CCA,12/02/2020,11-12317,3078,Forest Cars
Nottinghamshire County Council,1111/1001,Children and Young People,CYP,Transport Related,CCA,12/02/2020,11-12318,1848,Forest Cars
Nottinghamshire County Council,1111/1001,Children and Young People,CYP,Transport Related,CCA,12/02/2020,11-12319,2016,Forest Cars
Nottinghamshire County Council,1111/1001,Children and Young People,CYP,Transport Related,CCA,12/02/2020,11-12320,1704,Forest Cars
Nottinghamshire County Council,1111/1001,Children and Young People,CYP,Transport Related,CCA,12/02/2020,11-12321,1188,Forest Cars
Nottinghamshire County Council,1111/1001,Children and Young People,CYP,Transport Related,CCA,12/02/2020,11-12322,"2,240.00",Forest Cars
Nottinghamshire County Council,1111/1001,Children and Young People,CYP,Transport Related,CCA,12/02/2020,11-12323,2733.8,Forest Cars
Nottinghamshire County Council,1111/1001,Children and Young People,CYP,Transport Related,CCA,12/02/2020,11-12324,1360,Forest Cars
Nottinghamshire County Council,1111/1001,Children and Young People,CYP,Transport Related,CCA,14/02/2020,11-12340,1200,D G Private Hire Ltd
Nottinghamshire County Council,1111/1001,Children and Young People,CYP,Transport Related,CCA,14/02/2020,11-12341,"1,160.00",D G Private Hire Ltd
Nottinghamshire County Council,1111/1001,Children and Young People,CYP,Transport Related,CCA,14/02/2020,11-12342,"1,000.00",D G Private Hire Ltd
Nottinghamshire County Council,1111/1001,Children and Young People,CYP,Transport Related,CCA,14/02/2020,11-12343,"1,140.00",D G Private Hire Ltd
Nottinghamshire County Council,1111/1001,Children and Young People,CYP,Transport Related,CCA,14/02/2020,11-12344,2466,D G Private Hire Ltd
Nottinghamshire County Council,1111/1001,Children and Young People,CYP,Transport Related,CCA,14/02/2020,11-12345,1140,D G Private Hire Ltd
Nottinghamshire County Council,1111/1001,Children and Young People,CYP,Transport Related,CCA,14/02/2020,11-12346,2199,Wallis Coachways
Nottinghamshire County Council,1111/1001,Children and Young People,CYP,Transport Related,CCA,14/02/2020,11-12347,960,Eastwood Cars (UK) Ltd
Nottinghamshire County Council,1111/1001,Children and Young People,CYP,Transport Related,CCA,14/02/2020,11-12350,1738,SM Travel Yorkshire Ltd
Nottinghamshire County Council,1111/1001,Children and Young People,CYP,Transport Related,CCA,14/02/2020,11-12351,"1,522.40",SM Travel Yorkshire Ltd
Nottinghamshire County Council,1111/1001,Children and Young People,CYP,Transport Related,CCA,14/02/2020,11-12353,"2,168.00",SM Travel Yorkshire Ltd
Nottinghamshire County Council,1111/1001,Children and Young People,CYP,Transport Related,CCA,14/02/2020,11-12354,"2,486.00",SM Travel Yorkshire Ltd
Nottinghamshire County Council,1111/1001,Children and Young People,CYP,Transport Related,CCA,14/02/2020,11-12355,2246,SM Travel Yorkshire Ltd
Nottinghamshire County Council,1111/1001,Children and Young People,CYP,Transport Related,CCA,14/02/2020,11-12356,1768.9,SM Travel Yorkshire Ltd
Nottinghamshire County Council,1111/1001,Children and Young People,CYP,Transport Related,CCA,14/02/2020,11-12357,"1,671.60",SM Travel Yorkshire Ltd
Nottinghamshire County Council,1111/1001,Children and Young People,CYP,Transport Related,CCA,14/02/2020,11-12358,"2,288.00",SM Travel Yorkshire Ltd
Nottinghamshire County Council,1111/1001,Children and Young People,CYP,Transport Related,CCA,14/02/2020,11-12359,1603.2,SM Travel Yorkshire Ltd
Nottinghamshire County Council,1111/1001,Children and Young People,CYP,Transport Related,CCA,17/02/2020,11-12379,"1,726.00",SM Travel Yorkshire Ltd
Nottinghamshire County Council,1111/1001,Children and Young People,CYP,Transport Related,CCA,17/02/2020,11-12381,1341.9,Southside Cars Ltd
Nottinghamshire County Council,1111/1001,Children and Young People,CYP,Transport Related,CCA,17/02/2020,11-12382,1330,Central Cars Nottm Ltd
Nottinghamshire County Council,1111/1001,Children and Young People,CYP,Transport Related,CCA,17/02/2020,11-12386,"5,900.00",Johnson Bros Tours Ltd
Nottinghamshire County Council,1111/1001,Children and Young People,CYP,Transport Related,CCA,17/02/2020,11-12387,8129.4,Johnson Bros Tours Ltd
Nottinghamshire County Council,1111/1001,Children and Young People,CYP,Transport Related,CCA,17/02/2020,11-12388,"2,413.80",Wrights Coaches T/A Little Transpor
Nottinghamshire County Council,1111/1001,Children and Young People,CYP,Transport Related,CCA,17/02/2020,11-12389,607.5,200 Cars Ltd
Nottinghamshire County Council,1111/1001,Children and Young People,CYP,Transport Related,CCA,17/02/2020,11-12391,929,Arrow Specialised Transport Ltd
Nottinghamshire County Council,1111/1001,Children and Young People,CYP,Transport Related,CCA,17/02/2020,11-12392,1621,Arrow Specialised Transport Ltd
Nottinghamshire County Council,1111/1001,Children and Young People,CYP,Transport Related,CCA,17/02/2020,11-12393,"2,028.00",Arrow Specialised Transport Ltd
Nottinghamshire County Council,1111/1001,Children and Young People,CYP,Transport Related,CCA,17/02/2020,11-12398,"1,380.00",Abacus Cars
Nottinghamshire County Council,1111/1001,Children and Young People,CYP,Transport Related,CCA,17/02/2020,11-12399,7350,Gem Mini Travel Ltd
Nottinghamshire County Council,1111/1001,Children and Young People,CYP,Transport Related,CCA,17/02/2020,11-12400,2796.24,Silverdale Tours Nottm Ltd
Nottinghamshire County Council,1111/1001,Children and Young People,CYP,Transport Related,CCA,17/02/2020,11-12401,514.24,Travel Wright Ltd
Nottinghamshire County Council,1111/1001,Children and Young People,CYP,Transport Related,CCA,17/02/2020,11-12402,1136,Travel Wright Ltd
Nottinghamshire County Council,1111/1001,Children and Young People,CYP,Transport Related,CCA,17/02/2020,11-12403,962.64,Travel Wright Ltd
Nottinghamshire County Council,1111/1001,Children and Young People,CYP,Transport Related,CCA,17/02/2020,11-12404,3960,Freeway Coaches Ltd
Nottinghamshire County Council,1111/1001,Children and Young People,CYP,Transport Related,CCA,17/02/2020,11-12405,"6,260.00",Freeway Coaches Ltd
Nottinghamshire County Council,1111/1001,Children and Young People,CYP,Transport Related,CCA,17/02/2020,11-12408,5107.39,Isle Coaches
Nottinghamshire County Council,1111/1001,Children and Young People,CYP,Transport Related,CCA,17/02/2020,11-12409,950.00,AAA Cabs
Nottinghamshire County Council,1111/1001,Children and Young People,CYP,Transport Related,CCA,17/02/2020,11-12411,1820,Nottingham Coaches
Nottinghamshire County Council,1111/1001,Children and Young People,CYP,Transport Related,CCA,17/02/2020,11-12412,752,Nottingham Cars Ltd
Nottinghamshire County Council,1111/1001,Children and Young People,CYP,Transport Related,CCA,17/02/2020,11-12414,1368,Reliable Cars Ltd
Nottinghamshire County Council,1111/1001,Children and Young People,CYP,Transport Related,CCA,17/02/2020,11-12415,"1,620.00",Rushcliffe Travel Ltd
Nottinghamshire County Council,1111/1001,Children and Young People,CYP,Transport Related,CCA,17/02/2020,11-12416,"1,344.00",Forest Cars
Nottinghamshire County Council,1111/1001,Children and Young People,CYP,Transport Related,CCA,17/02/2020,11-12417,1876,Forest Cars
Nottinghamshire County Council,1111/1001,Children and Young People,CYP,Transport Related,CCA,17/02/2020,11-12418,1649.2,Forest Cars
Nottinghamshire County Council,1111/1001,Children and Young People,CYP,Transport Related,CCA,17/02/2020,11-12419,3080.02,Forest Cars
Nottinghamshire County Council,1111/1001,Children and Young People,CYP,Transport Related,CCA,17/02/2020,11-12420,"3,468.00",SM Travel Yorkshire Ltd
Nottinghamshire County Council,1111/1001,Children and Young People,CYP,Transport Related,CCA,17/02/2020,11-12421,"3,754.40",SM Travel Yorkshire Ltd
Nottinghamshire County Council,1111/1001,Children and Young People,CYP,Transport Related,CCA,17/02/2020,11-12422,2614.4,SM Travel Yorkshire Ltd
Nottinghamshire County Council,1111/1001,Children and Young People,CYP,Transport Related,CCA,17/02/2020,11-12423,"1,500.00",Fair Fares Ltd
Nottinghamshire County Council,1111/1001,Children and Young People,CYP,Transport Related,CCA,18/02/2020,11-15395,884.1,6 Five 2s
Nottinghamshire County Council,1111/1001,Children and Young People,CYP,Transport Related,CCA,18/02/2020,11-15396,4338.44,Johnson Bros Tours Ltd
Nottinghamshire County Council,1111/1001,Children and Young People,CYP,Transport Related,CCA,18/02/2020,11-15400,1398,Abacus Cars
Nottinghamshire County Council,1111/1001,Children and Young People,CYP,Transport Related,CCA,18/02/2020,11-15402,"4,092.40",Marshalls Of Sutton On Trent Ltd
Nottinghamshire County Council,1111/1001,Children and Young People,CYP,Transport Related,CCA,18/02/2020,11-15403,2888,K Matthews Travel
Nottinghamshire County Council,1111/1001,Children and Young People,CYP,Transport Related,CCA,18/02/2020,11-15405,"1,113.50",Forest Cars
Nottinghamshire County Council,1111/1001,Children and Young People,CYP,Transport Related,CCA,21/02/2020,11-15600,"2,689.15",Arrow Specialised Transport Ltd
Nottinghamshire County Council,1111/1001,Children and Young People,CYP,Transport Related,CCA,21/02/2020,11-15601,"2,704.00",Arrow Specialised Transport Ltd
Nottinghamshire County Council,1111/1001,Children and Young People,CYP,Transport Related,CCA,21/02/2020,11-15602,"1,485.00",Shelleys Taxis Ltd
Nottinghamshire County Council,1111/1001,Children and Young People,CYP,Transport Related,CCA,21/02/2020,11-15605,"3,412.10",Tiger European Uk Ltd
Nottinghamshire County Council,1111/1001,Children and Young People,CYP,Transport Related,CCA,21/02/2020,11-15606,2873,Tiger European Uk Ltd
Nottinghamshire County Council,1111/1001,Children and Young People,CYP,Transport Related,CCA,21/02/2020,11-15607,"3,325.00",Tiger European Uk Ltd
Nottinghamshire County Council,1111/1001,Children and Young People,CYP,Transport Related,CCA,21/02/2020,11-15608,4170,Tiger European Uk Ltd
Nottinghamshire County Council,1111/1001,Children and Young People,CYP,Transport Related,CCA,21/02/2020,11-15609,"2,899.00",Tiger European Uk Ltd
Nottinghamshire County Council,1111/1001,Children and Young People,CYP,Transport Related,CCA,21/02/2020,11-15610,6900,Tiger European Uk Ltd
Nottinghamshire County Council,1111/1001,Children and Young People,CYP,Transport Related,CCA,21/02/2020,11-15611,"3,900.00",Tiger European Uk Ltd
Nottinghamshire County Council,1111/1001,Children and Young People,CYP,Transport Related,CCA,21/02/2020,11-15612,"3,668.50",Tiger European Uk Ltd
Nottinghamshire County Council,1111/1001,Children and Young People,CYP,Transport Related,CCA,21/02/2020,11-15613,6700,Tiger European Uk Ltd
Nottinghamshire County Council,1111/1001,Children and Young People,CYP,Transport Related,CCA,21/02/2020,11-15615,15390,Travel Wright Ltd
Nottinghamshire County Council,1111/1001,Children and Young People,CYP,Transport Related,CCA,21/02/2020,11-15616,1236.2,Travel Wright Ltd
Nottinghamshire County Council,1111/1001,Children and Young People,CYP,Transport Related,CCA,21/02/2020,11-15617,720,Travel Wright Ltd
Nottinghamshire County Council,1111/1001,Children and Young People,CYP,Transport Related,CCA,21/02/2020,11-15618,1902.3,Nottingham Coaches
Nottinghamshire County Council,1111/1001,Children and Young People,CYP,Transport Related,CCA,21/02/2020,11-15620,660.00,Forest Cars
Nottinghamshire County Council,1111/1001,Children and Young People,CYP,Transport Related,CCA,21/02/2020,11-15621,"1,080.00",Forest Cars
Nottinghamshire County Council,1111/1001,Children and Young People,CYP,Transport Related,CCA,25/02/2020,11-16077,960,Target Taxis
Nottinghamshire County Council,1111/1001,Children and Young People,CYP,Transport Related,CCA,26/02/2020,11-16096,1100,Arrow Specialised Transport Ltd
Nottinghamshire County Council,1111/1001,Children and Young People,CYP,Transport Related,CCA,26/02/2020,11-16097,522.50,Arrow Specialised Transport Ltd
Nottinghamshire County Council,1111/1001,Children and Young People,CYP,Transport Related,CCA,26/02/2020,11-16099,890,D G Private Hire Ltd
Nottinghamshire County Council,1111/1001,Children and Young People,CYP,Transport Related,CCA,26/02/2020,11-16100,"1,430.00",Abacus Cars
Nottinghamshire County Council,1111/1001,Children and Young People,CYP,Transport Related,CCA,28/02/2020,11-16514,740,Southside Cars Ltd
Nottinghamshire County Council,1111/1001,Children and Young People,CYP,Transport Related,CCA,28/02/2020,11-16515,2995,F4Control Ltd (t/a First4care)
Nottinghamshire County Council,1111/1001,Children and Young People,CYP,Transport Related,CCA,28/02/2020,11-16516,"1,116.00",Ace Cars & Minibuses Ltd
Nottinghamshire County Council,1111/1001,Children and Young People,CYP,Transport Related,CCA,28/02/2020,11-16517,"1,195.00",Ace Cars & Minibuses Ltd
Nottinghamshire County Council,1111/1001,Children and Young People,CYP,Transport Related,CCA,28/02/2020,11-16519,3590,Ace Cars & Minibuses Ltd
Nottinghamshire County Council,1111/1001,Children and Young People,CYP,Transport Related,CDA,03/02/2020,11-16939,937.50,Quayside Childcare Ltd
Nottinghamshire County Council,1111/1001,Children and Young People,CYP,Transport Related,CDA,03/02/2020,11-16940,656.25,Quayside Childcare Ltd
Nottinghamshire County Council,1111/1001,Children and Young People,CYP,Transport Related,CDA,04/02/2020,11-10331,299.00,Arrow Specialised Transport Ltd
Nottinghamshire County Council,1111/1001,Children and Young People,CYP,Transport Related,CDA,04/02/2020,11-10450,3500,Bridges Transport Ltd
Nottinghamshire County Council,1111/1001,Children and Young People,CYP,Transport Related,CDA,04/02/2020,11-10526,880.00,Abacus Cars
Nottinghamshire County Council,1111/1001,Children and Young People,CYP,Transport Related,CDA,04/02/2020,11-10556,2660,Nottingham Minibuses & Coaches
Nottinghamshire County Council,1111/1001,Children and Young People,CYP,Transport Related,CDA,04/02/2020,11-10558,2600,Nottingham Minibuses & Coaches
Nottinghamshire County Council,1111/1001,Children and Young People,CYP,Transport Related,CDA,04/02/2020,11-10561,"1,978.00",Nottingham Minibuses & Coaches
Nottinghamshire County Council,1111/1001,Children and Young People,CYP,Transport Related,CDA,04/02/2020,11-10563,"1,900.00",Nottingham Minibuses & Coaches
Nottinghamshire County Council,1111/1001,Children and Young People,CYP,Transport Related,CDA,04/02/2020,11-10566,"2,500.00",Nottingham Minibuses & Coaches
Nottinghamshire County Council,1111/1001,Children and Young People,CYP,Transport Related,CDA,04/02/2020,11-10574,"2,828.00",Nottingham Minibuses & Coaches
Nottinghamshire County Council,1111/1001,Children and Young People,CYP,Transport Related,CDA,04/02/2020,11-10575,3588,Nottingham Minibuses & Coaches
Nottinghamshire County Council,1111/1001,Children and Young People,CYP,Transport Related,CDA,04/02/2020,11-10576,"2,600.00",Nottingham Minibuses & Coaches
Nottinghamshire County Council,1111/1001,Children and Young People,CYP,Transport Related,CDA,04/02/2020,11-10583,11224,Nottingham Minibuses & Coaches
Nottinghamshire County Council,1111/1001,Children and Young People,CYP,Transport Related,CDA,04/02/2020,11-10622,"1,450.00",Sean's Taxi Services
Nottinghamshire County Council,1111/1001,Children and Young People,CYP,Transport Related,CDA,04/02/2020,11-10632,2226,Rushcliffe Travel Ltd
Nottinghamshire County Council,1111/1001,Children and Young People,CYP,Transport Related,CDA,06/02/2020,11-11543,1900,Taxicover Uk Ltd
Nottinghamshire County Council,1111/1001,Children and Young People,CYP,Transport Related,CDA,06/02/2020,11-11544,"1,176.00",Taxicover Uk Ltd
Nottinghamshire County Council,1111/1001,Children and Young People,CYP,Transport Related,CDA,06/02/2020,11-11564,1840,Southside Cars Ltd
Nottinghamshire County Council,1111/1001,Children and Young People,CYP,Transport Related,CDA,06/02/2020,11-11566,960.00,Southside Cars Ltd
Nottinghamshire County Council,1111/1001,Children and Young People,CYP,Transport Related,CDA,06/02/2020,11-11587,1080,200 Cars Ltd
Nottinghamshire County Council,1111/1001,Children and Young People,CYP,Transport Related,CDA,06/02/2020,11-11605,855,Alpha Cars
Nottinghamshire County Council,1111/1001,Children and Young People,CYP,Transport Related,CDA,06/02/2020,11-11621,"1,530.90",Galaxy Cabs Ltd
Nottinghamshire County Council,1111/1001,Children and Young People,CYP,Transport Related,CDA,06/02/2020,11-11626,697.5,Galaxy Cabs Ltd
Nottinghamshire County Council,1111/1001,Children and Young People,CYP,Transport Related,CDA,06/02/2020,11-11638,3608,AOT Coaches Nottingham LLP
Nottinghamshire County Council,1111/1001,Children and Young People,CYP,Transport Related,CDA,06/02/2020,11-11652,"5,824.00",Marshalls Of Sutton On Trent Ltd
Nottinghamshire County Council,1111/1001,Children and Young People,CYP,Transport Related,CDA,06/02/2020,11-11656,12360,C W Moxon Ltd
Nottinghamshire County Council,1111/1001,Children and Young People,CYP,Transport Related,CDA,06/02/2020,11-11657,4500,C W Moxon Ltd
Nottinghamshire County Council,1111/1001,Children and Young People,CYP,Transport Related,CDA,06/02/2020,11-11659,"2,565.00",C W Moxon Ltd
Nottinghamshire County Council,1111/1001,Children and Young People,CYP,Transport Related,CDA,06/02/2020,11-11691,244.50,Millennium Travel (Mansfield) Ltd
Nottinghamshire County Council,1111/1001,Children and Young People,CYP,Transport Related,CDA,11/02/2020,11-12028,600.00,Shelleys Taxis Ltd
Nottinghamshire County Council,1111/1001,Children and Young People,CYP,Transport Related,CDA,11/02/2020,11-12054,364.65,F4Control Ltd (t/a First4care)
Nottinghamshire County Council,1111/1001,Children and Young People,CYP,Transport Related,CDA,11/02/2020,11-12111,13200,Silverdale Tours Nottm Ltd
Nottinghamshire County Council,1111/1001,Children and Young People,CYP,Transport Related,CDA,12/02/2020,11-12223,"2,848.00",Shelleys Taxis Ltd
Nottinghamshire County Council,1111/1001,Children and Young People,CYP,Transport Related,CDA,12/02/2020,11-12269,455,ADF Cars Ltd
Nottinghamshire County Council,1111/1001,Children and Young People,CYP,Transport Related,CDA,12/02/2020,11-12304,754.9,Forest Cars
Nottinghamshire County Council,1111/1001,Children and Young People,CYP,Transport Related,CDA,14/02/2020,11-12349,"1,603.10",SM Travel Yorkshire Ltd
Nottinghamshire County Council,1111/1001,Children and Young People,CYP,Transport Related,CDA,14/02/2020,11-12352,1966,SM Travel Yorkshire Ltd
Nottinghamshire County Council,1111/1001,Children and Young People,CYP,Transport Related,CDA,17/02/2020,11-12383,"2,296.00",Johnson Bros Tours Ltd
Nottinghamshire County Council,1111/1001,Children and Young People,CYP,Transport Related,CDA,17/02/2020,11-12384,"4,480.00",Johnson Bros Tours Ltd
Nottinghamshire County Council,1111/1001,Children and Young People,CYP,Transport Related,CDA,17/02/2020,11-12385,1900,Johnson Bros Tours Ltd
Nottinghamshire County Council,1111/1001,Children and Young People,CYP,Transport Related,CDA,17/02/2020,11-12389,607.50,200 Cars Ltd
Nottinghamshire County Council,1111/1001,Children and Young People,CYP,Transport Related,CDA,17/02/2020,11-12395,"2,063.00",Ng11 Cars
Nottinghamshire County Council,1111/1001,Children and Young People,CYP,Transport Related,CDA,17/02/2020,11-12406,"6,848.00",Paul S Winson Coaches
Nottinghamshire County Council,1111/1001,Children and Young People,CYP,Transport Related,CDA,18/02/2020,11-15405,1113.5,Forest Cars
Nottinghamshire County Council,1111/1001,Children and Young People,CYP,Transport Related,CDA,21/02/2020,11-15603,1750,Tiger European Uk Ltd
Nottinghamshire County Council,1111/1001,Children and Young People,CYP,Transport Related,CDA,21/02/2020,11-15604,2950,Tiger European Uk Ltd
Nottinghamshire County Council,1111/1001,Children and Young People,CYP,Transport Related,CDA,27/02/2020,11-17723,525.00,Quayside Childcare Ltd
Nottinghamshire County Council,1111/1001,Children and Young People,CYP,Transport Related,CDA,28/02/2020,11-16517,1195,Ace Cars & Minibuses Ltd
Nottinghamshire County Council,1111/1001,Children and Young People,CYP,Transport Related,CEA,14/02/2020,11-11963,4104.72,Reed Employment Plc
Nottinghamshire County Council,1111/1001,Children and Young People,CYP,Transport Related,CEA,21/02/2020,11-12361,"3,921.71",Reed Employment Plc
Nottinghamshire County Council,1111/1001,Children and Young People,CYP,Transport Related,CEA,28/02/2020,11-15587,3259.73,Reed Employment Plc
Nottinghamshire County Council,1111/1001,Children and Young People,CYP,Supplies & Services,DAA,11/02/2020,11-17128,705.15,Connevans Ltd
Nottinghamshire County Council,1111/1001,Children and Young People,CYP,Supplies & Services,DAA,27/02/2020,11-16960,2383.74,Clark & Partners Ltd
Nottinghamshire County Council,1111/1001,Children and Young People,CYP,Supplies & Services,DAA,28/02/2020,11-17541,2295,Slack & Co Floorcoverings
Nottinghamshire County Council,1111/1001,Children and Young People,CYP,Supplies & Services,DCA,06/02/2020,11-16966,588.89,Clean Sheet Laundry Ltd
Nottinghamshire County Council,1111/1001,Children and Young People,CYP,Supplies & Services,DEA,03/02/2020,11-16933,642.3,[Redacted]
Nottinghamshire County Council,1111/1001,Children and Young People,CYP,Supplies & Services,DEA,04/02/2020,11-16975,800,Marie Strawther Educational Psychol
Nottinghamshire County Council,1111/1001,Children and Young People,CYP,Supplies & Services,DEA,04/02/2020,11-16988,2676.67,ARC Property Services Partnership L
Nottinghamshire County Council,1111/1001,Children and Young People,CYP,Supplies & Services,DEA,05/02/2020,11-16972,1500,[Redacted]
Nottinghamshire County Council,1111/1001,Children and Young People,CYP,Supplies & Services,DEA,05/02/2020,11-16995,990,[Redacted]
Nottinghamshire County Council,1111/1001,Children and Young People,CYP,Supplies & Services,DEA,05/02/2020,11-16998,1500,[Redacted]
Nottinghamshire County Council,1111/1001,Children and Young People,CYP,Supplies & Services,DEA,06/02/2020,11-16970,550,Sally Eagle Ltd
Nottinghamshire County Council,1111/1001,Children and Young People,CYP,Supplies & Services,DEA,06/02/2020,11-17072,1077.28,Mustard Seed Associates CIC
Nottinghamshire County Council,1111/1001,Children and Young People,CYP,Supplies & Services,DEA,06/02/2020,11-17073,1077.28,Mustard Seed Associates CIC
Nottinghamshire County Council,1111/1001,Children and Young People,CYP,Supplies & Services,DEA,06/02/2020,11-17082,3591.5,Childrens Sensory Therapy Ltd
Nottinghamshire County Council,1111/1001,Children and Young People,CYP,Supplies & Services,DEA,06/02/2020,11-17083,1884,Childrens Sensory Therapy Ltd
Nottinghamshire County Council,1111/1001,Children and Young People,CYP,Supplies & Services,DEA,07/02/2020,11-17024,675.00,Better Schools Company
Nottinghamshire County Council,1111/1001,Children and Young People,CYP,Supplies & Services,DEA,10/02/2020,11-17052,770.00,[Redacted]
Nottinghamshire County Council,1111/1001,Children and Young People,CYP,Supplies & Services,DEA,10/02/2020,11-17054,990,R Funnell EHE Services
Nottinghamshire County Council,1111/1001,Children and Young People,CYP,Supplies & Services,DEA,11/02/2020,11-17120,1460,Rainbow Horses Learning Centre
Nottinghamshire County Council,1111/1001,Children and Young People,CYP,Supplies & Services,DEA,12/02/2020,11-17038,1320,[Redacted]
Nottinghamshire County Council,1111/1001,Children and Young People,CYP,Supplies & Services,DEA,12/02/2020,11-17228,800.00,Marie Strawther Educational Psychol
Nottinghamshire County Council,1111/1001,Children and Young People,CYP,Supplies & Services,DEA,12/02/2020,11-17245,560.00,Fountaindale Special School
Nottinghamshire County Council,1111/1001,Children and Young People,CYP,Supplies & Services,DEA,12/02/2020,11-17246,560.00,Fountaindale Special School
Nottinghamshire County Council,1111/1001,Children and Young People,CYP,Supplies & Services,DEA,12/02/2020,11-17247,560.00,Fountaindale Special School
Nottinghamshire County Council,1111/1001,Children and Young People,CYP,Supplies & Services,DEA,12/02/2020,11-17248,560,Fountaindale Special School
Nottinghamshire County Council,1111/1001,Children and Young People,CYP,Supplies & Services,DEA,12/02/2020,11-17249,560,Fountaindale Special School
Nottinghamshire County Council,1111/1001,Children and Young People,CYP,Supplies & Services,DEA,12/02/2020,11-17250,560.00,Fountaindale Special School
Nottinghamshire County Council,1111/1001,Children and Young People,CYP,Supplies & Services,DEA,12/02/2020,11-17251,560.00,Fountaindale Special School
Nottinghamshire County Council,1111/1001,Children and Young People,CYP,Supplies & Services,DEA,12/02/2020,11-17252,560.00,Fountaindale Special School
Nottinghamshire County Council,1111/1001,Children and Young People,CYP,Supplies & Services,DEA,12/02/2020,11-17253,560,Fountaindale Special School
Nottinghamshire County Council,1111/1001,Children and Young People,CYP,Supplies & Services,DEA,13/02/2020,11-16997,"2,400.00",[Redacted]
Nottinghamshire County Council,1111/1001,Children and Young People,CYP,Supplies & Services,DEA,13/02/2020,11-17284,551.25,OT 4 Kids Ltd
Nottinghamshire County Council,1111/1001,Children and Young People,CYP,Supplies & Services,DEA,13/02/2020,11-17287,725,Lotus Therapy Ltd
Nottinghamshire County Council,1111/1001,Children and Young People,CYP,Supplies & Services,DEA,13/02/2020,11-17294,675,CPD Education Ltd
Nottinghamshire County Council,1111/1001,Children and Young People,CYP,Supplies & Services,DEA,14/02/2020,11-17227,"12,550.00",OSIRIS Educational Woodhall Spa Ltd
Nottinghamshire County Council,1111/1001,Children and Young People,CYP,Supplies & Services,DEA,14/02/2020,11-17306,"1,000.00",Anthony Collins Solicitors LLP
Nottinghamshire County Council,1111/1001,Children and Young People,CYP,Supplies & Services,DEA,14/02/2020,11-17318,870.00,Fountaindale Special School
Nottinghamshire County Council,1111/1001,Children and Young People,CYP,Supplies & Services,DEA,14/02/2020,11-17320,560.00,Fountaindale Special School
Nottinghamshire County Council,1111/1001,Children and Young People,CYP,Supplies & Services,DEA,14/02/2020,11-17321,760,Fountaindale Special School
Nottinghamshire County Council,1111/1001,Children and Young People,CYP,Supplies & Services,DEA,17/02/2020,11-17308,990,[Redacted]
Nottinghamshire County Council,1111/1001,Children and Young People,CYP,Supplies & Services,DEA,17/02/2020,11-17358,551.25,OT 4 Kids Ltd
Nottinghamshire County Council,1111/1001,Children and Young People,CYP,Supplies & Services,DEA,17/02/2020,11-17359,551.25,OT 4 Kids Ltd
Nottinghamshire County Council,1111/1001,Children and Young People,CYP,Supplies & Services,DEA,17/02/2020,11-17369,551.25,OT 4 Kids Ltd
Nottinghamshire County Council,1111/1001,Children and Young People,CYP,Supplies & Services,DEA,17/02/2020,11-17372,810,Lotus Therapy Ltd
Nottinghamshire County Council,1111/1001,Children and Young People,CYP,Supplies & Services,DEA,17/02/2020,11-17373,865,Lotus Therapy Ltd
Nottinghamshire County Council,1111/1001,Children and Young People,CYP,Supplies & Services,DEA,17/02/2020,11-17374,780,Lotus Therapy Ltd
Nottinghamshire County Council,1111/1001,Children and Young People,CYP,Supplies & Services,DEA,17/02/2020,11-17396,"2,016.00",Childrens Sensory Therapy Ltd
Nottinghamshire County Council,1111/1001,Children and Young People,CYP,Supplies & Services,DEA,17/02/2020,11-17397,2193.83,Childrens Sensory Therapy Ltd
Nottinghamshire County Council,1111/1001,Children and Young People,CYP,Supplies & Services,DEA,18/02/2020,11-17400,1092,Weightmans LLP
Nottinghamshire County Council,1111/1001,Children and Young People,CYP,Supplies & Services,DEA,18/02/2020,11-17415,852.80,Carter Brown - The Expert Service L
Nottinghamshire County Council,1111/1001,Children and Young People,CYP,Supplies & Services,DEA,18/02/2020,11-17437,"1,518.00",Early Excellence
Nottinghamshire County Council,1111/1001,Children and Young People,CYP,Supplies & Services,DEA,19/02/2020,11-17434,3825,Fox Education Service Ltd
Nottinghamshire County Council,1111/1001,Children and Young People,CYP,Supplies & Services,DEA,19/02/2020,11-17444,2400,[Redacted]
Nottinghamshire County Council,1111/1001,Children and Young People,CYP,Supplies & Services,DEA,19/02/2020,11-17465,"1,765.53",[Redacted]
Nottinghamshire County Council,1111/1001,Children and Young People,CYP,Supplies & Services,DEA,19/02/2020,11-17467,"2,025.00",Fox Education Service Ltd
Nottinghamshire County Council,1111/1001,Children and Young People,CYP,Supplies & Services,DEA,19/02/2020,11-17495,898.73,ARC Property Services Partnership L
Nottinghamshire County Council,1111/1001,Children and Young People,CYP,Supplies & Services,DEA,20/02/2020,11-17218,770.00,SP Education
Nottinghamshire County Council,1111/1001,Children and Young People,CYP,Supplies & Services,DEA,20/02/2020,11-17427,770.00,SP Education
Nottinghamshire County Council,1111/1001,Children and Young People,CYP,Supplies & Services,DEA,21/02/2020,11-17477,1430,[Redacted]
Nottinghamshire County Council,1111/1001,Children and Young People,CYP,Supplies & Services,DEA,21/02/2020,11-17498,"3,000.00",[Redacted]
Nottinghamshire County Council,1111/1001,Children and Young People,CYP,Supplies & Services,DEA,21/02/2020,11-17563,536.54,Catharsis - Creative Arts Therapy
Nottinghamshire County Council,1111/1001,Children and Young People,CYP,Supplies & Services,DEA,21/02/2020,11-17565,750.00,Time to Listen Ltd
Nottinghamshire County Council,1111/1001,Children and Young People,CYP,Supplies & Services,DEA,21/02/2020,11-17566,"2,025.00",[Redacted]
Nottinghamshire County Council,1111/1001,Children and Young People,CYP,Supplies & Services,DEA,21/02/2020,11-17567,900,Catharsis - Creative Arts Therapy
Nottinghamshire County Council,1111/1001,Children and Young People,CYP,Supplies & Services,DEA,21/02/2020,11-17570,630,Lotus Therapy Ltd
Nottinghamshire County Council,1111/1001,Children and Young People,CYP,Supplies & Services,DEA,24/02/2020,11-17378,875,TAAFA CIC-Trauma & Attachment First
Nottinghamshire County Council,1111/1001,Children and Young People,CYP,Supplies & Services,DEA,24/02/2020,11-17379,1000,TAAFA CIC-Trauma & Attachment First
Nottinghamshire County Council,1111/1001,Children and Young People,CYP,Supplies & Services,DEA,24/02/2020,11-17380,625,TAAFA CIC-Trauma & Attachment First
Nottinghamshire County Council,1111/1001,Children and Young People,CYP,Supplies & Services,DEA,24/02/2020,11-17385,875,TAAFA CIC-Trauma & Attachment First
Nottinghamshire County Council,1111/1001,Children and Young People,CYP,Supplies & Services,DEA,24/02/2020,11-17386,1250,TAAFA CIC-Trauma & Attachment First
Nottinghamshire County Council,1111/1001,Children and Young People,CYP,Supplies & Services,DEA,24/02/2020,11-17387,500.00,TAAFA CIC-Trauma & Attachment First
Nottinghamshire County Council,1111/1001,Children and Young People,CYP,Supplies & Services,DEA,24/02/2020,11-17388,"1,250.00",TAAFA CIC-Trauma & Attachment First
Nottinghamshire County Council,1111/1001,Children and Young People,CYP,Supplies & Services,DEA,24/02/2020,11-17389,500.00,TAAFA CIC-Trauma & Attachment First
Nottinghamshire County Council,1111/1001,Children and Young People,CYP,Supplies & Services,DEA,24/02/2020,11-17390,1875,TAAFA CIC-Trauma & Attachment First
Nottinghamshire County Council,1111/1001,Children and Young People,CYP,Supplies & Services,DEA,24/02/2020,11-17391,1125,TAAFA CIC-Trauma & Attachment First
Nottinghamshire County Council,1111/1001,Children and Young People,CYP,Supplies & Services,DEA,24/02/2020,11-17392,1000,TAAFA CIC-Trauma & Attachment First
Nottinghamshire County Council,1111/1001,Children and Young People,CYP,Supplies & Services,DEA,24/02/2020,11-17393,2375,Raisly Health Ltd
Nottinghamshire County Council,1111/1001,Children and Young People,CYP,Supplies & Services,DEA,25/02/2020,11-17283,1250,Yorkshire Adoption Agency Ltd
Nottinghamshire County Council,1111/1001,Children and Young People,CYP,Supplies & Services,DEA,25/02/2020,11-17636,800.00,Buttercross Pre School
Nottinghamshire County Council,1111/1001,Children and Young People,CYP,Supplies & Services,DEA,25/02/2020,11-17656,972.00,Stars Training Solutions CIC
Nottinghamshire County Council,1111/1001,Children and Young People,CYP,Supplies & Services,DEA,26/02/2020,11-17575,540,Notts Save A Life Ltd
Nottinghamshire County Council,1111/1001,Children and Young People,CYP,Supplies & Services,DEA,26/02/2020,11-17685,900.00,Catharsis - Creative Arts Therapy
Nottinghamshire County Council,1111/1001,Children and Young People,CYP,Supplies & Services,DEA,26/02/2020,11-17686,900.00,Catharsis - Creative Arts Therapy
Nottinghamshire County Council,1111/1001,Children and Young People,CYP,Supplies & Services,DEA,26/02/2020,11-17687,900,Catharsis - Creative Arts Therapy
Nottinghamshire County Council,1111/1001,Children and Young People,CYP,Supplies & Services,DEA,26/02/2020,11-17688,750,Catharsis - Creative Arts Therapy
Nottinghamshire County Council,1111/1001,Children and Young People,CYP,Supplies & Services,DEA,26/02/2020,11-17693,"2,120.00",Childrens Sensory Therapy Ltd
Nottinghamshire County Council,1111/1001,Children and Young People,CYP,Supplies & Services,DEA,27/02/2020,11-16962,11366.08,Sally Rundell Ltd
Nottinghamshire County Council,1111/1001,Children and Young People,CYP,Supplies & Services,DEA,27/02/2020,11-17078,"1,100.00",[Redacted]
Nottinghamshire County Council,1111/1001,Children and Young People,CYP,Supplies & Services,DEA,27/02/2020,11-17104,2043.75,Crisp & Crane Training Ltd
Nottinghamshire County Council,1111/1001,Children and Young People,CYP,Supplies & Services,DEA,27/02/2020,11-17281,550.00,Sally Eagle Ltd
Nottinghamshire County Council,1111/1001,Children and Young People,CYP,Supplies & Services,DEA,27/02/2020,11-17309,1500,[Redacted]
Nottinghamshire County Council,1111/1001,Children and Young People,CYP,Supplies & Services,DEA,27/02/2020,11-17411,550.00,Sally Eagle Ltd
Nottinghamshire County Council,1111/1001,Children and Young People,CYP,Supplies & Services,DEA,27/02/2020,11-17422,750,Sally Eagle Ltd
Nottinghamshire County Council,1111/1001,Children and Young People,CYP,Supplies & Services,DEA,27/02/2020,11-17666,935,Omega Solutions
Nottinghamshire County Council,1111/1001,Children and Young People,CYP,Supplies & Services,DEA,27/02/2020,11-17735,"1,850.83",Childrens Sensory Therapy Ltd
Nottinghamshire County Council,1111/1001,Children and Young People,CYP,Supplies & Services,DEA,27/02/2020,11-17736,"1,350.17",Childrens Sensory Therapy Ltd
Nottinghamshire County Council,1111/1001,Children and Young People,CYP,Supplies & Services,DEA,27/02/2020,11-17739,"3,222.00",Childrens Sensory Therapy Ltd
Nottinghamshire County Council,1111/1001,Children and Young People,CYP,Supplies & Services,DEA,27/02/2020,11-17740,"4,925.17",Childrens Sensory Therapy Ltd
Nottinghamshire County Council,1111/1001,Children and Young People,CYP,Supplies & Services,DEA,27/02/2020,11-17741,"1,924.67",Childrens Sensory Therapy Ltd
Nottinghamshire County Council,1111/1001,Children and Young People,CYP,Supplies & Services,DEA,27/02/2020,11-17742,2195.5,Childrens Sensory Therapy Ltd
Nottinghamshire County Council,1111/1001,Children and Young People,CYP,Supplies & Services,DEA,27/02/2020,11-17746,2330,Faith In Families
Nottinghamshire County Council,1111/1001,Children and Young People,CYP,Supplies & Services,DEA,28/02/2020,11-17079,840.00,Synchrony Psychology Ltd
Nottinghamshire County Council,1111/1001,Children and Young People,CYP,Supplies & Services,DEA,28/02/2020,11-17081,"1,740.00",Synchrony Psychology Ltd
Nottinghamshire County Council,1111/1001,Children and Young People,CYP,Supplies & Services,DEA,28/02/2020,11-17090,540,Synchrony Psychology Ltd
Nottinghamshire County Council,1111/1001,Children and Young People,CYP,Supplies & Services,DEA,28/02/2020,11-17091,660,Synchrony Psychology Ltd
Nottinghamshire County Council,1111/1001,Children and Young People,CYP,Supplies & Services,DEA,28/02/2020,11-17092,574.30,[Redacted]
Nottinghamshire County Council,1111/1001,Children and Young People,CYP,Supplies & Services,DEA,28/02/2020,11-17148,"1,350.00",Earl Education Consultancy Ltd
Nottinghamshire County Council,1111/1001,Children and Young People,CYP,Supplies & Services,DEA,28/02/2020,11-17363,1000,[Redacted]
Nottinghamshire County Council,1111/1001,Children and Young People,CYP,Supplies & Services,DEA,28/02/2020,11-17364,906,Synchrony Psychology Ltd
Nottinghamshire County Council,1111/1001,Children and Young People,CYP,Supplies & Services,DEA,28/02/2020,11-17365,540.00,Synchrony Psychology Ltd
Nottinghamshire County Council,1111/1001,Children and Young People,CYP,Supplies & Services,DEA,28/02/2020,11-17366,1320,Synchrony Psychology Ltd
Nottinghamshire County Council,1111/1001,Children and Young People,CYP,Supplies & Services,DEA,28/02/2020,11-17367,720.00,Synchrony Psychology Ltd
Nottinghamshire County Council,1111/1001,Children and Young People,CYP,Supplies & Services,DEA,28/02/2020,11-17377,585.75,C Wright (Child & Adolescent Psycho
Nottinghamshire County Council,1111/1001,Children and Young People,CYP,Supplies & Services,DEA,28/02/2020,11-17408,1490,Anna Pinkerton Ltd
Nottinghamshire County Council,1111/1001,Children and Young People,CYP,Supplies & Services,DEA,28/02/2020,11-17459,690,Apple Tree Centre (South Yorkshire)
Nottinghamshire County Council,1111/1001,Children and Young People,CYP,Supplies & Services,DEA,28/02/2020,11-17466,925,[Redacted]
Nottinghamshire County Council,1111/1001,Children and Young People,CYP,Supplies & Services,DEA,28/02/2020,11-17478,"10,000.00",Lincolnshire County Council
Nottinghamshire County Council,1111/1001,Children and Young People,CYP,Supplies & Services,DEA,28/02/2020,11-17611,1031.25,Bright Light Therapy/Elaine M Spenc
Nottinghamshire County Council,1111/1001,Children and Young People,CYP,Supplies & Services,DEA,28/02/2020,11-17618,617.5,Bright Light Therapy/Elaine M Spenc
Nottinghamshire County Council,1111/1001,Children and Young People,CYP,Supplies & Services,DEA,28/02/2020,11-17665,990.00,R Funnell EHE Services
Nottinghamshire County Council,1111/1001,Children and Young People,CYP,Supplies & Services,DEA,28/02/2020,11-17667,990,R Funnell EHE Services
Nottinghamshire County Council,1111/1001,Children and Young People,CYP,Supplies & Services,DEA,28/02/2020,11-17673,"1,052.00",Bright Light Therapy/Elaine M Spenc
Nottinghamshire County Council,1111/1001,Children and Young People,CYP,Supplies & Services,DEA,28/02/2020,11-17707,"1,400.00",E Learning Team Ltd
Nottinghamshire County Council,1111/1001,Children and Young People,CYP,Supplies & Services,DEA,28/02/2020,11-17755,"3,527.33",Childrens Sensory Therapy Ltd
Nottinghamshire County Council,1111/1001,Children and Young People,CYP,Supplies & Services,DEA,28/02/2020,11-17756,1249.5,Childrens Sensory Therapy Ltd
Nottinghamshire County Council,1111/1001,Children and Young People,CYP,Supplies & Services,DEA,28/02/2020,11-17757,1971.33,Childrens Sensory Therapy Ltd
Nottinghamshire County Council,1111/1001,Children and Young People,CYP,Supplies & Services,DEA,28/02/2020,11-17759,1891.5,Childrens Sensory Therapy Ltd
Nottinghamshire County Council,1111/1001,Children and Young People,CYP,Supplies & Services,DEA,28/02/2020,11-17760,3194.67,Childrens Sensory Therapy Ltd
Nottinghamshire County Council,1111/1001,Children and Young People,CYP,Supplies & Services,DEA,28/02/2020,11-17761,1149,[Redacted]
Nottinghamshire County Council,1111/1001,Children and Young People,CYP,Supplies & Services,DEA,28/02/2020,11-17766,3631,Childrens Sensory Therapy Ltd
Nottinghamshire County Council,1111/1001,Children and Young People,CYP,Supplies & Services,DEA,28/02/2020,11-17768,508.50,Childrens Sensory Therapy Ltd
Nottinghamshire County Council,1111/1001,Children and Young People,CYP,Supplies & Services,DEA,28/02/2020,11-17769,"2,432.67",Childrens Sensory Therapy Ltd
Nottinghamshire County Council,1111/1001,Children and Young People,CYP,Supplies & Services,DEA,28/02/2020,11-17770,4392.67,Childrens Sensory Therapy Ltd
Nottinghamshire County Council,1111/1001,Children and Young People,CYP,Supplies & Services,DEA,28/02/2020,11-17771,2977.67,Childrens Sensory Therapy Ltd
Nottinghamshire County Council,1111/1001,Children and Young People,CYP,Supplies & Services,DEA,28/02/2020,11-17772,"2,315.83",Childrens Sensory Therapy Ltd
Nottinghamshire County Council,1111/1001,Children and Young People,CYP,Supplies & Services,DEA,28/02/2020,11-17773,3984.17,Childrens Sensory Therapy Ltd
Nottinghamshire County Council,1111/1001,Children and Young People,CYP,Supplies & Services,DEA,28/02/2020,11-17774,2380,Childrens Sensory Therapy Ltd
Nottinghamshire County Council,1111/1001,Children and Young People,CYP,Supplies & Services,DEA,28/02/2020,11-17775,2277.33,Childrens Sensory Therapy Ltd
Nottinghamshire County Council,1111/1001,Children and Young People,CYP,Supplies & Services,DEA,28/02/2020,11-17776,4751.33,Childrens Sensory Therapy Ltd
Nottinghamshire County Council,1111/1001,Children and Young People,CYP,Supplies & Services,DEA,28/02/2020,11-17777,"2,181.00",Childrens Sensory Therapy Ltd
Nottinghamshire County Council,1111/1001,Children and Young People,CYP,Supplies & Services,DEA,28/02/2020,11-17778,"2,001.50",Childrens Sensory Therapy Ltd
Nottinghamshire County Council,1111/1001,Children and Young People,CYP,Supplies & Services,DEA,28/02/2020,11-17779,1872.33,Childrens Sensory Therapy Ltd
Nottinghamshire County Council,1111/1001,Children and Young People,CYP,Supplies & Services,DEA,28/02/2020,11-17786,1350,[Redacted]
Nottinghamshire County Council,1111/1001,Children and Young People,CYP,Supplies & Services,DFA,04/02/2020,11-10189,620.00,Lantec Services Ltd
Nottinghamshire County Council,1111/1001,Children and Young People,CYP,Supplies & Services,DFA,14/02/2020,11-17268,2520,Jigsaw Systems Ltd
Nottinghamshire County Council,1111/1001,Children and Young People,CYP,Supplies & Services,DFA,21/02/2020,11-17026,1926.32,Reliance High-Tech Ltd
Nottinghamshire County Council,1111/1001,Children and Young People,CYP,Supplies & Services,DFA,26/02/2020,11-17480,754.96,Teachers 2 Parents Ltd
Nottinghamshire County Council,1111/1001,Children and Young People,CYP,Supplies & Services,DFA,27/02/2020,11-17711,"2,718.00",Softbox Ltd
Nottinghamshire County Council,1111/1001,Children and Young People,CYP,Supplies & Services,DHA,25/02/2020,11-17668,"12,500.00",Remedi-Restorative Services
Nottinghamshire County Council,1111/1001,Children and Young People,CYP,Supplies & Services,DKA,05/02/2020,11-11360,800,Norman Galloway Ltd
Nottinghamshire County Council,1111/1001,Children and Young People,CYP,Supplies & Services,DKA,05/02/2020,11-11361,650,[Redacted]
Nottinghamshire County Council,1111/1001,Children and Young People,CYP,Supplies & Services,DKA,05/02/2020,11-11362,500.75,West Midlands Housing Ltd
Nottinghamshire County Council,1111/1001,Children and Young People,CYP,Supplies & Services,DKA,05/02/2020,11-11363,515,Mansfield Property Services LtdT/A
Nottinghamshire County Council,1111/1001,Children and Young People,CYP,Supplies & Services,DKA,12/02/2020,11-12212,500.75,West Midlands Housing Ltd
Nottinghamshire County Council,1111/1001,Children and Young People,CYP,Supplies & Services,DKA,18/02/2020,11-17409,900,Coram
Nottinghamshire County Council,1111/1001,Children and Young People,CYP,Supplies & Services,DKA,19/02/2020,11-15407,990.00,[Redacted]
Nottinghamshire County Council,1111/1001,Children and Young People,CYP,Supplies & Services,DKA,19/02/2020,11-15408,500.75,West Midlands Housing Ltd
Nottinghamshire County Council,1111/1001,Children and Young People,CYP,Supplies & Services,DKA,19/02/2020,11-15409,510,Countrywide Residental Lettings
Nottinghamshire County Council,1111/1001,Children and Young People,CYP,Supplies & Services,DKA,20/02/2020,11-17531,572.00,NG Magazines T/A Alicat Ltd
Nottinghamshire County Council,1111/1001,Children and Young People,CYP,Supplies & Services,DKA,25/02/2020,11-17655,1400,Coram
Nottinghamshire County Council,1111/1001,Children and Young People,CYP,Supplies & Services,DKA,26/02/2020,11-16105,650,[Redacted]
Nottinghamshire County Council,1111/1001,Children and Young People,CYP,Supplies & Services,DKA,26/02/2020,11-16106,697.96,ADG Management
Nottinghamshire County Council,1111/1001,Children and Young People,CYP,Supplies & Services,DKA,26/02/2020,11-16107,500.75,West Midlands Housing Ltd
Nottinghamshire County Council,1111/1001,Children and Young People,CYP,Supplies & Services,DKA,26/02/2020,11-16108,514.39,Student Lodge Lettings Company Ltd
Nottinghamshire County Council,1111/1001,Children and Young People,CYP,Supplies & Services,DKA,26/02/2020,11-16109,650,Jillings Estates Ltd (Bramley Apple
Nottinghamshire County Council,1111/1001,Children and Young People,CYP,Third Party Payments,EBA,04/02/2020,11-16963,590,Children's Choice Therapy Services
Nottinghamshire County Council,1111/1001,Children and Young People,CYP,Third Party Payments,EBA,06/02/2020,11-17077,"62,388.52","Culture, Learning & Libraries (Midl"
Nottinghamshire County Council,1111/1001,Children and Young People,CYP,Third Party Payments,EBA,10/02/2020,11-17189,"198,398.63",Transform Schools (Bassetlaw) Ltd
Nottinghamshire County Council,1111/1001,Children and Young People,CYP,Third Party Payments,EBA,24/02/2020,11-17505,198398.63,Transform Schools (Bassetlaw) Ltd
Nottinghamshire County Council,1111/1001,Children and Young People,CYP,Third Party Payments,EBA,26/02/2020,11-17680,182461.29,East Leake Schools Ltd
Nottinghamshire County Council,1111/1001,Children and Young People,CYP,Third Party Payments,EBA,28/02/2020,11-16992,2776.67,Derbyshire County Council
Nottinghamshire County Council,1111/1001,Children and Young People,CYP,Third Party Payments,EBA,28/02/2020,11-17414,"48,238.25",Nottingham and Nottinghamshire Yout
Nottinghamshire County Council,1111/1001,Children and Young People,CYP,Third Party Payments,EBA,28/02/2020,11-17515,"264,261.75",Nottingham and Nottinghamshire Yout
Nottinghamshire County Council,1111/1001,Children and Young People,CYP,Third Party Payments,EDA,04/02/2020,11-10021,9145.83,Magnus Church of England Academy
Nottinghamshire County Council,1111/1001,Children and Young People,CYP,Third Party Payments,EDA,04/02/2020,11-10022,"43,692.55",Magnus Church of England Academy
Nottinghamshire County Council,1111/1001,Children and Young People,CYP,Third Party Payments,EDA,04/02/2020,11-10185,"6,617.00",Quarrydale Academy
Nottinghamshire County Council,1111/1001,Children and Young People,CYP,Third Party Payments,EDA,04/02/2020,11-10186,74740,Quarrydale Academy
Nottinghamshire County Council,1111/1001,Children and Young People,CYP,Third Party Payments,EDA,04/02/2020,11-11354,878,Sunnyside Spencer Academy
Nottinghamshire County Council,1111/1001,Children and Young People,CYP,Third Party Payments,EDA,04/02/2020,11-11355,900.00,Yeoman Park Academy
Nottinghamshire County Council,1111/1001,Children and Young People,CYP,Third Party Payments,EDA,04/02/2020,11-11356,2500,Yeoman Park Academy
Nottinghamshire County Council,1111/1001,Children and Young People,CYP,Third Party Payments,EDA,05/02/2020,11-11364,89943,Foxwood Academy
Nottinghamshire County Council,1111/1001,Children and Young People,CYP,Third Party Payments,EDA,05/02/2020,11-11365,8333.33,Foxwood Academy
Nottinghamshire County Council,1111/1001,Children and Young People,CYP,Third Party Payments,EDA,05/02/2020,11-11366,"4,167.00",Beech Academy
Nottinghamshire County Council,1111/1001,Children and Young People,CYP,Third Party Payments,EDA,05/02/2020,11-11367,"71,825.00",Beech Academy
Nottinghamshire County Council,1111/1001,Children and Young People,CYP,Third Party Payments,EDA,05/02/2020,11-11368,27500,Beech Academy
Nottinghamshire County Council,1111/1001,Children and Young People,CYP,Third Party Payments,EDA,05/02/2020,11-11369,52344,Redgate Primary Academy
Nottinghamshire County Council,1111/1001,Children and Young People,CYP,Third Party Payments,EDA,05/02/2020,11-11370,"10,000.00",Redgate Primary Academy
Nottinghamshire County Council,1111/1001,Children and Young People,CYP,Third Party Payments,EDA,05/02/2020,11-11371,585.00,The Minster School (Academy)
Nottinghamshire County Council,1111/1001,Children and Young People,CYP,Third Party Payments,EDA,05/02/2020,11-11372,585.00,Magnus Church of England Academy
Nottinghamshire County Council,1111/1001,Children and Young People,CYP,Third Party Payments,EDA,05/02/2020,11-11373,"1,755.00",Arnbrook Primary Academy
Nottinghamshire County Council,1111/1001,Children and Young People,CYP,Third Party Payments,EDA,05/02/2020,11-11374,585.00,Heymann Primary School
Nottinghamshire County Council,1111/1001,Children and Young People,CYP,Third Party Payments,EDA,05/02/2020,11-11375,"2,047.00",William Gladstone C of E Primary Ac
Nottinghamshire County Council,1111/1001,Children and Young People,CYP,Third Party Payments,EDA,05/02/2020,11-11376,"101,125.00",Yeoman Park Academy
Nottinghamshire County Council,1111/1001,Children and Young People,CYP,Third Party Payments,EDA,12/02/2020,11-12213,683,St John the Baptist C of E Primary
Nottinghamshire County Council,1111/1001,Children and Young People,CYP,Third Party Payments,EDA,12/02/2020,11-12214,1268,Parkdale Primary Academy
Nottinghamshire County Council,1111/1001,Children and Young People,CYP,Third Party Payments,EDA,26/02/2020,11-10187,"5,674.61",All Saints Catholic Voluntary Acade
Nottinghamshire County Council,1111/1001,Children and Young People,CYP,Third Party Payments,EDA,26/02/2020,11-10188,"64,088.39",All Saints Catholic Voluntary Acade
Nottinghamshire County Council,1111/1001,Children and Young People,CYP,Third Party Payments,EDA,28/02/2020,11-10146,7200,Brunts Academy
Nottinghamshire County Council,1111/1001,Children and Young People,CYP,Third Party Payments,EDA,28/02/2020,11-10147,"1,350.00",Mansfield Primary Academy
Nottinghamshire County Council,1111/1001,Children and Young People,CYP,Third Party Payments,EDA,28/02/2020,11-10148,"2,900.00",Edwalton Primary (Academy)(Flying H
Nottinghamshire County Council,1111/1001,Children and Young People,CYP,Third Party Payments,EDA,28/02/2020,11-10149,4616,Carlton Le Willows Academy
Nottinghamshire County Council,1111/1001,Children and Young People,CYP,Third Party Payments,EDA,28/02/2020,11-10150,"3,461.00",Netherfield Primary School (Academy
Nottinghamshire County Council,1111/1001,Children and Young People,CYP,Third Party Payments,EDA,28/02/2020,11-10151,"1,000.00",Killisick Junior Academy
Nottinghamshire County Council,1111/1001,Children and Young People,CYP,Third Party Payments,EDA,28/02/2020,11-10152,500.00,Redhill Academy
Nottinghamshire County Council,1111/1001,Children and Young People,CYP,Third Party Payments,EDA,28/02/2020,11-10153,500.00,Burntstump Seely CofE Primary Acade
Nottinghamshire County Council,1111/1001,Children and Young People,CYP,Third Party Payments,EDA,28/02/2020,11-10154,500,Richard Bonnington Primary Academy(
Nottinghamshire County Council,1111/1001,Children and Young People,CYP,Third Party Payments,EDA,28/02/2020,11-10155,8000,Redhill Academy
Nottinghamshire County Council,1111/1001,Children and Young People,CYP,Third Party Payments,EDA,28/02/2020,11-10156,16937,Killisick Junior Academy
Nottinghamshire County Council,1111/1001,Children and Young People,CYP,Third Party Payments,EDA,28/02/2020,11-10157,17473,Robert Mellors Primary & Nursery Ac
Nottinghamshire County Council,1111/1001,Children and Young People,CYP,Third Party Payments,EDA,28/02/2020,11-10158,4787,Burntstump Seely CofE Primary Acade
Nottinghamshire County Council,1111/1001,Children and Young People,CYP,Third Party Payments,EDA,28/02/2020,11-10159,1000,Edwalton Primary (Academy)(Flying H
Nottinghamshire County Council,1111/1001,Children and Young People,CYP,Third Party Payments,EDA,28/02/2020,11-10160,2746,St Edmund Campion Voluntary Academy
Nottinghamshire County Council,1111/1001,Children and Young People,CYP,Third Party Payments,EDA,28/02/2020,11-10161,"7,320.00",The Becket Catholic Voluntary Acade
Nottinghamshire County Council,1111/1001,Children and Young People,CYP,Third Party Payments,EDA,28/02/2020,11-10162,"26,463.00",Candleby Lane School
Nottinghamshire County Council,1111/1001,Children and Young People,CYP,Third Party Payments,EDA,28/02/2020,11-10163,"23,433.00",South Nottinghamshire Academy
Nottinghamshire County Council,1111/1001,Children and Young People,CYP,Third Party Payments,EDA,28/02/2020,11-10164,1022,Samuel Barlow Primary Academy
Nottinghamshire County Council,1111/1001,Children and Young People,CYP,Third Party Payments,EDA,28/02/2020,11-10165,922,Alderman White School
Nottinghamshire County Council,1111/1001,Children and Young People,CYP,Third Party Payments,EDA,28/02/2020,11-10166,23841,Redhill Academy
Nottinghamshire County Council,1111/1001,Children and Young People,CYP,Third Party Payments,EFA,06/02/2020,11-17071,4369,Teaching Personnel Ltd
Nottinghamshire County Council,1111/1001,Children and Young People,CYP,Third Party Payments,EFA,06/02/2020,11-17075,4369,Teaching Personnel Ltd
Nottinghamshire County Council,1111/1001,Children and Young People,CYP,Third Party Payments,EFA,06/02/2020,11-17084,"3,530.00",Teaching Personnel Ltd
Nottinghamshire County Council,1111/1001,Children and Young People,CYP,Third Party Payments,EFA,06/02/2020,11-17105,"2,970.00",Phoenix Aspirational Learning Suppo
Nottinghamshire County Council,1111/1001,Children and Young People,CYP,Third Party Payments,EFA,07/02/2020,11-17146,660,New Roots Care & Education Ltd
Nottinghamshire County Council,1111/1001,Children and Young People,CYP,Third Party Payments,EFA,07/02/2020,11-17165,"4,369.00",Teaching Personnel Ltd
Nottinghamshire County Council,1111/1001,Children and Young People,CYP,Third Party Payments,EFA,11/02/2020,11-16996,"1,500.00",First Class Tailored Solutions Ltd
Nottinghamshire County Council,1111/1001,Children and Young People,CYP,Third Party Payments,EFA,13/02/2020,11-17125,633.5,Cocoon Solutions Ltd
Nottinghamshire County Council,1111/1001,Children and Young People,CYP,Third Party Payments,EFA,18/02/2020,11-17406,1725,A P E Ltd (Alternative Programme Ed
Nottinghamshire County Council,1111/1001,Children and Young People,CYP,Third Party Payments,EFA,18/02/2020,11-17416,"2,527.97",RNN Group
Nottinghamshire County Council,1111/1001,Children and Young People,CYP,Third Party Payments,EFA,18/02/2020,11-17417,1450.28,RNN Group
Nottinghamshire County Council,1111/1001,Children and Young People,CYP,Third Party Payments,EFA,19/02/2020,11-17436,"32,344.74",Eastwood Grange Priory
Nottinghamshire County Council,1111/1001,Children and Young People,CYP,Third Party Payments,EFA,19/02/2020,11-17448,32344.74,Eastwood Grange Priory
Nottinghamshire County Council,1111/1001,Children and Young People,CYP,Third Party Payments,EFA,19/02/2020,11-17449,"32,344.74",Eastwood Grange Priory
Nottinghamshire County Council,1111/1001,Children and Young People,CYP,Third Party Payments,EFA,19/02/2020,11-17450,32344.74,Eastwood Grange Priory
Nottinghamshire County Council,1111/1001,Children and Young People,CYP,Third Party Payments,EFA,19/02/2020,11-17451,"32,344.74",Eastwood Grange Priory
Nottinghamshire County Council,1111/1001,Children and Young People,CYP,Third Party Payments,EFA,19/02/2020,11-17452,32344.74,Eastwood Grange Priory
Nottinghamshire County Council,1111/1001,Children and Young People,CYP,Third Party Payments,EFA,19/02/2020,11-17453,32344.74,Eastwood Grange Priory
Nottinghamshire County Council,1111/1001,Children and Young People,CYP,Third Party Payments,EFA,19/02/2020,11-17483,"4,000.00",A Place To Call Our Own Ltd
Nottinghamshire County Council,1111/1001,Children and Young People,CYP,Third Party Payments,EFA,19/02/2020,11-17488,"1,957.50",A P E Ltd (Alternative Programme Ed
Nottinghamshire County Council,1111/1001,Children and Young People,CYP,Third Party Payments,EFA,19/02/2020,11-17491,"17,100.00",High Grange Specialist School
Nottinghamshire County Council,1111/1001,Children and Young People,CYP,Third Party Payments,EFA,20/02/2020,11-17501,"1,188.00",Buxton Training Enterprises Ltd
Nottinghamshire County Council,1111/1001,Children and Young People,CYP,Third Party Payments,EFA,21/02/2020,11-17349,"6,413.46",I Can Services Ltd
Nottinghamshire County Council,1111/1001,Children and Young People,CYP,Third Party Payments,EFA,21/02/2020,11-17583,6413.46,I Can Services Ltd
Nottinghamshire County Council,1111/1001,Children and Young People,CYP,Third Party Payments,EFA,21/02/2020,11-17584,6413.46,I Can Services Ltd
Nottinghamshire County Council,1111/1001,Children and Young People,CYP,Third Party Payments,EFA,21/02/2020,11-17585,"6,413.46",I Can Services Ltd
Nottinghamshire County Council,1111/1001,Children and Young People,CYP,Third Party Payments,EFA,21/02/2020,11-17586,"7,993.12",I Can Services Ltd
Nottinghamshire County Council,1111/1001,Children and Young People,CYP,Third Party Payments,EFA,21/02/2020,11-17587,6413.46,I Can Services Ltd
Nottinghamshire County Council,1111/1001,Children and Young People,CYP,Third Party Payments,EFA,21/02/2020,11-17588,7993.12,I Can Services Ltd
Nottinghamshire County Council,1111/1001,Children and Young People,CYP,Third Party Payments,EFA,21/02/2020,11-17589,"7,993.12",I Can Services Ltd
Nottinghamshire County Council,1111/1001,Children and Young People,CYP,Third Party Payments,EFA,21/02/2020,11-17590,"6,413.46",I Can Services Ltd
Nottinghamshire County Council,1111/1001,Children and Young People,CYP,Third Party Payments,EFA,21/02/2020,11-17591,6413.46,I Can Services Ltd
Nottinghamshire County Council,1111/1001,Children and Young People,CYP,Third Party Payments,EFA,21/02/2020,11-17592,6413.46,I Can Services Ltd
Nottinghamshire County Council,1111/1001,Children and Young People,CYP,Third Party Payments,EFA,21/02/2020,11-17593,"6,413.46",I Can Services Ltd
Nottinghamshire County Council,1111/1001,Children and Young People,CYP,Third Party Payments,EFA,21/02/2020,11-17594,7993.12,I Can Services Ltd
Nottinghamshire County Council,1111/1001,Children and Young People,CYP,Third Party Payments,EFA,21/02/2020,11-17595,"7,993.12",I Can Services Ltd
Nottinghamshire County Council,1111/1001,Children and Young People,CYP,Third Party Payments,EFA,21/02/2020,11-17596,6413.46,I Can Services Ltd
Nottinghamshire County Council,1111/1001,Children and Young People,CYP,Third Party Payments,EFA,21/02/2020,11-17598,3530,Teaching Personnel Ltd
Nottinghamshire County Council,1111/1001,Children and Young People,CYP,Third Party Payments,EFA,21/02/2020,11-17599,1045,Venture Learning Ltd
Nottinghamshire County Council,1111/1001,Children and Young People,CYP,Third Party Payments,EFA,21/02/2020,11-17600,1045,Venture Learning Ltd
Nottinghamshire County Council,1111/1001,Children and Young People,CYP,Third Party Payments,EFA,24/02/2020,11-17610,"7,664.60",Buxton Training Enterprises Ltd
Nottinghamshire County Council,1111/1001,Children and Young People,CYP,Third Party Payments,EFA,24/02/2020,11-17614,9227,Homefield College Ltd
Nottinghamshire County Council,1111/1001,Children and Young People,CYP,Third Party Payments,EFA,24/02/2020,11-17623,6413.46,I Can Services Ltd
Nottinghamshire County Council,1111/1001,Children and Young People,CYP,Third Party Payments,EFA,24/02/2020,11-17624,"6,413.46",I Can Services Ltd
Nottinghamshire County Council,1111/1001,Children and Young People,CYP,Third Party Payments,EFA,24/02/2020,11-17625,6413.46,I Can Services Ltd
Nottinghamshire County Council,1111/1001,Children and Young People,CYP,Third Party Payments,EFA,24/02/2020,11-17626,"6,413.46",I Can Services Ltd
Nottinghamshire County Council,1111/1001,Children and Young People,CYP,Third Party Payments,EFA,24/02/2020,11-17627,"6,413.46",I Can Services Ltd
Nottinghamshire County Council,1111/1001,Children and Young People,CYP,Third Party Payments,EFA,24/02/2020,11-17628,"6,413.46",I Can Services Ltd
Nottinghamshire County Council,1111/1001,Children and Young People,CYP,Third Party Payments,EFA,24/02/2020,11-17629,6413.46,I Can Services Ltd
Nottinghamshire County Council,1111/1001,Children and Young People,CYP,Third Party Payments,EFA,24/02/2020,11-17638,6413.46,I Can Services Ltd
Nottinghamshire County Council,1111/1001,Children and Young People,CYP,Third Party Payments,EFA,24/02/2020,11-17639,6413.46,I Can Services Ltd
Nottinghamshire County Council,1111/1001,Children and Young People,CYP,Third Party Payments,EFA,24/02/2020,11-17641,6413.46,I Can Services Ltd
Nottinghamshire County Council,1111/1001,Children and Young People,CYP,Third Party Payments,EFA,24/02/2020,11-17642,6413.46,I Can Services Ltd
Nottinghamshire County Council,1111/1001,Children and Young People,CYP,Third Party Payments,EFA,24/02/2020,11-17643,7993.12,I Can Services Ltd
Nottinghamshire County Council,1111/1001,Children and Young People,CYP,Third Party Payments,EFA,24/02/2020,11-17644,"6,413.46",I Can Services Ltd
Nottinghamshire County Council,1111/1001,Children and Young People,CYP,Third Party Payments,EFA,25/02/2020,11-17637,840.00,Rainbow Horses Learning Centre
Nottinghamshire County Council,1111/1001,Children and Young People,CYP,Third Party Payments,EFA,25/02/2020,11-17640,12695,Homefield College Ltd
Nottinghamshire County Council,1111/1001,Children and Young People,CYP,Third Party Payments,EFA,25/02/2020,11-17645,6413.46,I Can Services Ltd
Nottinghamshire County Council,1111/1001,Children and Young People,CYP,Third Party Payments,EFA,25/02/2020,11-17646,"6,413.46",I Can Services Ltd
Nottinghamshire County Council,1111/1001,Children and Young People,CYP,Third Party Payments,EFA,25/02/2020,11-17647,6413.46,I Can Services Ltd
Nottinghamshire County Council,1111/1001,Children and Young People,CYP,Third Party Payments,EFA,25/02/2020,11-17649,7993.12,I Can Services Ltd
Nottinghamshire County Council,1111/1001,Children and Young People,CYP,Third Party Payments,EFA,25/02/2020,11-17650,7993.12,I Can Services Ltd
Nottinghamshire County Council,1111/1001,Children and Young People,CYP,Third Party Payments,EFA,25/02/2020,11-17651,6413.46,I Can Services Ltd
Nottinghamshire County Council,1111/1001,Children and Young People,CYP,Third Party Payments,EFA,25/02/2020,11-17652,"6,413.46",I Can Services Ltd
Nottinghamshire County Council,1111/1001,Children and Young People,CYP,Third Party Payments,EFA,25/02/2020,11-17653,"6,413.46",I Can Services Ltd
Nottinghamshire County Council,1111/1001,Children and Young People,CYP,Third Party Payments,EFA,25/02/2020,11-17670,6413.46,I Can Services Ltd
Nottinghamshire County Council,1111/1001,Children and Young People,CYP,Third Party Payments,EFA,25/02/2020,11-17671,6413.46,I Can Services Ltd
Nottinghamshire County Council,1111/1001,Children and Young People,CYP,Third Party Payments,EFA,26/02/2020,11-17675,"6,413.46",I Can Services Ltd
Nottinghamshire County Council,1111/1001,Children and Young People,CYP,Third Party Payments,EFA,26/02/2020,11-17684,31830,First Class Tailored Solutions Ltd
Nottinghamshire County Council,1111/1001,Children and Young People,CYP,Third Party Payments,EFA,26/02/2020,11-17690,4200,Sutherland House Trading Ltd
Nottinghamshire County Council,1111/1001,Children and Young People,CYP,Third Party Payments,EFA,26/02/2020,11-17691,"4,200.00",Sutherland House Trading Ltd
Nottinghamshire County Council,1111/1001,Children and Young People,CYP,Third Party Payments,EFA,26/02/2020,11-17692,"4,200.00",Sutherland House Trading Ltd
Nottinghamshire County Council,1111/1001,Children and Young People,CYP,Third Party Payments,EFA,26/02/2020,11-17694,"32,344.74",Eastwood Grange Priory
Nottinghamshire County Council,1111/1001,Children and Young People,CYP,Third Party Payments,EFA,26/02/2020,11-17695,32344.74,Eastwood Grange Priory
Nottinghamshire County Council,1111/1001,Children and Young People,CYP,Third Party Payments,EFA,26/02/2020,11-17697,4200,Sutherland House Trading Ltd
Nottinghamshire County Council,1111/1001,Children and Young People,CYP,Third Party Payments,EFA,26/02/2020,11-17698,"4,200.00",Sutherland House Trading Ltd
Nottinghamshire County Council,1111/1001,Children and Young People,CYP,Third Party Payments,EFA,27/02/2020,11-17724,1548,Teaching Personnel Ltd
Nottinghamshire County Council,1111/1001,Children and Young People,CYP,Third Party Payments,EFA,27/02/2020,11-17734,"4,369.00",Teaching Personnel Ltd
Nottinghamshire County Council,1111/1001,Children and Young People,CYP,Third Party Payments,EFA,27/02/2020,11-17737,3530,Teaching Personnel Ltd
Nottinghamshire County Council,1111/1001,Children and Young People,CYP,Third Party Payments,EFA,27/02/2020,11-17738,"3,530.00",Teaching Personnel Ltd
Nottinghamshire County Council,1111/1001,Children and Young People,CYP,Third Party Payments,EFA,27/02/2020,11-17744,"66,960.50",First Class Tailored Solutions Ltd
Nottinghamshire County Council,1111/1001,Children and Young People,CYP,Third Party Payments,EFA,28/02/2020,11-16965,34656.64,Nova Centric Ltd T /A Confetti ICT
Nottinghamshire County Council,1111/1001,Children and Young People,CYP,Third Party Payments,EFA,28/02/2020,11-17131,"5,226.00",Holgate Academy
Nottinghamshire County Council,1111/1001,Children and Young People,CYP,Third Party Payments,EFA,28/02/2020,11-17413,907356,Portland College
Nottinghamshire County Council,1111/1001,Children and Young People,CYP,Third Party Payments,EFA,28/02/2020,11-17423,1500,Tuxford Academy
Nottinghamshire County Council,1111/1001,Children and Young People,CYP,Third Party Payments,EFA,28/02/2020,11-17492,640,Pollyteach Ltd
Nottinghamshire County Council,1111/1001,Children and Young People,CYP,Third Party Payments,EFA,28/02/2020,11-17503,18472.33,Acorn Care & Education Ltd
Nottinghamshire County Council,1111/1001,Children and Young People,CYP,Third Party Payments,EFA,28/02/2020,11-17504,18472.33,Acorn Care & Education Ltd
Nottinghamshire County Council,1111/1001,Children and Young People,CYP,Third Party Payments,EFA,28/02/2020,11-17506,18472.33,Acorn Care & Education Ltd
Nottinghamshire County Council,1111/1001,Children and Young People,CYP,Third Party Payments,EFA,28/02/2020,11-17507,18472.33,Acorn Care & Education Ltd
Nottinghamshire County Council,1111/1001,Children and Young People,CYP,Third Party Payments,EFA,28/02/2020,11-17508,"18,472.33",Acorn Care & Education Ltd
Nottinghamshire County Council,1111/1001,Children and Young People,CYP,Third Party Payments,EFA,28/02/2020,11-17509,"18,472.33",Acorn Care & Education Ltd
Nottinghamshire County Council,1111/1001,Children and Young People,CYP,Third Party Payments,EFA,28/02/2020,11-17597,37137,Pollyteach Ltd
Nottinghamshire County Council,1111/1001,Children and Young People,CYP,Third Party Payments,EFA,28/02/2020,11-17780,72363.93,REAL Independent School Ltd
Nottinghamshire County Council,1111/1001,Children and Young People,CYP,Third Party Payments,EGA,03/02/2020,11-16954,74302.14,Compass Fostering Central Ltd
Nottinghamshire County Council,1111/1001,Children and Young People,CYP,Third Party Payments,EGA,03/02/2020,11-16955,"74,302.14",Compass Fostering Central Ltd
Nottinghamshire County Council,1111/1001,Children and Young People,CYP,Third Party Payments,EGA,03/02/2020,11-16956,"74,302.14",Compass Fostering Central Ltd
Nottinghamshire County Council,1111/1001,Children and Young People,CYP,Third Party Payments,EGA,04/02/2020,11-10024,2282.78,Little Lambs Day Nursery (Kirkby in
Nottinghamshire County Council,1111/1001,Children and Young People,CYP,Third Party Payments,EGA,04/02/2020,11-10176,615.00,Wellin Lane Playgroup
Nottinghamshire County Council,1111/1001,Children and Young People,CYP,Third Party Payments,EGA,04/02/2020,11-10177,615.00,Sherwood East Childrens Centre (RNN
Nottinghamshire County Council,1111/1001,Children and Young People,CYP,Third Party Payments,EGA,04/02/2020,11-10178,615,Safe Haven Day Nursery
Nottinghamshire County Council,1111/1001,Children and Young People,CYP,Third Party Payments,EGA,04/02/2020,11-10179,615,Learning Ladder Childcare Ltd
Nottinghamshire County Council,1111/1001,Children and Young People,CYP,Third Party Payments,EGA,04/02/2020,11-10180,615.00,The Secret Garden Private Day Nurse
Nottinghamshire County Council,1111/1001,Children and Young People,CYP,Third Party Payments,EGA,04/02/2020,11-10181,615,Pre-School 345
Nottinghamshire County Council,1111/1001,Children and Young People,CYP,Third Party Payments,EGA,04/02/2020,11-10182,615,Wollaton Village Day Nurseries Ltd
Nottinghamshire County Council,1111/1001,Children and Young People,CYP,Third Party Payments,EGA,04/02/2020,11-10183,615,Happy Days Childcare Services Ltd
Nottinghamshire County Council,1111/1001,Children and Young People,CYP,Third Party Payments,EGA,04/02/2020,11-10184,"1,230.00",Lime Trees (Forest Town)
Nottinghamshire County Council,1111/1001,Children and Young People,CYP,Third Party Payments,EGA,04/02/2020,11-16991,"17,714.33",Grace Care Ltd
Nottinghamshire County Council,1111/1001,Children and Young People,CYP,Third Party Payments,EGA,05/02/2020,11-11534,2445.47,Luans Little Stars
Nottinghamshire County Council,1111/1001,Children and Young People,CYP,Third Party Payments,EGA,05/02/2020,11-11535,688.05,[Redacted]
Nottinghamshire County Council,1111/1001,Children and Young People,CYP,Third Party Payments,EGA,05/02/2020,11-16968,"2,671.58",Fostering Dimensions Ltd
Nottinghamshire County Council,1111/1001,Children and Young People,CYP,Third Party Payments,EGA,05/02/2020,11-16969,"2,671.58",Fostering Dimensions Ltd
Nottinghamshire County Council,1111/1001,Children and Young People,CYP,Third Party Payments,EGA,05/02/2020,11-17041,"861,741.00",Nottinghamshire Healthcare Nhs F Tr
Nottinghamshire County Council,1111/1001,Children and Young People,CYP,Third Party Payments,EGA,06/02/2020,11-17085,550.50,Fostering People Ltd
Nottinghamshire County Council,1111/1001,Children and Young People,CYP,Third Party Payments,EGA,06/02/2020,11-17086,550.50,Fostering People Ltd
Nottinghamshire County Council,1111/1001,Children and Young People,CYP,Third Party Payments,EGA,06/02/2020,11-17087,550.50,Fostering People Ltd
Nottinghamshire County Council,1111/1001,Children and Young People,CYP,Third Party Payments,EGA,06/02/2020,11-17088,550.5,Fostering People Ltd
Nottinghamshire County Council,1111/1001,Children and Young People,CYP,Third Party Payments,EGA,06/02/2020,11-17093,550.50,Fostering People Ltd
Nottinghamshire County Council,1111/1001,Children and Young People,CYP,Third Party Payments,EGA,06/02/2020,11-17098,10803.26,Hope Fostering Services Ltd
Nottinghamshire County Council,1111/1001,Children and Young People,CYP,Third Party Payments,EGA,07/02/2020,11-11728,"9,419.09",Rainbows Day Nursery
Nottinghamshire County Council,1111/1001,Children and Young People,CYP,Third Party Payments,EGA,07/02/2020,11-17123,14707.14,A&M Care Solutions Ltd/Metropolitan
Nottinghamshire County Council,1111/1001,Children and Young People,CYP,Third Party Payments,EGA,07/02/2020,11-17124,13257.14,A&M Care Solutions Ltd/Metropolitan
Nottinghamshire County Council,1111/1001,Children and Young People,CYP,Third Party Payments,EGA,07/02/2020,11-17133,17121.3,Absolute Children�s Services Ltd
Nottinghamshire County Council,1111/1001,Children and Young People,CYP,Third Party Payments,EGA,07/02/2020,11-17136,9703.57,Progressive Care Ltd
Nottinghamshire County Council,1111/1001,Children and Young People,CYP,Third Party Payments,EGA,07/02/2020,11-17143,606.42,Progressive Care Ltd
Nottinghamshire County Council,1111/1001,Children and Young People,CYP,Third Party Payments,EGA,07/02/2020,11-17145,689.00,Little Wrens Day Nursery & Pre Scho
Nottinghamshire County Council,1111/1001,Children and Young People,CYP,Third Party Payments,EGA,07/02/2020,11-17154,73974,Homes 2 Inspire Ltd
Nottinghamshire County Council,1111/1001,Children and Young People,CYP,Third Party Payments,EGA,07/02/2020,11-17162,513,Integrated Services Programme
Nottinghamshire County Council,1111/1001,Children and Young People,CYP,Third Party Payments,EGA,10/02/2020,11-17008,"24,442.86",Children & Adolescents Placement Pr
Nottinghamshire County Council,1111/1001,Children and Young People,CYP,Third Party Payments,EGA,10/02/2020,11-17190,928.43,Capstone Care Provider Ltd
Nottinghamshire County Council,1111/1001,Children and Young People,CYP,Third Party Payments,EGA,10/02/2020,11-17200,6930.71,Castle Homes Care Ltd
Nottinghamshire County Council,1111/1001,Children and Young People,CYP,Third Party Payments,EGA,10/02/2020,11-17201,"107,367.57",Castle Homes Care Ltd
Nottinghamshire County Council,1111/1001,Children and Young People,CYP,Third Party Payments,EGA,10/02/2020,11-17204,73974.06,Homes 2 Inspire Ltd
Nottinghamshire County Council,1111/1001,Children and Young People,CYP,Third Party Payments,EGA,11/02/2020,11-17209,20365.9,Capstone Foster Care Ltd
Nottinghamshire County Council,1111/1001,Children and Young People,CYP,Third Party Payments,EGA,11/02/2020,11-17214,"1,178.64",Landmarks Ltd
Nottinghamshire County Council,1111/1001,Children and Young People,CYP,Third Party Payments,EGA,12/02/2020,11-17205,"17,607.06",Care 4 Children Residential Service
Nottinghamshire County Council,1111/1001,Children and Young People,CYP,Third Party Payments,EGA,12/02/2020,11-17206,17607.06,Care 4 Children Residential Service
Nottinghamshire County Council,1111/1001,Children and Young People,CYP,Third Party Payments,EGA,12/02/2020,11-17207,"17,607.06",Care 4 Children Residential Service
Nottinghamshire County Council,1111/1001,Children and Young People,CYP,Third Party Payments,EGA,13/02/2020,11-17291,6960,Her Majestys Prison & Probation Ser
Nottinghamshire County Council,1111/1001,Children and Young People,CYP,Third Party Payments,EGA,13/02/2020,11-17292,550.5,Fostering People Ltd
Nottinghamshire County Council,1111/1001,Children and Young People,CYP,Third Party Payments,EGA,14/02/2020,11-17097,"24,162.33",Footsteps To Futures
Nottinghamshire County Council,1111/1001,Children and Young People,CYP,Third Party Payments,EGA,14/02/2020,11-17122,"8,091.00",Nexus Fostering Ltd
Nottinghamshire County Council,1111/1001,Children and Young People,CYP,Third Party Payments,EGA,14/02/2020,11-17244,7254,The National Fostering Agency
Nottinghamshire County Council,1111/1001,Children and Young People,CYP,Third Party Payments,EGA,14/02/2020,11-17254,"4,130.43",Ethelbert Childrens Services
Nottinghamshire County Council,1111/1001,Children and Young People,CYP,Third Party Payments,EGA,14/02/2020,11-17296,11609,Safe Haven Accommodation Ltd
Nottinghamshire County Council,1111/1001,Children and Young People,CYP,Third Party Payments,EGA,14/02/2020,11-17297,"12,246.86",Safe Haven Accommodation Ltd
Nottinghamshire County Council,1111/1001,Children and Young People,CYP,Third Party Payments,EGA,14/02/2020,11-17298,"11,485.50",Safe Haven Accommodation Ltd
Nottinghamshire County Council,1111/1001,Children and Young People,CYP,Third Party Payments,EGA,14/02/2020,11-17299,12074.5,Safe Haven Accommodation Ltd
Nottinghamshire County Council,1111/1001,Children and Young People,CYP,Third Party Payments,EGA,14/02/2020,11-17300,7657,Safe Haven Accommodation Ltd
Nottinghamshire County Council,1111/1001,Children and Young People,CYP,Third Party Payments,EGA,14/02/2020,11-17301,13841.5,Safe Haven Accommodation Ltd
Nottinghamshire County Council,1111/1001,Children and Young People,CYP,Third Party Payments,EGA,14/02/2020,11-17302,9297.79,Safe Haven Accommodation Ltd
Nottinghamshire County Council,1111/1001,Children and Young People,CYP,Third Party Payments,EGA,14/02/2020,11-17303,13613.5,Safe Haven Accommodation Ltd
Nottinghamshire County Council,1111/1001,Children and Young People,CYP,Third Party Payments,EGA,14/02/2020,11-17304,"13,841.50",Safe Haven Accommodation Ltd
Nottinghamshire County Council,1111/1001,Children and Young People,CYP,Third Party Payments,EGA,14/02/2020,11-17307,"23,122.86",Swiis Foster Care Ltd
Nottinghamshire County Council,1111/1001,Children and Young People,CYP,Third Party Payments,EGA,14/02/2020,11-17312,1893.21,Safe Haven Accommodation Ltd
Nottinghamshire County Council,1111/1001,Children and Young People,CYP,Third Party Payments,EGA,14/02/2020,11-17313,610.71,Safe Haven Accommodation Ltd
Nottinghamshire County Council,1111/1001,Children and Young People,CYP,Third Party Payments,EGA,14/02/2020,11-17314,"7,657.00",Safe Haven Accommodation Ltd
Nottinghamshire County Council,1111/1001,Children and Young People,CYP,Third Party Payments,EGA,14/02/2020,11-17315,6175,Safe Haven Accommodation Ltd
Nottinghamshire County Council,1111/1001,Children and Young People,CYP,Third Party Payments,EGA,14/02/2020,11-17316,"4,199.00",Safe Haven Accommodation Ltd
Nottinghamshire County Council,1111/1001,Children and Young People,CYP,Third Party Payments,EGA,14/02/2020,11-17317,"13,841.50",Safe Haven Accommodation Ltd
Nottinghamshire County Council,1111/1001,Children and Young People,CYP,Third Party Payments,EGA,14/02/2020,11-17319,"13,841.50",Safe Haven Accommodation Ltd
Nottinghamshire County Council,1111/1001,Children and Young People,CYP,Third Party Payments,EGA,14/02/2020,11-17322,"51,265.45",By The Bridge Ltd
Nottinghamshire County Council,1111/1001,Children and Young People,CYP,Third Party Payments,EGA,14/02/2020,11-17325,"20,601.36",Fosterplus Ltd
Nottinghamshire County Council,1111/1001,Children and Young People,CYP,Third Party Payments,EGA,14/02/2020,11-17331,"87,757.90",Foster Care Associates Ltd
Nottinghamshire County Council,1111/1001,Children and Young People,CYP,Third Party Payments,EGA,14/02/2020,11-17332,87757.9,Foster Care Associates Ltd
Nottinghamshire County Council,1111/1001,Children and Young People,CYP,Third Party Payments,EGA,14/02/2020,11-17333,87757.9,Foster Care Associates Ltd
Nottinghamshire County Council,1111/1001,Children and Young People,CYP,Third Party Payments,EGA,14/02/2020,11-17340,87757.9,Foster Care Associates Ltd
Nottinghamshire County Council,1111/1001,Children and Young People,CYP,Third Party Payments,EGA,17/02/2020,11-17229,"1,075.48",Framework Housing Association
Nottinghamshire County Council,1111/1001,Children and Young People,CYP,Third Party Payments,EGA,17/02/2020,11-17370,"3,040.00",Truly Care Services Ltd
Nottinghamshire County Council,1111/1001,Children and Young People,CYP,Third Party Payments,EGA,17/02/2020,11-17371,17157.61,Anglia Fostering Agency Ltd
Nottinghamshire County Council,1111/1001,Children and Young People,CYP,Third Party Payments,EGA,17/02/2020,11-17394,624.00,Excel for Training @ Chesterfield C
Nottinghamshire County Council,1111/1001,Children and Young People,CYP,Third Party Payments,EGA,18/02/2020,11-17424,1220.24,Framework Housing Association
Nottinghamshire County Council,1111/1001,Children and Young People,CYP,Third Party Payments,EGA,18/02/2020,11-17428,3400,Maze Independent Care Ltd
Nottinghamshire County Council,1111/1001,Children and Young People,CYP,Third Party Payments,EGA,19/02/2020,11-17271,857.14,Crystal Care Solutions Ltd
Nottinghamshire County Council,1111/1001,Children and Young People,CYP,Third Party Payments,EGA,19/02/2020,11-17272,37953.14,Crystal Care Solutions Ltd
Nottinghamshire County Council,1111/1001,Children and Young People,CYP,Third Party Payments,EGA,19/02/2020,11-17405,43096,Crystal Care Solutions Ltd
Nottinghamshire County Council,1111/1001,Children and Young People,CYP,Third Party Payments,EGA,19/02/2020,11-17438,"12,074.50",Safe Haven Accommodation Ltd
Nottinghamshire County Council,1111/1001,Children and Young People,CYP,Third Party Payments,EGA,19/02/2020,11-17439,"13,841.50",Safe Haven Accommodation Ltd
Nottinghamshire County Council,1111/1001,Children and Young People,CYP,Third Party Payments,EGA,19/02/2020,11-17440,"11,485.50",Safe Haven Accommodation Ltd
Nottinghamshire County Council,1111/1001,Children and Young People,CYP,Third Party Payments,EGA,19/02/2020,11-17454,"15,176.03",Barnardos (HO)
Nottinghamshire County Council,1111/1001,Children and Young People,CYP,Third Party Payments,EGA,19/02/2020,11-17455,43740.86,Pathway Care Solutions Ltd
Nottinghamshire County Council,1111/1001,Children and Young People,CYP,Third Party Payments,EGA,19/02/2020,11-17463,8687.68,Jani Homes Nottingham Ltd
Nottinghamshire County Council,1111/1001,Children and Young People,CYP,Third Party Payments,EGA,19/02/2020,11-17489,912.50,Sensory Learning & Play CIC
Nottinghamshire County Council,1111/1001,Children and Young People,CYP,Third Party Payments,EGA,19/02/2020,11-17490,1499.63,Sensory Learning & Play CIC
Nottinghamshire County Council,1111/1001,Children and Young People,CYP,Third Party Payments,EGA,20/02/2020,11-17516,40692.28,The National Fostering Agency
Nottinghamshire County Council,1111/1001,Children and Young People,CYP,Third Party Payments,EGA,20/02/2020,11-17517,"17,191.71",Blue Mountain Homes Ltd
Nottinghamshire County Council,1111/1001,Children and Young People,CYP,Third Party Payments,EGA,20/02/2020,11-17518,"17,191.71",Blue Mountain Homes Ltd
Nottinghamshire County Council,1111/1001,Children and Young People,CYP,Third Party Payments,EGA,20/02/2020,11-17525,"5,965.64",Anchor Foster Care Services Ltd
Nottinghamshire County Council,1111/1001,Children and Young People,CYP,Third Party Payments,EGA,20/02/2020,11-17543,17191.71,Blue Mountain Homes Ltd
Nottinghamshire County Council,1111/1001,Children and Young People,CYP,Third Party Payments,EGA,20/02/2020,11-17544,17191.71,Blue Mountain Homes Ltd
Nottinghamshire County Council,1111/1001,Children and Young People,CYP,Third Party Payments,EGA,20/02/2020,11-17545,"17,191.71",Blue Mountain Homes Ltd
Nottinghamshire County Council,1111/1001,Children and Young People,CYP,Third Party Payments,EGA,20/02/2020,11-17547,"17,191.71",Blue Mountain Homes Ltd
Nottinghamshire County Council,1111/1001,Children and Young People,CYP,Third Party Payments,EGA,21/02/2020,11-15597,"5,940.70",Zoe's Childcare Ltd
Nottinghamshire County Council,1111/1001,Children and Young People,CYP,Third Party Payments,EGA,21/02/2020,11-15598,"3,658.37",Zoes Childcare Ltd
Nottinghamshire County Council,1111/1001,Children and Young People,CYP,Third Party Payments,EGA,21/02/2020,11-17341,"1,321.43",Fusion Fostering Ltd
Nottinghamshire County Council,1111/1001,Children and Young People,CYP,Third Party Payments,EGA,21/02/2020,11-17402,11067,Sixteen Plus Ltd
Nottinghamshire County Council,1111/1001,Children and Young People,CYP,Third Party Payments,EGA,21/02/2020,11-17403,7030.71,Sixteen Plus Ltd
Nottinghamshire County Council,1111/1001,Children and Young People,CYP,Third Party Payments,EGA,21/02/2020,11-17526,"3,404.00",Sixteen Plus Ltd
Nottinghamshire County Council,1111/1001,Children and Young People,CYP,Third Party Payments,EGA,21/02/2020,11-17576,20365.9,Capstone Foster Care Ltd
Nottinghamshire County Council,1111/1001,Children and Young People,CYP,Third Party Payments,EGA,24/02/2020,11-17326,87757.9,Foster Care Associates Ltd
Nottinghamshire County Council,1111/1001,Children and Young People,CYP,Third Party Payments,EGA,24/02/2020,11-17613,"17,191.71",Blue Mountain Homes Ltd
Nottinghamshire County Council,1111/1001,Children and Young People,CYP,Third Party Payments,EGA,25/02/2020,11-17012,"19,432.61",Stanfield Care Services Ltd
Nottinghamshire County Council,1111/1001,Children and Young People,CYP,Third Party Payments,EGA,25/02/2020,11-17278,26571.34,Skyline Child Care
Nottinghamshire County Council,1111/1001,Children and Young People,CYP,Third Party Payments,EGA,25/02/2020,11-17361,"3,025.00",G-Map Services Ltd
Nottinghamshire County Council,1111/1001,Children and Young People,CYP,Third Party Payments,EGA,25/02/2020,11-17658,"20,061.96",Orange Grove Fostercare Ltd
Nottinghamshire County Council,1111/1001,Children and Young People,CYP,Third Party Payments,EGA,25/02/2020,11-17661,"78,015.93",Pathway Care Solutions II Ltd
Nottinghamshire County Council,1111/1001,Children and Young People,CYP,Third Party Payments,EGA,26/02/2020,11-17230,1075.48,Framework Housing Association
Nottinghamshire County Council,1111/1001,Children and Young People,CYP,Third Party Payments,EGA,26/02/2020,11-17327,"21,750.00",Cambian Childcare Ltd
Nottinghamshire County Council,1111/1001,Children and Young People,CYP,Third Party Payments,EGA,26/02/2020,11-17328,"21,750.00",Cambian Childcare Ltd
Nottinghamshire County Council,1111/1001,Children and Young People,CYP,Third Party Payments,EGA,26/02/2020,11-17329,"21,750.00",Cambian Childcare Ltd
Nottinghamshire County Council,1111/1001,Children and Young People,CYP,Third Party Payments,EGA,26/02/2020,11-17330,"21,750.00",Cambian Childcare Ltd
Nottinghamshire County Council,1111/1001,Children and Young People,CYP,Third Party Payments,EGA,26/02/2020,11-17342,"21,750.00",Cambian Childcare Ltd
Nottinghamshire County Council,1111/1001,Children and Young People,CYP,Third Party Payments,EGA,26/02/2020,11-17430,3255,UK Fostering Ltd
Nottinghamshire County Council,1111/1001,Children and Young People,CYP,Third Party Payments,EGA,26/02/2020,11-17431,3150,UK Fostering Ltd
Nottinghamshire County Council,1111/1001,Children and Young People,CYP,Third Party Payments,EGA,26/02/2020,11-17433,3255,UK Fostering Ltd
Nottinghamshire County Council,1111/1001,Children and Young People,CYP,Third Party Payments,EGA,26/02/2020,11-17527,5965.64,Anchor Foster Care Services Ltd
Nottinghamshire County Council,1111/1001,Children and Young People,CYP,Third Party Payments,EGA,26/02/2020,11-17559,3255,UK Fostering Ltd
Nottinghamshire County Council,1111/1001,Children and Young People,CYP,Third Party Payments,EGA,26/02/2020,11-17712,"3,742.01",Anchor Foster Care Services Ltd
Nottinghamshire County Council,1111/1001,Children and Young People,CYP,Third Party Payments,EGA,26/02/2020,11-17713,1931.36,Anchor Foster Care Services Ltd
Nottinghamshire County Council,1111/1001,Children and Young People,CYP,Third Party Payments,EGA,27/02/2020,11-16131,11118,Sunnydale Nursery Ltd
Nottinghamshire County Council,1111/1001,Children and Young People,CYP,Third Party Payments,EGA,27/02/2020,11-16132,1024.48,[Redacted]
Nottinghamshire County Council,1111/1001,Children and Young People,CYP,Third Party Payments,EGA,27/02/2020,11-16133,5002.8,Sherwood East Childrens Centre (RNN
Nottinghamshire County Council,1111/1001,Children and Young People,CYP,Third Party Payments,EGA,27/02/2020,11-16134,542.85,[Redacted]
Nottinghamshire County Council,1111/1001,Children and Young People,CYP,Third Party Payments,EGA,27/02/2020,11-16135,722.45,[Redacted]
Nottinghamshire County Council,1111/1001,Children and Young People,CYP,Third Party Payments,EGA,27/02/2020,11-16136,1673.14,[Redacted]
Nottinghamshire County Council,1111/1001,Children and Young People,CYP,Third Party Payments,EGA,27/02/2020,11-16137,1907.47,[Redacted]
Nottinghamshire County Council,1111/1001,Children and Young People,CYP,Third Party Payments,EGA,27/02/2020,11-16138,542.85,Little Tots
Nottinghamshire County Council,1111/1001,Children and Young People,CYP,Third Party Payments,EGA,27/02/2020,11-16139,9728.47,All Saints C Of E Primary School
Nottinghamshire County Council,1111/1001,Children and Young People,CYP,Third Party Payments,EGA,27/02/2020,11-16140,"9,854.36",Wolds Childcare Ltd
Nottinghamshire County Council,1111/1001,Children and Young People,CYP,Third Party Payments,EGA,27/02/2020,11-16141,"14,312.86",Longdale Nursery School (Cherubs)
Nottinghamshire County Council,1111/1001,Children and Young People,CYP,Third Party Payments,EGA,27/02/2020,11-16142,"8,010.72",Wollaton Village Day Nurseries
Nottinghamshire County Council,1111/1001,Children and Young People,CYP,Third Party Payments,EGA,27/02/2020,11-16143,4261.34,Misson Pre-School
Nottinghamshire County Council,1111/1001,Children and Young People,CYP,Third Party Payments,EGA,27/02/2020,11-16144,"1,469.71",Cheeky Monkeys Childminding
Nottinghamshire County Council,1111/1001,Children and Young People,CYP,Third Party Payments,EGA,27/02/2020,11-16145,"3,977.21",Toddlers University (Bee)
Nottinghamshire County Council,1111/1001,Children and Young People,CYP,Third Party Payments,EGA,27/02/2020,11-16146,860.05,Jammie Dodgers Childminding Group
Nottinghamshire County Council,1111/1001,Children and Young People,CYP,Third Party Payments,EGA,27/02/2020,11-16147,26835.32,Papermoon Day Nursery
Nottinghamshire County Council,1111/1001,Children and Young People,CYP,Third Party Payments,EGA,27/02/2020,11-16148,"26,160.29",Children 1st @ Breedon House (Plumt
Nottinghamshire County Council,1111/1001,Children and Young People,CYP,Third Party Payments,EGA,27/02/2020,11-16149,608.51,[Redacted]
Nottinghamshire County Council,1111/1001,Children and Young People,CYP,Third Party Payments,EGA,27/02/2020,11-16150,"7,554.17",Willow Brook Pre-School
Nottinghamshire County Council,1111/1001,Children and Young People,CYP,Third Party Payments,EGA,27/02/2020,11-16151,4554.96,Nottinghamshire Healthcare Nhs F Tr
Nottinghamshire County Council,1111/1001,Children and Young People,CYP,Third Party Payments,EGA,27/02/2020,11-16152,573.46,[Redacted]
Nottinghamshire County Council,1111/1001,Children and Young People,CYP,Third Party Payments,EGA,27/02/2020,11-16153,"24,338.17",Daisies Day Nursery
Nottinghamshire County Council,1111/1001,Children and Young People,CYP,Third Party Payments,EGA,27/02/2020,11-16154,963.26,[Redacted]
Nottinghamshire County Council,1111/1001,Children and Young People,CYP,Third Party Payments,EGA,27/02/2020,11-16155,9376.53,Lime Trees - Burton Joyce
Nottinghamshire County Council,1111/1001,Children and Young People,CYP,Third Party Payments,EGA,27/02/2020,11-16156,"8,629.13",Wellin Lane Playgroup
Nottinghamshire County Council,1111/1001,Children and Young People,CYP,Third Party Payments,EGA,27/02/2020,11-16157,6523.84,Little Kites Playgroup
Nottinghamshire County Council,1111/1001,Children and Young People,CYP,Third Party Payments,EGA,27/02/2020,11-16158,11239.21,Kidzgrove
Nottinghamshire County Council,1111/1001,Children and Young People,CYP,Third Party Payments,EGA,27/02/2020,11-16159,24682.44,Grosvenor House Day Nursery
Nottinghamshire County Council,1111/1001,Children and Young People,CYP,Third Party Payments,EGA,27/02/2020,11-16160,65839.9,Pre-School Learning Alliance (HO)
Nottinghamshire County Council,1111/1001,Children and Young People,CYP,Third Party Payments,EGA,27/02/2020,11-16161,"9,019.05",Appleton Childcare Ltd
Nottinghamshire County Council,1111/1001,Children and Young People,CYP,Third Party Payments,EGA,27/02/2020,11-16162,1055.09,[Redacted]
Nottinghamshire County Council,1111/1001,Children and Young People,CYP,Third Party Payments,EGA,27/02/2020,11-16163,5110.22,Lady Bay Pre School Playgroup
Nottinghamshire County Council,1111/1001,Children and Young People,CYP,Third Party Payments,EGA,27/02/2020,11-16164,16374.82,All Aboard Nursery Ltd
Nottinghamshire County Council,1111/1001,Children and Young People,CYP,Third Party Payments,EGA,27/02/2020,11-16165,"24,662.29",Carlton & Gedling Day Nursery
Nottinghamshire County Council,1111/1001,Children and Young People,CYP,Third Party Payments,EGA,27/02/2020,11-16166,"17,879.71",Arnold House Day Nursery
Nottinghamshire County Council,1111/1001,Children and Young People,CYP,Third Party Payments,EGA,27/02/2020,11-16167,11820.62,Alphabet House Day Nurseries Ltd-Lo
Nottinghamshire County Council,1111/1001,Children and Young People,CYP,Third Party Payments,EGA,27/02/2020,11-16168,10991.72,Beeston Nursery
Nottinghamshire County Council,1111/1001,Children and Young People,CYP,Third Party Payments,EGA,27/02/2020,11-16169,"5,180.97",Gotham Pre-School Playgroup
Nottinghamshire County Council,1111/1001,Children and Young People,CYP,Third Party Payments,EGA,27/02/2020,11-16170,10327.22,Killisick Pre-School
Nottinghamshire County Council,1111/1001,Children and Young People,CYP,Third Party Payments,EGA,27/02/2020,11-16171,9556.46,Hucknall Pre-School Playgroup
Nottinghamshire County Council,1111/1001,Children and Young People,CYP,Third Party Payments,EGA,27/02/2020,11-16172,3371.41,Jesters Childcare Ltd
Nottinghamshire County Council,1111/1001,Children and Young People,CYP,Third Party Payments,EGA,27/02/2020,11-16173,4182.63,Allsorts Preschool Underwood
Nottinghamshire County Council,1111/1001,Children and Young People,CYP,Third Party Payments,EGA,27/02/2020,11-16174,5015.5,Collingham & District Pre-School
Nottinghamshire County Council,1111/1001,Children and Young People,CYP,Third Party Payments,EGA,27/02/2020,11-16175,"14,207.62",Westdale Pre-School
Nottinghamshire County Council,1111/1001,Children and Young People,CYP,Third Party Payments,EGA,27/02/2020,11-16176,26726.07,Discovery Day Nursery
Nottinghamshire County Council,1111/1001,Children and Young People,CYP,Third Party Payments,EGA,27/02/2020,11-16177,"5,719.23",Pea Pod Day Nursery Ltd
Nottinghamshire County Council,1111/1001,Children and Young People,CYP,Third Party Payments,EGA,27/02/2020,11-16178,25969.55,Safe Haven Day Nursery
Nottinghamshire County Council,1111/1001,Children and Young People,CYP,Third Party Payments,EGA,27/02/2020,11-16179,34606.29,Shaping Futures Day Nursery
Nottinghamshire County Council,1111/1001,Children and Young People,CYP,Third Party Payments,EGA,27/02/2020,11-16180,888.17,Ravenshead Out Of School Club
Nottinghamshire County Council,1111/1001,Children and Young People,CYP,Third Party Payments,EGA,27/02/2020,11-16181,"16,775.99",Applegarth Day Nurseries Ltd
Nottinghamshire County Council,1111/1001,Children and Young People,CYP,Third Party Payments,EGA,27/02/2020,11-16182,4916.35,Learning Ladder Childcare Ltd
Nottinghamshire County Council,1111/1001,Children and Young People,CYP,Third Party Payments,EGA,27/02/2020,11-16183,"5,249.63",Thrumpton Kids Clubs
Nottinghamshire County Council,1111/1001,Children and Young People,CYP,Third Party Payments,EGA,27/02/2020,11-16184,"7,165.39",Radcliffe On Trent Pre School Playg
Nottinghamshire County Council,1111/1001,Children and Young People,CYP,Third Party Payments,EGA,27/02/2020,11-16185,7759.02,Staunton Montessori Nursery School
Nottinghamshire County Council,1111/1001,Children and Young People,CYP,Third Party Payments,EGA,27/02/2020,11-16186,"27,000.03",Fernwood Day Nursery Ltd
Nottinghamshire County Council,1111/1001,Children and Young People,CYP,Third Party Payments,EGA,27/02/2020,11-16187,963.26,[Redacted]
Nottinghamshire County Council,1111/1001,Children and Young People,CYP,Third Party Payments,EGA,27/02/2020,11-16188,8871.98,Honey Pot Day Private Day Nursery L
Nottinghamshire County Council,1111/1001,Children and Young People,CYP,Third Party Payments,EGA,27/02/2020,11-16189,"33,352.78",Busy Bees (Daybrook)
Nottinghamshire County Council,1111/1001,Children and Young People,CYP,Third Party Payments,EGA,27/02/2020,11-16190,11173.83,Little Nippers Pre-School
Nottinghamshire County Council,1111/1001,Children and Young People,CYP,Third Party Payments,EGA,27/02/2020,11-16191,5954.22,North Muskham Playgroup
Nottinghamshire County Council,1111/1001,Children and Young People,CYP,Third Party Payments,EGA,27/02/2020,11-16192,5413.74,Hermitage Pre-School
Nottinghamshire County Council,1111/1001,Children and Young People,CYP,Third Party Payments,EGA,27/02/2020,11-16193,8648.85,Highfields School & Nursery
Nottinghamshire County Council,1111/1001,Children and Young People,CYP,Third Party Payments,EGA,27/02/2020,11-16194,"6,272.74",Horsendale Playgroup
Nottinghamshire County Council,1111/1001,Children and Young People,CYP,Third Party Payments,EGA,27/02/2020,11-16195,4380.56,St Giles Pre-school
Nottinghamshire County Council,1111/1001,Children and Young People,CYP,Third Party Payments,EGA,27/02/2020,11-16196,"11,598.30",Busy Bees Nursery
Nottinghamshire County Council,1111/1001,Children and Young People,CYP,Third Party Payments,EGA,27/02/2020,11-16197,8444.94,St Mary's Pre-School
Nottinghamshire County Council,1111/1001,Children and Young People,CYP,Third Party Payments,EGA,27/02/2020,11-16198,11785.46,Homestead Day Nursery Ltd
Nottinghamshire County Council,1111/1001,Children and Young People,CYP,Third Party Payments,EGA,27/02/2020,11-16199,"4,947.05",Kimberley Pre-School Playgroup
Nottinghamshire County Council,1111/1001,Children and Young People,CYP,Third Party Payments,EGA,27/02/2020,11-16200,"4,546.77",Leahurst Road Pre-School
Nottinghamshire County Council,1111/1001,Children and Young People,CYP,Third Party Payments,EGA,27/02/2020,11-16201,17294.33,Leen Mills Pre School Playgroup
Nottinghamshire County Council,1111/1001,Children and Young People,CYP,Third Party Payments,EGA,27/02/2020,11-16202,11294.61,Leos Childrens Nurseries Ltd
Nottinghamshire County Council,1111/1001,Children and Young People,CYP,Third Party Payments,EGA,27/02/2020,11-16203,"44,864.02",Children 1st @ Breedon House (Toton
Nottinghamshire County Council,1111/1001,Children and Young People,CYP,Third Party Payments,EGA,27/02/2020,11-16204,"13,802.25",Westbourne House Nursery School
Nottinghamshire County Council,1111/1001,Children and Young People,CYP,Third Party Payments,EGA,27/02/2020,11-16205,"7,847.17",Lowdham & Epperstone Pre-School
Nottinghamshire County Council,1111/1001,Children and Young People,CYP,Third Party Payments,EGA,27/02/2020,11-16206,"3,447.24",Saville House School
Nottinghamshire County Council,1111/1001,Children and Young People,CYP,Third Party Payments,EGA,27/02/2020,11-16207,"7,131.33",Young Rascals Day Nursery
Nottinghamshire County Council,1111/1001,Children and Young People,CYP,Third Party Payments,EGA,27/02/2020,11-16208,10528.65,Millfield Nursery School
Nottinghamshire County Council,1111/1001,Children and Young People,CYP,Third Party Payments,EGA,27/02/2020,11-16209,7317.85,Mulberry Bush Day Nursery
Nottinghamshire County Council,1111/1001,Children and Young People,CYP,Third Party Payments,EGA,27/02/2020,11-16210,"13,974.84",Alphabet House Day Nursery Worksop
Nottinghamshire County Council,1111/1001,Children and Young People,CYP,Third Party Payments,EGA,27/02/2020,11-16211,6903.29,Noahs Ark Playgroup
Nottinghamshire County Council,1111/1001,Children and Young People,CYP,Third Party Payments,EGA,27/02/2020,11-16212,3139.15,North Leverton Pre-School Playgroup
Nottinghamshire County Council,1111/1001,Children and Young People,CYP,Third Party Payments,EGA,27/02/2020,11-16213,17357.2,Tiny World Mansfield
Nottinghamshire County Council,1111/1001,Children and Young People,CYP,Third Party Payments,EGA,27/02/2020,11-16214,6181.25,Old Cooperative Day Nursery
Nottinghamshire County Council,1111/1001,Children and Young People,CYP,Third Party Payments,EGA,27/02/2020,11-16215,28531.32,The Orchard Day Nursery
Nottinghamshire County Council,1111/1001,Children and Young People,CYP,Third Party Payments,EGA,27/02/2020,11-16216,5785.5,Puddleducks Pre-School
Nottinghamshire County Council,1111/1001,Children and Young People,CYP,Third Party Payments,EGA,27/02/2020,11-16217,9586.91,Smarties Private Day Nursery
Nottinghamshire County Council,1111/1001,Children and Young People,CYP,Third Party Payments,EGA,27/02/2020,11-16218,"8,723.03",Cherubs Childrens Centre Pleasley
Nottinghamshire County Council,1111/1001,Children and Young People,CYP,Third Party Payments,EGA,27/02/2020,11-16219,13381.71,Beacon Hill Day Nursery
Nottinghamshire County Council,1111/1001,Children and Young People,CYP,Third Party Payments,EGA,27/02/2020,11-16220,2151.29,Orchard School Nursery
Nottinghamshire County Council,1111/1001,Children and Young People,CYP,Third Party Payments,EGA,27/02/2020,11-16221,"14,389.45",Papermoon Day Nursery
Nottinghamshire County Council,1111/1001,Children and Young People,CYP,Third Party Payments,EGA,27/02/2020,11-16222,"5,504.40",Plumtree School
Nottinghamshire County Council,1111/1001,Children and Young People,CYP,Third Party Payments,EGA,27/02/2020,11-16223,"5,355.24",Prebend Pre-School Playgroup
Nottinghamshire County Council,1111/1001,Children and Young People,CYP,Third Party Payments,EGA,27/02/2020,11-16224,12615.69,Railway Children Playgroup
Nottinghamshire County Council,1111/1001,Children and Young People,CYP,Third Party Payments,EGA,27/02/2020,11-16225,5096.53,Worksop College
Nottinghamshire County Council,1111/1001,Children and Young People,CYP,Third Party Payments,EGA,27/02/2020,11-16226,"32,535.02",Cherubs Day Nursery
Nottinghamshire County Council,1111/1001,Children and Young People,CYP,Third Party Payments,EGA,27/02/2020,11-16227,"8,168.66",Claremont Early Years Ltd
Nottinghamshire County Council,1111/1001,Children and Young People,CYP,Third Party Payments,EGA,27/02/2020,11-16228,"16,188.68",Granby House Nursery
Nottinghamshire County Council,1111/1001,Children and Young People,CYP,Third Party Payments,EGA,27/02/2020,11-16229,"6,612.90",Ravenshead Pre-School Playgroup
Nottinghamshire County Council,1111/1001,Children and Young People,CYP,Third Party Payments,EGA,27/02/2020,11-16230,"2,259.16",Salterford House School
Nottinghamshire County Council,1111/1001,Children and Young People,CYP,Third Party Payments,EGA,27/02/2020,11-16231,13053.06,Scotts Wood Private Day Nursery
Nottinghamshire County Council,1111/1001,Children and Young People,CYP,Third Party Payments,EGA,27/02/2020,11-16232,14686.02,Treetops Nursery (Toton)
Nottinghamshire County Council,1111/1001,Children and Young People,CYP,Third Party Payments,EGA,27/02/2020,11-16233,"7,150.98",Arnold St Mary's Pre-School
Nottinghamshire County Council,1111/1001,Children and Young People,CYP,Third Party Payments,EGA,27/02/2020,11-16234,13065.22,Radcliffe On Trent Day Nursery
Nottinghamshire County Council,1111/1001,Children and Young People,CYP,Third Party Payments,EGA,27/02/2020,11-16235,13876.01,Tiny Talkers Day Nursery
Nottinghamshire County Council,1111/1001,Children and Young People,CYP,Third Party Payments,EGA,27/02/2020,11-16236,"5,532.18",Carousel Under 5'S Playgroup
Nottinghamshire County Council,1111/1001,Children and Young People,CYP,Third Party Payments,EGA,27/02/2020,11-16237,"19,799.63",Oceans Day Nursery
Nottinghamshire County Council,1111/1001,Children and Young People,CYP,Third Party Payments,EGA,27/02/2020,11-16238,11327.22,The Secret Garden Private Day Nurse
Nottinghamshire County Council,1111/1001,Children and Young People,CYP,Third Party Payments,EGA,27/02/2020,11-16239,"7,178.03",St Johns Playgroup
Nottinghamshire County Council,1111/1001,Children and Young People,CYP,Third Party Payments,EGA,27/02/2020,11-16240,"4,395.54",Walesby School Playgroup
Nottinghamshire County Council,1111/1001,Children and Young People,CYP,Third Party Payments,EGA,27/02/2020,11-16241,"13,832.05",Cherubs Childcare Centre (Mansfield
Nottinghamshire County Council,1111/1001,Children and Young People,CYP,Third Party Payments,EGA,27/02/2020,11-16242,5742.36,Sutton Bonington Playgroup
Nottinghamshire County Council,1111/1001,Children and Young People,CYP,Third Party Payments,EGA,27/02/2020,11-16243,"5,763.41",Sutton Centre Under 5'S Playgroup
Nottinghamshire County Council,1111/1001,Children and Young People,CYP,Third Party Payments,EGA,27/02/2020,11-16244,"5,733.81",Portland Place Pre-School
Nottinghamshire County Council,1111/1001,Children and Young People,CYP,Third Party Payments,EGA,27/02/2020,11-16245,"19,985.22",The Learning Tree Nursery
Nottinghamshire County Council,1111/1001,Children and Young People,CYP,Third Party Payments,EGA,27/02/2020,11-16246,"12,016.33",Little Bears Day Nursery
Nottinghamshire County Council,1111/1001,Children and Young People,CYP,Third Party Payments,EGA,27/02/2020,11-16247,"8,400.30",Tollerton Playgroup
Nottinghamshire County Council,1111/1001,Children and Young People,CYP,Third Party Payments,EGA,27/02/2020,11-16248,9735.6,Pre-School 345
Nottinghamshire County Council,1111/1001,Children and Young People,CYP,Third Party Payments,EGA,27/02/2020,11-16249,5713.14,Lambley Day Nursery Ltd
Nottinghamshire County Council,1111/1001,Children and Young People,CYP,Third Party Payments,EGA,27/02/2020,11-16250,11686.78,Alphabet House Day Nurseries Ltd-Be
Nottinghamshire County Council,1111/1001,Children and Young People,CYP,Third Party Payments,EGA,27/02/2020,11-16251,3636.73,Trowell Pre School
Nottinghamshire County Council,1111/1001,Children and Young People,CYP,Third Party Payments,EGA,27/02/2020,11-16252,10827.67,Carlton Preschool Playgroup
Nottinghamshire County Council,1111/1001,Children and Young People,CYP,Third Party Payments,EGA,27/02/2020,11-16253,"17,045.01",Village Day Nursery
Nottinghamshire County Council,1111/1001,Children and Young People,CYP,Third Party Payments,EGA,27/02/2020,11-16254,5565.16,Watnall Pre-School Playgroup
Nottinghamshire County Council,1111/1001,Children and Young People,CYP,Third Party Payments,EGA,27/02/2020,11-16255,14698.12,Weaverthorpe Pre-School Playgroup
Nottinghamshire County Council,1111/1001,Children and Young People,CYP,Third Party Payments,EGA,27/02/2020,11-16256,24242.32,The Rocking Horse Child Care Centre
Nottinghamshire County Council,1111/1001,Children and Young People,CYP,Third Party Payments,EGA,27/02/2020,11-16257,9640.94,Attenborough Church Pre-School
Nottinghamshire County Council,1111/1001,Children and Young People,CYP,Third Party Payments,EGA,27/02/2020,11-16258,6434.24,Awsworth Schoolhouse Day Nursery
Nottinghamshire County Council,1111/1001,Children and Young People,CYP,Third Party Payments,EGA,27/02/2020,11-16259,15634.14,Balderton Pre-School
Nottinghamshire County Council,1111/1001,Children and Young People,CYP,Third Party Payments,EGA,27/02/2020,11-16260,12086.4,Balderton Village Day Nursery
Nottinghamshire County Council,1111/1001,Children and Young People,CYP,Third Party Payments,EGA,27/02/2020,11-16261,9034.07,Bingham Day Nursery & Pre School
Nottinghamshire County Council,1111/1001,Children and Young People,CYP,Third Party Payments,EGA,27/02/2020,11-16262,17776.17,West Bridgford Out Of School Care L
Nottinghamshire County Council,1111/1001,Children and Young People,CYP,Third Party Payments,EGA,27/02/2020,11-16263,5787.61,West Street Pre-School
Nottinghamshire County Council,1111/1001,Children and Young People,CYP,Third Party Payments,EGA,27/02/2020,11-16264,"14,234.45",Alphabet House Day Nurseries Ltd-Wh
Nottinghamshire County Council,1111/1001,Children and Young People,CYP,Third Party Payments,EGA,27/02/2020,11-16265,"16,532.55",Whitehouse Day Nursery
Nottinghamshire County Council,1111/1001,Children and Young People,CYP,Third Party Payments,EGA,27/02/2020,11-16266,"2,680.13",Willoughby On The Wolds Playgroup
Nottinghamshire County Council,1111/1001,Children and Young People,CYP,Third Party Payments,EGA,27/02/2020,11-16267,7010.49,Willow Pre-School Playgroup
Nottinghamshire County Council,1111/1001,Children and Young People,CYP,Third Party Payments,EGA,27/02/2020,11-16268,"7,088.56",Windmill Kindergarten Playgroup
Nottinghamshire County Council,1111/1001,Children and Young People,CYP,Third Party Payments,EGA,27/02/2020,11-16269,"3,612.16",Inham Park Pre School Playgroup
Nottinghamshire County Council,1111/1001,Children and Young People,CYP,Third Party Payments,EGA,27/02/2020,11-16270,"35,336.49",Papermoon Day Nursery Sutton In Ash
Nottinghamshire County Council,1111/1001,Children and Young People,CYP,Third Party Payments,EGA,27/02/2020,11-16271,11042.74,Buttercross Pre School
Nottinghamshire County Council,1111/1001,Children and Young People,CYP,Third Party Payments,EGA,27/02/2020,11-16272,"7,389.69",Bramcote Pre-School Playgroup
Nottinghamshire County Council,1111/1001,Children and Young People,CYP,Third Party Payments,EGA,27/02/2020,11-16273,12858.14,Bright Sparks Day Nursery
Nottinghamshire County Council,1111/1001,Children and Young People,CYP,Third Party Payments,EGA,27/02/2020,11-16274,"19,063.61",Cared 4 Ltd T/A Brookhill House Day
Nottinghamshire County Council,1111/1001,Children and Young People,CYP,Third Party Payments,EGA,27/02/2020,11-16275,22661.05,Brooklyn Day Nursery
Nottinghamshire County Council,1111/1001,Children and Young People,CYP,Third Party Payments,EGA,27/02/2020,11-16276,11771.13,Woodborough Village Pre School
Nottinghamshire County Council,1111/1001,Children and Young People,CYP,Third Party Payments,EGA,27/02/2020,11-16277,"26,329.27",Woodthorpe Day Nursery Ltd
Nottinghamshire County Council,1111/1001,Children and Young People,CYP,Third Party Payments,EGA,27/02/2020,11-16278,"14,008.73",Hollies Day Nurseries Ltd
Nottinghamshire County Council,1111/1001,Children and Young People,CYP,Third Party Payments,EGA,27/02/2020,11-16279,1765.99,Hickling Pre-School
Nottinghamshire County Council,1111/1001,Children and Young People,CYP,Third Party Payments,EGA,27/02/2020,11-16280,"59,030.81",Serendipity's Day Nursery
Nottinghamshire County Council,1111/1001,Children and Young People,CYP,Third Party Payments,EGA,27/02/2020,11-16281,16443.81,Coteswood House School
Nottinghamshire County Council,1111/1001,Children and Young People,CYP,Third Party Payments,EGA,27/02/2020,11-16282,24888.82,Bizzy Kidz
Nottinghamshire County Council,1111/1001,Children and Young People,CYP,Third Party Payments,EGA,27/02/2020,11-16283,14421.12,Cherubs Childrens Centre Wynndale
Nottinghamshire County Council,1111/1001,Children and Young People,CYP,Third Party Payments,EGA,27/02/2020,11-16284,8847.76,Wishing Well Day Nursery
Nottinghamshire County Council,1111/1001,Children and Young People,CYP,Third Party Payments,EGA,27/02/2020,11-16285,"23,442.88",Little Oaks Nursery
Nottinghamshire County Council,1111/1001,Children and Young People,CYP,Third Party Payments,EGA,27/02/2020,11-16286,16431.29,The Learning Tree Day Nursery 2
Nottinghamshire County Council,1111/1001,Children and Young People,CYP,Third Party Payments,EGA,27/02/2020,11-16287,15499.61,Ruddington Nursery & Pre-School
Nottinghamshire County Council,1111/1001,Children and Young People,CYP,Third Party Payments,EGA,27/02/2020,11-16288,10432,Papplewick Pre-School Playgroup
Nottinghamshire County Council,1111/1001,Children and Young People,CYP,Third Party Payments,EGA,27/02/2020,11-16289,"4,917.30",Little Friends Day Nursery
Nottinghamshire County Council,1111/1001,Children and Young People,CYP,Third Party Payments,EGA,27/02/2020,11-16290,"16,852.78",Stapleford Day Nursery
Nottinghamshire County Council,1111/1001,Children and Young People,CYP,Third Party Payments,EGA,27/02/2020,11-16291,13614.67,Rocking Horse Nursery Butlers Hill
Nottinghamshire County Council,1111/1001,Children and Young People,CYP,Third Party Payments,EGA,27/02/2020,11-16292,12343.39,Treetops Nurseries (Workop)
Nottinghamshire County Council,1111/1001,Children and Young People,CYP,Third Party Payments,EGA,27/02/2020,11-16293,"6,121.82",Chetwynd Little Troopers Nursery &
Nottinghamshire County Council,1111/1001,Children and Young People,CYP,Third Party Payments,EGA,27/02/2020,11-16294,6256.21,Christchurch Hall Pre-School Playgr
Nottinghamshire County Council,1111/1001,Children and Young People,CYP,Third Party Payments,EGA,27/02/2020,11-16295,12986.78,Carnarvon Pre-School
Nottinghamshire County Council,1111/1001,Children and Young People,CYP,Third Party Payments,EGA,27/02/2020,11-16296,2756.94,Costock Pre School
Nottinghamshire County Council,1111/1001,Children and Young People,CYP,Third Party Payments,EGA,27/02/2020,11-16297,7044.11,Rainbow Day Nursery
Nottinghamshire County Council,1111/1001,Children and Young People,CYP,Third Party Payments,EGA,27/02/2020,11-16298,16220.43,Papermoon Day Nursery
Nottinghamshire County Council,1111/1001,Children and Young People,CYP,Third Party Payments,EGA,27/02/2020,11-16299,"4,918.79",Haywood Road Pre-School
Nottinghamshire County Council,1111/1001,Children and Young People,CYP,Third Party Payments,EGA,27/02/2020,11-16300,2125.57,Southfields Pre-School
Nottinghamshire County Council,1111/1001,Children and Young People,CYP,Third Party Payments,EGA,27/02/2020,11-16301,"10,668.79",Ashfield Plaza Day Nursery
Nottinghamshire County Council,1111/1001,Children and Young People,CYP,Third Party Payments,EGA,27/02/2020,11-16302,9264.27,Cranmer Pre-School
Nottinghamshire County Council,1111/1001,Children and Young People,CYP,Third Party Payments,EGA,27/02/2020,11-16303,15002.1,Daisies Day Nursery
Nottinghamshire County Council,1111/1001,Children and Young People,CYP,Third Party Payments,EGA,27/02/2020,11-16304,"16,138.68",East Leake Day Nursery & Pre-School
Nottinghamshire County Council,1111/1001,Children and Young People,CYP,Third Party Payments,EGA,27/02/2020,11-16305,"4,227.34",Elston Pre-school
Nottinghamshire County Council,1111/1001,Children and Young People,CYP,Third Party Payments,EGA,27/02/2020,11-16306,19916.75,Wollaton Village Day Nurseries Ltd
Nottinghamshire County Council,1111/1001,Children and Young People,CYP,Third Party Payments,EGA,27/02/2020,11-16307,"7,419.43",Pippins Pre-School
Nottinghamshire County Council,1111/1001,Children and Young People,CYP,Third Party Payments,EGA,27/02/2020,11-16308,"15,111.40",Scottswood Pdn Ltd
Nottinghamshire County Council,1111/1001,Children and Young People,CYP,Third Party Payments,EGA,27/02/2020,11-16309,16546.59,Kingfisher Day Nursery
Nottinghamshire County Council,1111/1001,Children and Young People,CYP,Third Party Payments,EGA,27/02/2020,11-16310,"9,949.10",Pump Farm Day Nursery
Nottinghamshire County Council,1111/1001,Children and Young People,CYP,Third Party Payments,EGA,27/02/2020,11-16311,"7,051.49",St Peter's Early Years
Nottinghamshire County Council,1111/1001,Children and Young People,CYP,Third Party Payments,EGA,27/02/2020,11-16312,13730.29,Edwalton Day Nursery
Nottinghamshire County Council,1111/1001,Children and Young People,CYP,Third Party Payments,EGA,27/02/2020,11-16313,"8,374.28",Farnsfield Pre-School
Nottinghamshire County Council,1111/1001,Children and Young People,CYP,Third Party Payments,EGA,27/02/2020,11-16314,7793.54,Fledglings Pre School
Nottinghamshire County Council,1111/1001,Children and Young People,CYP,Third Party Payments,EGA,27/02/2020,11-16315,9326.02,Early Years Playgroup
Nottinghamshire County Council,1111/1001,Children and Young People,CYP,Third Party Payments,EGA,27/02/2020,11-16316,6102.95,Lowater Street Play & Pre School
Nottinghamshire County Council,1111/1001,Children and Young People,CYP,Third Party Payments,EGA,27/02/2020,11-16317,13734.26,Little Millers Day Nursery
Nottinghamshire County Council,1111/1001,Children and Young People,CYP,Third Party Payments,EGA,27/02/2020,11-16318,"5,469.97",Tiny Tots Playgroup
Nottinghamshire County Council,1111/1001,Children and Young People,CYP,Third Party Payments,EGA,27/02/2020,11-16319,13379.05,Alphabet House Day Nurseries Ltd-We
Nottinghamshire County Council,1111/1001,Children and Young People,CYP,Third Party Payments,EGA,27/02/2020,11-16320,"17,997.29",Good Foundations Day Nursery
Nottinghamshire County Council,1111/1001,Children and Young People,CYP,Third Party Payments,EGA,27/02/2020,11-16321,11809.67,Good Shepherd Pre-School
Nottinghamshire County Council,1111/1001,Children and Young People,CYP,Third Party Payments,EGA,27/02/2020,11-16322,10601.89,Leo's Childrens Nurseries Ltd
Nottinghamshire County Council,1111/1001,Children and Young People,CYP,Third Party Payments,EGA,27/02/2020,11-16323,"7,005.31",Bircotes Pre-School
Nottinghamshire County Council,1111/1001,Children and Young People,CYP,Third Party Payments,EGA,27/02/2020,11-16324,"13,373.29",East Leake Pre-School Playgroup
Nottinghamshire County Council,1111/1001,Children and Young People,CYP,Third Party Payments,EGA,27/02/2020,11-16325,10859.67,Little Acorns Shireoaks
Nottinghamshire County Council,1111/1001,Children and Young People,CYP,Third Party Payments,EGA,27/02/2020,11-16326,5673.44,Willow Childcare & Training Ltd
Nottinghamshire County Council,1111/1001,Children and Young People,CYP,Third Party Payments,EGA,27/02/2020,11-16327,"15,084.40",Treetops Nursery (Clipstone)
Nottinghamshire County Council,1111/1001,Children and Young People,CYP,Third Party Payments,EGA,27/02/2020,11-16328,"1,024.48",[Redacted]
Nottinghamshire County Council,1111/1001,Children and Young People,CYP,Third Party Payments,EGA,27/02/2020,11-16329,"15,590.02",Bright Stars Childcare
Nottinghamshire County Council,1111/1001,Children and Young People,CYP,Third Party Payments,EGA,27/02/2020,11-16330,"10,511.93",Cherubs Ryton Park
Nottinghamshire County Council,1111/1001,Children and Young People,CYP,Third Party Payments,EGA,27/02/2020,11-16331,"2,103.96",Sparkle Daycare
Nottinghamshire County Council,1111/1001,Children and Young People,CYP,Third Party Payments,EGA,27/02/2020,11-16332,9486.37,Bullpit Road Nursery
Nottinghamshire County Council,1111/1001,Children and Young People,CYP,Third Party Payments,EGA,27/02/2020,11-16333,963.26,[Redacted]
Nottinghamshire County Council,1111/1001,Children and Young People,CYP,Third Party Payments,EGA,27/02/2020,11-16334,"18,941.30",The Enchanted Garden Day Nursery
Nottinghamshire County Council,1111/1001,Children and Young People,CYP,Third Party Payments,EGA,27/02/2020,11-16335,7830.23,The West Bridgford Day Nursery
Nottinghamshire County Council,1111/1001,Children and Young People,CYP,Third Party Payments,EGA,27/02/2020,11-16336,1146.91,[Redacted]
Nottinghamshire County Council,1111/1001,Children and Young People,CYP,Third Party Payments,EGA,27/02/2020,11-16337,844.88,[Redacted]
Nottinghamshire County Council,1111/1001,Children and Young People,CYP,Third Party Payments,EGA,27/02/2020,11-16338,722.45,[Redacted]
Nottinghamshire County Council,1111/1001,Children and Young People,CYP,Third Party Payments,EGA,27/02/2020,11-16339,2445.47,Luans Little Stars
Nottinghamshire County Council,1111/1001,Children and Young People,CYP,Third Party Payments,EGA,27/02/2020,11-16340,1796.86,Sharons Childminding
Nottinghamshire County Council,1111/1001,Children and Young People,CYP,Third Party Payments,EGA,27/02/2020,11-16341,8177.57,Cedar House Day Nursery
Nottinghamshire County Council,1111/1001,Children and Young People,CYP,Third Party Payments,EGA,27/02/2020,11-16342,"1,721.84",Mini-me Childcare
Nottinghamshire County Council,1111/1001,Children and Young People,CYP,Third Party Payments,EGA,27/02/2020,11-16343,1548.1,Appletree House Childminding
Nottinghamshire County Council,1111/1001,Children and Young People,CYP,Third Party Payments,EGA,27/02/2020,11-16344,1685.71,[Redacted]
Nottinghamshire County Council,1111/1001,Children and Young People,CYP,Third Party Payments,EGA,27/02/2020,11-16345,"31,911.40",The Orange Tree Day Nursery
Nottinghamshire County Council,1111/1001,Children and Young People,CYP,Third Party Payments,EGA,27/02/2020,11-16346,"1,639.26",[Redacted]
Nottinghamshire County Council,1111/1001,Children and Young People,CYP,Third Party Payments,EGA,27/02/2020,11-16347,860.06,[Redacted]
Nottinghamshire County Council,1111/1001,Children and Young People,CYP,Third Party Payments,EGA,27/02/2020,11-16348,11628.92,Fun Farm Day Nursery
Nottinghamshire County Council,1111/1001,Children and Young People,CYP,Third Party Payments,EGA,27/02/2020,11-16349,923.14,[Redacted]
Nottinghamshire County Council,1111/1001,Children and Young People,CYP,Third Party Payments,EGA,27/02/2020,11-16350,"1,047.65",[Redacted]
Nottinghamshire County Council,1111/1001,Children and Young People,CYP,Third Party Payments,EGA,27/02/2020,11-16351,632.25,[Redacted]
Nottinghamshire County Council,1111/1001,Children and Young People,CYP,Third Party Payments,EGA,27/02/2020,11-16352,688.05,"Sue Smith, Happy Kids Childminding"
Nottinghamshire County Council,1111/1001,Children and Young People,CYP,Third Party Payments,EGA,27/02/2020,11-16353,"13,232.18",Cherubs Childcare Centre Ladybrook
Nottinghamshire County Council,1111/1001,Children and Young People,CYP,Third Party Payments,EGA,27/02/2020,11-16354,"1,292.75",[Redacted]
Nottinghamshire County Council,1111/1001,Children and Young People,CYP,Third Party Payments,EGA,27/02/2020,11-16355,5664.9,Rushcliffe Pre-School (Nottingham)
Nottinghamshire County Council,1111/1001,Children and Young People,CYP,Third Party Payments,EGA,27/02/2020,11-16356,5538.78,Upton Crickets Day Nursery
Nottinghamshire County Council,1111/1001,Children and Young People,CYP,Third Party Payments,EGA,27/02/2020,11-16357,"2,151.60",Sunnybank Childminding
Nottinghamshire County Council,1111/1001,Children and Young People,CYP,Third Party Payments,EGA,27/02/2020,11-16358,915.1,[Redacted]
Nottinghamshire County Council,1111/1001,Children and Young People,CYP,Third Party Payments,EGA,27/02/2020,11-16359,510.74,[Redacted]
Nottinghamshire County Council,1111/1001,Children and Young People,CYP,Third Party Payments,EGA,27/02/2020,11-16360,"9,774.66",Cheeky Monkeys Day Nursery
Nottinghamshire County Council,1111/1001,Children and Young People,CYP,Third Party Payments,EGA,27/02/2020,11-16361,"1,672.26",[Redacted]
Nottinghamshire County Council,1111/1001,Children and Young People,CYP,Third Party Payments,EGA,27/02/2020,11-16362,4237.26,[Redacted]
Nottinghamshire County Council,1111/1001,Children and Young People,CYP,Third Party Payments,EGA,27/02/2020,11-16363,722.45,[Redacted]
Nottinghamshire County Council,1111/1001,Children and Young People,CYP,Third Party Payments,EGA,27/02/2020,11-16364,"9,013.04",[Redacted]
Nottinghamshire County Council,1111/1001,Children and Young People,CYP,Third Party Payments,EGA,27/02/2020,11-16365,963.27,[Redacted]
Nottinghamshire County Council,1111/1001,Children and Young People,CYP,Third Party Payments,EGA,27/02/2020,11-16366,13623.71,Children 1st @ Newark Centre
Nottinghamshire County Council,1111/1001,Children and Young People,CYP,Third Party Payments,EGA,27/02/2020,11-16367,"1,187.18",[Redacted]
Nottinghamshire County Council,1111/1001,Children and Young People,CYP,Third Party Payments,EGA,27/02/2020,11-16368,594.01,[Redacted]
Nottinghamshire County Council,1111/1001,Children and Young People,CYP,Third Party Payments,EGA,27/02/2020,11-16369,"15,976.15",Dragonflies Day Nursery ltd
Nottinghamshire County Council,1111/1001,Children and Young People,CYP,Third Party Payments,EGA,27/02/2020,11-16370,501.70,[Redacted]
Nottinghamshire County Council,1111/1001,Children and Young People,CYP,Third Party Payments,EGA,27/02/2020,11-16371,"1,471.00",[Redacted]
Nottinghamshire County Council,1111/1001,Children and Young People,CYP,Third Party Payments,EGA,27/02/2020,11-16372,783.67,[Redacted]
Nottinghamshire County Council,1111/1001,Children and Young People,CYP,Third Party Payments,EGA,27/02/2020,11-16373,2228.56,[Redacted]
Nottinghamshire County Council,1111/1001,Children and Young People,CYP,Third Party Payments,EGA,27/02/2020,11-16374,642.18,[Redacted]
Nottinghamshire County Council,1111/1001,Children and Young People,CYP,Third Party Payments,EGA,27/02/2020,11-16375,542.85,[Redacted]
Nottinghamshire County Council,1111/1001,Children and Young People,CYP,Third Party Payments,EGA,27/02/2020,11-16376,1252.24,[Redacted]
Nottinghamshire County Council,1111/1001,Children and Young People,CYP,Third Party Payments,EGA,27/02/2020,11-16377,662.86,[Redacted]
Nottinghamshire County Council,1111/1001,Children and Young People,CYP,Third Party Payments,EGA,27/02/2020,11-16378,758,[Redacted]
Nottinghamshire County Council,1111/1001,Children and Young People,CYP,Third Party Payments,EGA,27/02/2020,11-16379,1326.51,[Redacted]
Nottinghamshire County Council,1111/1001,Children and Young People,CYP,Third Party Payments,EGA,27/02/2020,11-16380,783.66,[Redacted]
Nottinghamshire County Council,1111/1001,Children and Young People,CYP,Third Party Payments,EGA,27/02/2020,11-16381,1584.23,[Redacted]
Nottinghamshire County Council,1111/1001,Children and Young People,CYP,Third Party Payments,EGA,27/02/2020,11-16382,516.15,[Redacted]
Nottinghamshire County Council,1111/1001,Children and Young People,CYP,Third Party Payments,EGA,27/02/2020,11-16383,684.07,[Redacted]
Nottinghamshire County Council,1111/1001,Children and Young People,CYP,Third Party Payments,EGA,27/02/2020,11-16384,13226.09,Little Beans Childcare Ltd
Nottinghamshire County Council,1111/1001,Children and Young People,CYP,Third Party Payments,EGA,27/02/2020,11-16385,14181.99,Childrens House Childcare Ltd
Nottinghamshire County Council,1111/1001,Children and Young People,CYP,Third Party Payments,EGA,27/02/2020,11-16386,1085.69,Little Acorns Childminding
Nottinghamshire County Council,1111/1001,Children and Young People,CYP,Third Party Payments,EGA,27/02/2020,11-16387,3379.5,Townrow Tiny Tots Day Nursery Ltd
Nottinghamshire County Council,1111/1001,Children and Young People,CYP,Third Party Payments,EGA,27/02/2020,11-16388,"14,195.81",Mapperley Day Nursery
Nottinghamshire County Council,1111/1001,Children and Young People,CYP,Third Party Payments,EGA,27/02/2020,11-16389,703.39,[Redacted]
Nottinghamshire County Council,1111/1001,Children and Young People,CYP,Third Party Payments,EGA,27/02/2020,11-16390,931.16,Sweet Pea's Childminding
Nottinghamshire County Council,1111/1001,Children and Young People,CYP,Third Party Payments,EGA,27/02/2020,11-16391,866.94,[Redacted]
Nottinghamshire County Council,1111/1001,Children and Young People,CYP,Third Party Payments,EGA,27/02/2020,11-16392,738.50,[Redacted]
Nottinghamshire County Council,1111/1001,Children and Young People,CYP,Third Party Payments,EGA,27/02/2020,11-16393,"21,393.67",Hollies Day Nurseries
Nottinghamshire County Council,1111/1001,Children and Young People,CYP,Third Party Payments,EGA,27/02/2020,11-16394,722.45,[Redacted]
Nottinghamshire County Council,1111/1001,Children and Young People,CYP,Third Party Payments,EGA,27/02/2020,11-16395,1006.99,[Redacted]
Nottinghamshire County Council,1111/1001,Children and Young People,CYP,Third Party Payments,EGA,27/02/2020,11-16396,"2,048.95",Yew Tree Childcare
Nottinghamshire County Council,1111/1001,Children and Young People,CYP,Third Party Payments,EGA,27/02/2020,11-16397,21803.87,Phoenix Park Nursery Ltd
Nottinghamshire County Council,1111/1001,Children and Young People,CYP,Third Party Payments,EGA,27/02/2020,11-16398,565.92,[Redacted]
Nottinghamshire County Council,1111/1001,Children and Young People,CYP,Third Party Payments,EGA,27/02/2020,11-16399,963.26,[Redacted]
Nottinghamshire County Council,1111/1001,Children and Young People,CYP,Third Party Payments,EGA,27/02/2020,11-16400,722.45,[Redacted]
Nottinghamshire County Council,1111/1001,Children and Young People,CYP,Third Party Payments,EGA,27/02/2020,11-16401,685.93,[Redacted]
Nottinghamshire County Council,1111/1001,Children and Young People,CYP,Third Party Payments,EGA,27/02/2020,11-16402,529.80,[Redacted]
Nottinghamshire County Council,1111/1001,Children and Young People,CYP,Third Party Payments,EGA,27/02/2020,11-16403,1024.48,[Redacted]
Nottinghamshire County Council,1111/1001,Children and Young People,CYP,Third Party Payments,EGA,27/02/2020,11-16404,"9,844.79",Wolds Day Nursery @ Stragglethorpe
